Workbook

Sheet Introduction
A3: EPA Simplified GHG Emissions Calculator (SGEC) | G3: Version 8 | H3: August 2022
A4: The EPA Simplified GHG Emissions Calculator ("the Calculator") is designed as a simplified calculation tool to help organizations estimate and inventory their annual greenhouse gas (GHG) emissions for US-based operations. All methodologies and default values provided are based on the most current Center for Corporate Climate Leadership Greenhouse Gas Inventory Guidance Documents and the Emission Factors Hub. The Calculator will quantify the direct and indirect emissions from sources at an organization when activity data are entered into the various sections of the workbook for one annual period.
A6: Before entering data, please: 1) Enable Macros and 2) Familiarize yourself with the Simplified Guide to GHG Management for Organizations.
B7: Access the guide: | D7: https://www.epa.gov/climateleadership/ghg-inventory-guidance-low-emitters
A9: There are three primary steps in completing a GHG inventory. Each emissions source also has these three steps.
B10: (1) DEFINE: The first step in completing a GHG inventory is to determine the boundaries and emissions sources included within those boundaries. After you have defined your organizational and operational boundaries, you can use the questions on the "Boundary Questions" worksheet to help you determine which emissions sources are relevant to your business.
C11: Go to Boundary Questions
B12: (2) COLLECT: The second step is to collect data for the defined annual period. This step is typically the most time consuming, since the data can be difficult to gather. This Calculator has help sheets with suggestions and guidance for each emissions source and a general help sheet for data management. Click the drop down menu boxes below to navigate to these sheets.
D14: Help - Data Management
B15: (3) QUANTIFY: The third step is to calculate emissions. This Calculator is designed to complete the emissions quantification step for you. Once the user enters data in this MS Excel spreadsheet, the emissions will be calculated and totaled on the "Summary" sheet.
A17: Calculator Guidance - Important Information
A18: (A) Navigate to the data entry sheets using the drop down menu in the dark grey cell below and then clicking on the "Go To Data Entry Sheet" button. On the data entry sheets enter data in ORANGE cells only.
A19: (B) This Calculator has several "Tool Sheets" with useful reference data such as unit conversions, heat contents, and emission factors. Click on the buttons below to go to the appropriate Tool Sheet.
A20: (C) Data must be entered in the units specified on the data entry sheets. Use the "Unit Conversions" or "Heat Content" sheets if unit conversion is necessary prior to entering data into the Calculator.
A21: (D) If more guidance is needed, you can reference the emission factor data sources found on the "Emission Factors" sheet.
D23: Tool Sheets | E23: Quick Data Entry Navigation
E25: Upstream Trans and Dist
A35: Calculator Notes
A36: Emission sources of all seven major GHGs are accounted for in the inventory and in this Calculator: carbon dioxide (CO2), methane (CH4), nitrous oxide (N2O), hydroﬂuorocarbons (HFCs), perﬂuorocarbons (PFCs), sulfur hexaﬂuoride (SF6), and nitrogen trifluoride (NF3). The Calculator allows the user to estimate GHG emissions from scope 1 (direct), scope 2 (indirect), and some scope 3 (other indirect) sources.
A37: The Calculator uses U.S.-specific cross-sector emission factors from the Emission Factors Hub. Many industrial sectors also have process-related emissions sources that are specific to their sector. EPA’s Greenhouse Gas Reporting Program provides guidance and tools that can aid in the calculation and reporting of these emissions:
B38: https://www.epa.gov/ghgreporting
A39: The GHG Protocol also provides guidance on calculating emissions from industrial processes.

Sheet Boundary Questions
A3: Operational Boundary Questions - Emissions Sources to Include
A5: Guidance
A6: Use the questions below to help you determine which emissions sources should be included in the inventory.
A8: Emissions Source Questions
A9: A typical office-based organization will likely have the following (scope 1 and scope 2) emissions sources:
B10: - Stationary Combustion
B11: - Refrigeration and AC
B12: - Electricity
A14: If you answer "yes" to a question below, that emissions source should be included in your inventory. For each facility within the defined organizational boundary, collect the necessary data for the selected time period. Use the corresponding Excel sheet to quantify these emissions.
A15: Tip: you may need to ask your landlord about heating sources, steam purchased and refrigerants
A16: Stationary Combustion | E16: Yes or No?
A17: Do you have facilities that burn fuels on-site (e.g., natural gas, propane, coal, fuel oil for heating, diesel fuel for backup generators, biomass fuels)? | E17: ?
A18: Mobile Sources
A19: Do any vehicles fall within your organizational boundary? This can include cars, trucks, propane forklifts, aircraft, boats. Only vehicles owned or leased by your organization should be included here. | E19: ?
A20: Refrigeration and Air Conditioning
A21: Do your facilities use refrigeration or air conditioning equipment? | E21: ?
A22: Fire Suppression
A23: Do your facilities use chemical fire suppressants? | E23: ?
A24: Purchased Gases
A25: Do you purchase any industrial gases for use in your business? These gases may be purchased for use in manufacturing, testing, or laboratories. | E25: ?
A26: Electricity
A27: Does your inventory include facilities that use electricity? | E27: ?
A28: Steam
A29: Do you purchase steam for heating or cooling in your facilities? | E29: ?
A30: Market-Based Emission Factors (entered on Electricity and or Steam tabs)
A31: Do you purchase renewable energy certificates (RECs) or green power products? Do you purchase electricity through a power purchase agreement (PPA)? Do you have supplier-specific emission factors? | E31: ?
A33: The questions below refer to scope 3 emissions sources and offsets. If you answer "yes" you may choose whether or not to include these emissions sources in your inventory. Use the corresponding sheet to enter data.
A34: Business Travel | E34: Yes or No?
A35: Do your employees travel for business using transportation other than owned or leased vehicles (e.g., commercial airline flights, rental cars, trains)? | E35: ?
A36: Employee Commuting
A37: Do your employees commute to work in personal vehicles or use public transportation? | E37: ?
A38: Upstream Transportation and Distribution
A39: Do you hire another company to transport products or other materials to or from your facilities? | E39: ?
A40: Waste Generated in Operations
A41: Do you generate waste that is disposed of in a facility owned by another organization? | E41: ?
A42: Offsets
A43: Do you purchase greenhouse gas offsets? | E43: ?

Sheet Summary
A3: Emissions Summary
A5: Guidance
A6: The total GHG emissions from each source category are provided below. You may also use this summary sheet to fill out the Annual GHG Inventory Summary and Goal Tracking Form (.xls) as this calculator only quantifies one year of emissions at a time.
A7: https://www.epa.gov/climateleadership/target-setting
A8: By entering the data below into the appropriate cell of the Annual GHG Inventory Summary and Goal Tracking Form, you will be able to compare multiple years of data.
A10: If you have multiple Calculator files covering sub-sets of your inventory for a particular reporting period, sum each of the emission categories (e.g. Stationary Combustion) to an organizational total, which then can be entered into the Annual GHG Inventory Summary and Goal Tracking Form.
A14: (A) Enter organization information into the orange cells. Other cells on this sheet will be automatically calculated from the data entered in the sheets in this workbook. Blue cells indicate required emission sources if applicable. Green cells indicate scope 3 emission sources and offsets, which organizations may optionally include in its inventory.
A15: (B) The "Go To Sheet" buttons can be used to navigate to the data entry sheets.
A17: Organizational Information:
B18: Organization Name:
B20: Organization Address:
B23: Inventory Reporting Period: | E23: e.g., Calendar Year 2021, Fiscal Year 2021
E24: Start: | F24: MM/DD/YY | G24: End: | H24: MM/DD/YY
B26: Name of Preparer:
B27: Phone Number of Preparer:
B28: Date Prepared:
A30: Summary of Organization's Emissions:
B32: Scope 1 Emissions
B33: Stationary Combustion | G33: ='Stationary Combustion'!E95 -> 0 | H33: CO2-e (metric tons)
B34: Mobile Sources | G34: ='Mobile Sources'!E257 -> 0 | H34: CO2-e (metric tons)
B35: Refrigeration / AC Equipment Use | G35: ='Refrigeration and AC'!F130 -> 0 | H35: CO2-e (metric tons)
B36: Fire Suppression | G36: ='Fire Suppression'!F109 -> 0 | H36: CO2-e (metric tons)
B37: Purchased Gases | G37: ='Purchased Gases'!E30 -> 0 | H37: CO2-e (metric tons)
B39: Location-Based Scope 2 Emissions
B40: Purchased and Consumed Electricity | G40: =Electricity!E63 -> 0 | H40: CO2-e (metric tons)
B41: Purchased and Consumed Steam | G41: =Steam!F87 -> 0 | H41: CO2-e (metric tons)
B43: Market-Based Scope 2 Emissions
B44: Purchased and Consumed Electricity | G44: =Electricity!E64 -> 0 | H44: CO2-e (metric tons)
B45: Purchased and Consumed Steam | G45: =Steam!F88 -> 0 | H45: CO2-e (metric tons)
B47: Total organization Emissions
B48: Total Scope 1 & Location-Based Scope 2 | G48: =SUM(G33:G37,G40:G41) -> 0 | H48: CO2-e (metric tons)
B49: Total Scope 1 & Market-Based Scope 2 | G49: =SUM(G33:G37,G44:G45) -> 0 | H49: CO2-e (metric tons)
B51: Reductions
B52: Offsets | G52: =Offsets!C25 -> 0 | H52: CO2-e (metric tons)
B54: Net Scope 1 and 2 Location-Based Emissions | G54: =IF(G48-G52<0,0,G48-G52) -> 0 | H54: CO2-e (metric tons)
B55: Net Scope 1 and 2 Market-Based Emissions | G55: =IF(G49-G52<0,0,G49-G52) -> 0 | H55: CO2-e (metric tons)
B57: Scope 3 Emissions
B58: Employee Business Travel | G58: ='Business Travel'!D165 -> 0 | H58: CO2-e (metric tons)
B59: Employee Commuting | G59: =Commuting!D123 -> 0 | H59: CO2-e (metric tons)
B60: Upstream Transportation and Distribution | G60: ='Upstream Trans and Dist'!D111 -> 0 | H60: CO2-e (metric tons)
B61: Waste | G61: =Waste!D99 -> 0 | H61: CO2-e (metric tons)
B63: Required Supplemental Information
B64: Biomass CO2 Emissions from Stationary Sources | G64: ='Stationary Combustion'!E97 -> 0 | H64: CO2-e (metric tons)
B65: Biomass CO2 Emissions from Mobile Sources | G65: ='Mobile Sources'!E259 -> 0 | H65: CO2-e (metric tons)

Sheet Stationary Combustion
A3: Scope 1 Emissions from Stationary Combustion Sources
A5: Guidance
A6: (A) Enter annual data for each combustion unit, facility, or site (by fuel type) in ORANGE cells on Table 1. Example entry is shown in first row (GREEN Italics).
A7: - Select "Fuel Combusted" from drop down box.
A8: - Enter "Quantity Combusted" and choose the appropriate units from the drop down box in the unit column. If it's necessary to convert units, common heat contents can be found on the "Heat Content" sheet and unit conversions on the "Unit Conversion" sheet.
A9: (B) If fuel is consumed in a facility but stationary fuel consumption data are not available, an estimate should be made for completeness. See the "Items to Note" section of the Help sheet for suggested estimation approaches.
A10: (C) Biomass CO2 emissions are not reported in the total emissions, but are reported separately at the bottom of the sheet.
A12: Table 1. Stationary Source Fuel Combustion
A13: Source | B13: Source | C13: Source | D13: Fuel | E13: Quantity | F13: Units
A14: ID | B14: Description | C14: Area (sq ft) | D14: Combusted | E14: Combusted
A15: BLR-012 | B15: East Power Plant | C15: 12517 | D15: Natural Gas | E15: 10000 | F15: MMBtu | U15: =IF(D15="","",VLOOKUP(D15,DropDown!$R$2:$S$12,2,FALSE)) -> Gas
U16: =IF(D16="","",VLOOKUP(D16,DropDown!$R$2:$S$12,2,FALSE)) -> 
U17: =IF(D17="","",VLOOKUP(D17,DropDown!$R$2:$S$12,2,FALSE)) -> 
U18: =IF(D18="","",VLOOKUP(D18,DropDown!$R$2:$S$12,2,FALSE)) -> 
U19: =IF(D19="","",VLOOKUP(D19,DropDown!$R$2:$S$12,2,FALSE)) -> 
U20: =IF(D20="","",VLOOKUP(D20,DropDown!$R$2:$S$12,2,FALSE)) -> 
U21: =IF(D21="","",VLOOKUP(D21,DropDown!$R$2:$S$12,2,FALSE)) -> 
U22: =IF(D22="","",VLOOKUP(D22,DropDown!$R$2:$S$12,2,FALSE)) -> 
U23: =IF(D23="","",VLOOKUP(D23,DropDown!$R$2:$S$12,2,FALSE)) -> 
U24: =IF(D24="","",VLOOKUP(D24,DropDown!$R$2:$S$12,2,FALSE)) -> 
U25: =IF(D25="","",VLOOKUP(D25,DropDown!$R$2:$S$12,2,FALSE)) -> 
U26: =IF(D26="","",VLOOKUP(D26,DropDown!$R$2:$S$12,2,FALSE)) -> 
U27: =IF(D27="","",VLOOKUP(D27,DropDown!$R$2:$S$12,2,FALSE)) -> 
U28: =IF(D28="","",VLOOKUP(D28,DropDown!$R$2:$S$12,2,FALSE)) -> 
U29: =IF(D29="","",VLOOKUP(D29,DropDown!$R$2:$S$12,2,FALSE)) -> 
U30: =IF(D30="","",VLOOKUP(D30,DropDown!$R$2:$S$12,2,FALSE)) -> 
U31: =IF(D31="","",VLOOKUP(D31,DropDown!$R$2:$S$12,2,FALSE)) -> 
U32: =IF(D32="","",VLOOKUP(D32,DropDown!$R$2:$S$12,2,FALSE)) -> 
U33: =IF(D33="","",VLOOKUP(D33,DropDown!$R$2:$S$12,2,FALSE)) -> 
U34: =IF(D34="","",VLOOKUP(D34,DropDown!$R$2:$S$12,2,FALSE)) -> 
U35: =IF(D35="","",VLOOKUP(D35,DropDown!$R$2:$S$12,2,FALSE)) -> 
U36: =IF(D36="","",VLOOKUP(D36,DropDown!$R$2:$S$12,2,FALSE)) -> 
U37: =IF(D37="","",VLOOKUP(D37,DropDown!$R$2:$S$12,2,FALSE)) -> 
U38: =IF(D38="","",VLOOKUP(D38,DropDown!$R$2:$S$12,2,FALSE)) -> 
U39: =IF(D39="","",VLOOKUP(D39,DropDown!$R$2:$S$12,2,FALSE)) -> 
U40: =IF(D40="","",VLOOKUP(D40,DropDown!$R$2:$S$12,2,FALSE)) -> 
U41: =IF(D41="","",VLOOKUP(D41,DropDown!$R$2:$S$12,2,FALSE)) -> 
U42: =IF(D42="","",VLOOKUP(D42,DropDown!$R$2:$S$12,2,FALSE)) -> 
U43: =IF(D43="","",VLOOKUP(D43,DropDown!$R$2:$S$12,2,FALSE)) -> 
U44: =IF(D44="","",VLOOKUP(D44,DropDown!$R$2:$S$12,2,FALSE)) -> 
U45: =IF(D45="","",VLOOKUP(D45,DropDown!$R$2:$S$12,2,FALSE)) -> 
U46: =IF(D46="","",VLOOKUP(D46,DropDown!$R$2:$S$12,2,FALSE)) -> 
U47: =IF(D47="","",VLOOKUP(D47,DropDown!$R$2:$S$12,2,FALSE)) -> 
U48: =IF(D48="","",VLOOKUP(D48,DropDown!$R$2:$S$12,2,FALSE)) -> 
U49: =IF(D49="","",VLOOKUP(D49,DropDown!$R$2:$S$12,2,FALSE)) -> 
U50: =IF(D50="","",VLOOKUP(D50,DropDown!$R$2:$S$12,2,FALSE)) -> 
U51: =IF(D51="","",VLOOKUP(D51,DropDown!$R$2:$S$12,2,FALSE)) -> 
U52: =IF(D52="","",VLOOKUP(D52,DropDown!$R$2:$S$12,2,FALSE)) -> 
U53: =IF(D53="","",VLOOKUP(D53,DropDown!$R$2:$S$12,2,FALSE)) -> 
U54: =IF(D54="","",VLOOKUP(D54,DropDown!$R$2:$S$12,2,FALSE)) -> 
U55: =IF(D55="","",VLOOKUP(D55,DropDown!$R$2:$S$12,2,FALSE)) -> 
U56: =IF(D56="","",VLOOKUP(D56,DropDown!$R$2:$S$12,2,FALSE)) -> 
U57: =IF(D57="","",VLOOKUP(D57,DropDown!$R$2:$S$12,2,FALSE)) -> 
U58: =IF(D58="","",VLOOKUP(D58,DropDown!$R$2:$S$12,2,FALSE)) -> 
A60: GHG Emissions
A62: Total Organization-Wide Stationary Source Combustion by Fuel Type
A63: Fuel Type | C63: Quantity | D63: Units
C64: Combusted
A65: Anthracite Coal | C65: =SUMIFS($E$16:$E$58,$D$16:$D$58,$A65,$F$16:$F$58,"short ton")+(SUMIFS($E$16:$E$58,$D$16:$D$58,$A65,$F$16:$F$58,"MMBtu")*'Heat Content'!$D$14) -> 0 | D65: short tons
A66: Bituminous Coal | C66: =SUMIFS($E$16:$E$58,$D$16:$D$58,$A66,$F$16:$F$58,"short ton")+(SUMIFS($E$16:$E$58,$D$16:$D$58,$A66,$F$16:$F$58,"MMBtu")*'Heat Content'!$D$15) -> 0 | D66: short tons
A67: Sub-bituminous Coal | C67: =SUMIFS($E$16:$E$58,$D$16:$D$58,$A67,$F$16:$F$58,"short ton")+(SUMIFS($E$16:$E$58,$D$16:$D$58,$A67,$F$16:$F$58,"MMBtu")*'Heat Content'!$D$16) -> 0 | D67: short tons
A68: Lignite Coal | C68: =SUMIFS($E$16:$E$58,$D$16:$D$58,$A68,$F$16:$F$58,"short ton")+(SUMIFS($E$16:$E$58,$D$16:$D$58,$A68,$F$16:$F$58,"MMBtu")*'Heat Content'!$D$18) -> 0 | D68: short tons
A69: Natural Gas | C69: =SUMIFS($E$16:$E$58,$D$16:$D$58,$A69,$F$16:$F$58,"scf")+(SUMIFS($E$16:$E$58,$D$16:$D$58,$A69,$F$16:$F$58,"MMBtu")*'Heat Content'!$D$7)+(SUMIFS($E$16:$E$58,$D$16:$D$58,$A69,$F$16:$F$58,"Therm")*'Heat Content'!$D$9) -> 0 | D69: scf
A70: Distillate Fuel Oil No. 2 | C70: =SUMIFS($E$16:$E$58,$D$16:$D$58,$A70,$F$16:$F$58,"gallons")+(SUMIFS($E$16:$E$58,$D$16:$D$58,$A70,$F$16:$F$58,"MMBtu")*'Heat Content'!$D$21) -> 0 | D70: gallons
A71: Residual Fuel Oil No. 6 | C71: =SUMIFS($E$16:$E$58,$D$16:$D$58,$A71,$F$16:$F$58,"gallons")+(SUMIFS($E$16:$E$58,$D$16:$D$58,$A71,$F$16:$F$58,"MMBtu")*'Heat Content'!$D$22) -> 0 | D71: gallons
A72: Kerosene | C72: =SUMIFS($E$16:$E$58,$D$16:$D$58,$A72,$F$16:$F$58,"gallons")+(SUMIFS($E$16:$E$58,$D$16:$D$58,$A72,$F$16:$F$58,"MMBtu")*'Heat Content'!$D$23) -> 0 | D72: gallons
A73: Liquefied Petroleum Gases (LPG) | C73: =SUMIFS($E$16:$E$58,$D$16:$D$58,$A73,$F$16:$F$58,"gallons")+(SUMIFS($E$16:$E$58,$D$16:$D$58,$A73,$F$16:$F$58,"MMBtu")*'Heat Content'!$D$24) -> 0 | D73: gallons
A74: Wood and Wood Residuals | C74: =SUMIFS($E$16:$E$58,$D$16:$D$58,$A74,$F$16:$F$58,"short ton")+(SUMIFS($E$16:$E$58,$D$16:$D$58,$A74,$F$16:$F$58,"MMBtu")*'Heat Content'!$D$20) -> 0 | D74: short tons
A75: Landfill Gas | C75: =SUMIFS($E$16:$E$58,$D$16:$D$58,$A75,$F$16:$F$58,"scf")+(SUMIFS($E$16:$E$58,$D$16:$D$58,$A75,$F$16:$F$58,"MMBtu")*'Heat Content'!$D$25)+(SUMIFS($E$16:$E$58,$D$16:$D$58,$A75,$F$16:$F$58,"Therm")*'Heat Content'!$D$25/10) -> 0 | D75: scf
A77: Total Organization-Wide CO2, CH4 and N2O Emissions from Stationary Source Fuel Combustion
A78: Fuel Type | C78: CO2 (kg) | D78: CH4 (g) | E78: N2O (g)
A79: Anthracite Coal | C79: =$C65*VLOOKUP($A79,Stationary_Fuel_Fctrs_unit,5,FALSE) -> 0 | D79: =$C65*VLOOKUP($A79,Stationary_Fuel_Fctrs_unit,6,FALSE) -> 0 | E79: =$C65*VLOOKUP($A79,Stationary_Fuel_Fctrs_unit,7,FALSE) -> 0
A80: Bituminous Coal | C80: =$C66*VLOOKUP($A80,Stationary_Fuel_Fctrs_unit,5,FALSE) -> 0 | D80: 0 | E80: 0
A81: Sub-bituminous Coal | C81: 0 | D81: 0 | E81: 0
A82: Lignite Coal | C82: 0 | D82: 0 | E82: 0
A83: Natural Gas | C83: 0 | D83: 0 | E83: 0
A84: Distillate Fuel Oil No. 2 | C84: 0 | D84: 0 | E84: 0
A85: Residual Fuel Oil No. 6 | C85: 0 | D85: =$C71*VLOOKUP($A85,Stationary_Fuel_Fctrs_unit,6,FALSE) -> 0 | E85: =$C71*VLOOKUP($A85,Stationary_Fuel_Fctrs_unit,7,FALSE) -> 0
A86: Kerosene | C86: 0 | D86: 0 | E86: 0
A87: Liquefied Petroleum Gases (LPG) | C87: 0 | D87: 0 | E87: 0
A88: Total Fossil Fuel Emissions | C88: =SUM(C79:C87) -> 0 | D88: =SUM(D79:D87) -> 0 | E88: =SUM(E79:E87) -> 0
A89: Wood and Wood Residuals | C89: =$C74*VLOOKUP($A89,Stationary_Fuel_Fctrs_unit,5,FALSE) -> 0 | D89: =$C74*VLOOKUP($A89,Stationary_Fuel_Fctrs_unit,6,FALSE) -> 0 | E89: =$C74*VLOOKUP($A89,Stationary_Fuel_Fctrs_unit,7,FALSE) -> 0
A90: Landfill Gas | C90: =$C75*VLOOKUP(A90,Stationary_Fuel_Fctrs_unit,5,FALSE) -> 0 | D90: =$C75*VLOOKUP($A90,Stationary_Fuel_Fctrs_unit,6,FALSE) -> 0 | E90: =$C75*VLOOKUP($A90,Stationary_Fuel_Fctrs_unit,7,FALSE) -> 0
A91: Total Non-Fossil Fuel Emissions | C91: =SUM(C89:C90) -> 0 | D91: =SUM(D89:D90) -> 0 | E91: =SUM(E89:E90) -> 0
A92: Total Emissions for all Fuels | C92: =C88+C91 -> 0 | D92: =D88+D91 -> 0 | E92: =E88+E91 -> 0
A95: Total CO2 Equivalent Emissions (metric tons) - Stationary Combustion | E95: =(C88+(D88/1000*CH4_GWP)+(E88/1000*N2O_GWP)+(D91/1000*CH4_GWP)+(E91/1000*N2O_GWP))/1000 -> 0
A97: Total Biomass CO2 Equivalent Emissions (metric tons) - Stationary Combustion | E97: =(C91/1000) -> 0

Sheet Mobile Sources
A3: Scope 1 Emissions from Mobile Sources
A5: Guidance
A6: (A) Enter annual data for each vehicle or group of vehicles (grouped by vehicle type, vehicle year, and fuel type) in ORANGE cells in Table 1. Example entry is shown in first row (GREEN Italics). Only enter vehicles owned or leased by your organization on this sheet. All other vehicle use such as employee commuting or business travel is considered a scope 3 emissions source and should be reported in the corresponding scope 3 sheets.
A7: - Select "On-Road" or "Non-Road" from drop down box to determine the Vehicle Types available. Must select before picking vehicle type.
A8: - Select "Vehicle Type" from drop down box (closest type available).
A9: - Enter "Fuel Usage" in appropriate units (units appear when vehicle type is selected).
B10: - If mileage or fuel usage is unknown, estimate using approximate fuel economy values (see Reference Table below).
B11: - Vehicle year and Miles traveled are not necessary for non-road equiment.
A12: (B) When using biofuels, typically the biofuel (biodiesel or ethanol) is mixed with a petroleum fuel (diesel or gasoline) for use in vehicles. Enter the biodiesel and ethanol percentages of the fuel if known, or leave default values.
C14: Biodiesel Percent: | D14: 20 | E14: %
C15: Ethanol Percent: | D15: 80 | E15: %
A16: (C) Biomass CO2 emissions from biodiesel and ethanol are not reported in the total emissions, but are reported separately at the bottom of the sheet.
A18: Table 1. Mobile Source Fuel Combustion and Miles Traveled
A19: Source | B19: Source | C19: On-Road or Non-Road? | D19: Vehicle | E19: Vehicle | F19: Fuel | G19: Units | H19: Miles
A20: ID | B20: Description | D20: Type | E20: Year | F20: Usage | H20: Traveled
A21: Fleet-012 | B21: HQ Fleet | C21: OnRoad | D21: Passenger Cars - Gasoline | E21: 2019 | F21: 500 | G21: =IF($D21="","",IF($D21="CNG Buses", "scf", IF($D21="CNG Heavy-Duty Vehicles", "scf", IF($D21="CNG Light-Duty Vehicles","scf","gal")))) -> gal | H21: =E65*F21 -> 12065
G22: =IF($D22="","",IF(OR($D22="Light-Duty Cars - CNG",$D22="Light-Duty Trucks - CNG",$D22="Medium-Duty Trucks - CNG",$D22="Heavy-Duty Trucks - CNG",$D22="Buses - CNG"),"scf","gal")) -> 
G28: =IF($D28="","",IF(OR($D28="Light-Duty Cars - CNG",$D28="Light-Duty Trucks - CNG",$D28="Medium-Duty Trucks - CNG",$D28="Heavy-Duty Trucks - CNG",$D28="Buses - CNG"),"scf","gal")) -> 
G54: =IF($D54="","",IF(OR($D54="Light-Duty Cars - CNG",$D54="Light-Duty Trucks - CNG",$D54="Medium-Duty Trucks - CNG",$D54="Heavy-Duty Trucks - CNG",$D54="Buses - CNG"),"scf","gal")) -> 
A63: Reference Table: Average Fuel Economy by Vehicle Type
A64: Vehicle Type | D64: Average Fuel Economy (mpg)
A65: Passenger Cars | E65: 24.13
A66: Motorcycles | E66: 43.96
A67: Diesel Buses (Diesel Heavy-Duty Vehicles) | E67: 7.34
A68: Other 2-axle, 4-Tire Vehicles | E68: 17.61
A69: Single unit 2-Axle 6-Tire or More Trucks | E69: 7.49
A70: Combination Trucks | E70: 6
A72: GHG Emissions
A74: Total Organization-Wide Mobile Source Fuel Usage and CO2 Emissions (On-Road and Off-Road Vehicles)
A75: Fuel Type | D75: Fuel Usage | E75: Units | F75: CO2
F76: (kg)
A77: Motor Gasoline | D77: =SUMIF($D$22:$D$61,"*- Gasoline*",$F$22:$F$61) -> 0 | E77: gallons | F77: =IF($D77="","",Mobile_gas_CO2fctr*$D77) -> 0
A78: Diesel Fuel | D78: =SUMIF($D$22:$D$61,"*- Diesel",$F$22:$F$61) -> 0 | E78: gallons | F78: =IF($D78="","",Mobile_diesel_CO2fctr*$D78) -> 0
A79: Residual Fuel Oil | D79: =SUMIF($D$22:$D$61,"*Residual*",$F$22:$F$61) -> 0 | E79: gallons | F79: =IF($D79="","",Mobile_FuelOil_CO2fctr*$D79) -> 0
A80: Aviation Gasoline | D80: =SUMIF($D$22:$D$61,"*Aviation Gasoline*",$F$22:$F$61) -> 0 | E80: gallons | F80: =IF($D80="","",Mobile_Avgas_CO2fctr*$D80) -> 0
A81: Kerosene-Type Jet Fuel | D81: =SUMIF($D$22:$D$61,"*Jet*",$F$22:$F$61) -> 0 | E81: gallons | F81: =IF($D81="","",Mobile_Jet_Fuel_CO2fctr*$D81) -> 0
A82: Liquefied Petroleum Gas (LPG) | D82: =SUMIF($D$22:$D$61,"*LPG*",$F$22:$F$61) -> 0 | E82: gallons | F82: =IF($D82="","",Mobile_LPG_CO2fctr*$D82) -> 0
A83: Ethanol | D83: =SUMIF($D$22:$D$61,"*Ethanol*",$F$22:$F$61) -> 0 | E83: gallons | F83: =IF(D83="","",Mobile_gas_CO2fctr*(100-$D$15)/100*$D83) -> 0 | G83: Note: emissions here are only for the gasoline portion of the fuel, biogenic CO2 emissions are reported below
A84: Biodiesel | D84: =SUMIF($D$22:$D$61,"*- Biodiesel",$F$22:$F$61) -> 0 | E84: gallons | F84: =IF(D84="","",Mobile_diesel_CO2fctr*(100-$D$14)/100*$D84) -> 0 | G84: Note: emissions here are only for the diesel portion of the fuel, biogenic CO2 emissions are reported below
A85: Liquefied Natural Gas (LNG) | D85: =SUMIF($D$22:$D$61,"*LNG*",$F$22:$F$61) -> 0 | E85: gallons | F85: =IF($D85="","",Mobile_LNG_CO2fctr*$D85) -> 0
A86: Compressed Natural Gas (CNG) | D86: =SUMIF($D$22:$D$61,"*CNG*",$F$22:$F$61) -> 0 | E86: scf | F86: =IF($D86="","",Mobile_CNG_CO2fctr*$D86) -> 0
A88: Total Organization-Wide On-Road Gasoline Mobile Source Mileage and CH4/N2O Emissions
A89: Vehicle Type | C89: Vehicle Year | D89: Mileage (miles) | E89: CH4 (g) | F89: N2O (g)
A90: Passenger Cars - Gasoline | C90: 1984-93 | D90: =SUMPRODUCT(--($D$22:$D$61=$A$90),--($E$22:$E$61<=1993),--($H$22:$H$61)) -> 0 | E90: =VLOOKUP(C90,Gas_Pass_Car_CH4_N2O, 2,FALSE)*D90 -> 0 | F90: =VLOOKUP(C90,Gas_Pass_Car_CH4_N2O, 3,FALSE)*D90 -> 0
C91: 1994 | D91: =SUMPRODUCT(--($D$22:$D$61=$A$90),--($E$22:$E$61=$C91),--($H$22:$H$61)) -> 0 | E91: =VLOOKUP(C91,Gas_Pass_Car_CH4_N2O, 2,FALSE)*D91 -> 0 | F91: 0
C92: 1995 | D92: =SUMPRODUCT(--($D$22:$D$61=$A$90),--($E$22:$E$61=$C92),--($H$22:$H$61)) -> 0 | E92: 0 | F92: 0
C93: 1996 | D93: =SUMPRODUCT(--($D$22:$D$61=$A$90),--($E$22:$E$61=$C93),--($H$22:$H$61)) -> 0 | E93: 0 | F93: 0
C94: 1997 | D94: 0 | E94: 0 | F94: 0
C95: 1998 | D95: 0 | E95: 0 | F95: 0
C96: 1999 | D96: 0 | E96: 0 | F96: 0
C97: 2000 | D97: 0 | E97: 0 | F97: 0
C98: 2001 | D98: 0 | E98: 0 | F98: 0
C99: 2002 | D99: 0 | E99: 0 | F99: 0
C100: 2003 | D100: 0 | E100: 0 | F100: 0
C101: 2004 | D101: 0 | E101: 0 | F101: 0
C102: 2005 | D102: 0 | E102: =VLOOKUP(C102,Gas_Pass_Car_CH4_N2O, 2,FALSE)*D102 -> 0 | F102: =VLOOKUP(C102,Gas_Pass_Car_CH4_N2O, 3,FALSE)*D102 -> 0
C103: 2006 | D103: 0 | E103: 0 | F103: 0
C104: 2007 | D104: 0 | E104: 0 | F104: 0
C105: 2008 | D105: 0 | E105: 0 | F105: 0
C106: 2009 | D106: 0 | E106: 0 | F106: 0
C107: 2010 | D107: 0 | E107: 0 | F107: 0
C108: 2011 | D108: 0 | E108: 0 | F108: 0
C109: 2012 | D109: 0 | E109: 0 | F109: 0
C110: 2013 | D110: 0 | E110: 0 | F110: 0
C111: 2014 | D111: 0 | E111: 0 | F111: 0
C112: 2015 | D112: 0 | E112: 0 | F112: 0
C113: 2016 | D113: 0 | E113: 0 | F113: 0
C114: 2017 | D114: =SUMPRODUCT(--($D$22:$D$61=$A$90),--($E$22:$E$61=$C114),--($H$22:$H$61)) -> 0 | E114: 0 | F114: 0
C115: 2018 | D115: =SUMPRODUCT(--($D$22:$D$61=$A$90),--($E$22:$E$61=$C115),--($H$22:$H$61)) -> 0 | E115: =VLOOKUP(C115,Gas_Pass_Car_CH4_N2O, 2,FALSE)*D115 -> 0 | F115: =VLOOKUP(C115,Gas_Pass_Car_CH4_N2O, 3,FALSE)*D115 -> 0
C116: 2019 | D116: =SUMPRODUCT(--($D$22:$D$61=$A$90),--($E$22:$E$61=$C116),--($H$22:$H$61)) -> 0 | E116: 0 | F116: 0
A117: Light-Duty Trucks - Gasoline | C117: 1987-93 | D117: =SUMPRODUCT(--($D$22:$D$61=$A$117),--($E$22:$E$61<=1993),--($H$22:$H$61)) -> 0 | E117: =VLOOKUP(C117,Gas_Lt_Duty_Trucks_CH4_N2O, 2,FALSE)*D117 -> 0 | F117: =VLOOKUP(C117,Gas_Lt_Duty_Trucks_CH4_N2O, 3,FALSE)*D117 -> 0
A118: (Vans, Pickup Trucks, SUVs) | C118: 1994 | D118: =SUMPRODUCT(--($D$22:$D$61=$A$117),--($E$22:$E$61=$C118),--($H$22:$H$61)) -> 0 | E118: 0 | F118: 0
C119: 1995 | D119: 0 | E119: 0 | F119: 0
C120: 1996 | D120: 0 | E120: 0 | F120: 0
C121: 1997 | D121: 0 | E121: 0 | F121: 0
C122: 1998 | D122: 0 | E122: 0 | F122: 0
C123: 1999 | D123: 0 | E123: 0 | F123: 0
C124: 2000 | D124: 0 | E124: 0 | F124: 0
C125: 2001 | D125: 0 | E125: 0 | F125: 0
C126: 2002 | D126: 0 | E126: 0 | F126: 0
C127: 2003 | D127: 0 | E127: 0 | F127: 0
C128: 2004 | D128: 0 | E128: 0 | F128: 0
C129: 2005 | D129: 0 | E129: =VLOOKUP(C129,Gas_Lt_Duty_Trucks_CH4_N2O, 2,FALSE)*D129 -> 0 | F129: =VLOOKUP(C129,Gas_Lt_Duty_Trucks_CH4_N2O, 3,FALSE)*D129 -> 0
C130: 2006 | D130: 0 | E130: 0 | F130: 0
C131: 2007 | D131: 0 | E131: 0 | F131: 0
C132: 2008 | D132: 0 | E132: 0 | F132: 0
C133: 2009 | D133: 0 | E133: 0 | F133: 0
C134: 2010 | D134: 0 | E134: 0 | F134: 0
C135: 2011 | D135: 0 | E135: 0 | F135: 0
C136: 2012 | D136: 0 | E136: 0 | F136: 0
C137: 2013 | D137: 0 | E137: 0 | F137: 0
C138: 2014 | D138: 0 | E138: 0 | F138: 0
C139: 2015 | D139: 0 | E139: 0 | F139: 0
C140: 2016 | D140: 0 | E140: =VLOOKUP(C140,Gas_Lt_Duty_Trucks_CH4_N2O, 2,FALSE)*D140 -> 0 | F140: =VLOOKUP(C140,Gas_Lt_Duty_Trucks_CH4_N2O, 3,FALSE)*D140 -> 0
C141: 2017 | D141: 0 | E141: 0 | F141: 0
C142: 2018 | D142: 0 | E142: 0 | F142: 0
C143: 2019 | D143: 0 | E143: 0 | F143: 0
A144: Heavy-Duty Vehicles - Gasoline | C144: 1985-86 | D144: =SUMPRODUCT(--($D$22:$D$61=$A$144),--($E$22:$E$61<=1986),--($H$22:$H$61)) -> 0 | E144: =VLOOKUP(C144,Gas_Heavy_Duty_CH4_N2O, 2,FALSE)*D144 -> 0 | F144: =VLOOKUP(C144,Gas_Heavy_Duty_CH4_N2O, 3,FALSE)*D144 -> 0
C145: 1987 | D145: =SUMPRODUCT(--($D$22:$D$61=$A$144),--($E$22:$E$61=$C145),--($H$22:$H$61)) -> 0 | E145: =VLOOKUP(C145,Gas_Heavy_Duty_CH4_N2O, 2,FALSE)*D145 -> 0 | F145: 0
C146: 1988-1989 | D146: =SUMPRODUCT(--($D$22:$D$61=$A$144),--($E$22:$E$61>=1988),--($E$22:$E$61<=1989),--($H$22:$H$61)) -> 0 | E146: =VLOOKUP(C146,Gas_Heavy_Duty_CH4_N2O, 2,FALSE)*D146 -> 0 | F146: 0
C147: 1990-1995 | D147: =SUMPRODUCT(--($D$22:$D$61=$A$144),--($E$22:$E$61>=1990),--($E$22:$E$61<=1995),--($H$22:$H$61)) -> 0 | E147: 0 | F147: 0
C148: 1996 | D148: =SUMPRODUCT(--($D$22:$D$61=$A$144),--($E$22:$E$61=$C148),--($H$22:$H$61)) -> 0 | E148: 0 | F148: 0
C149: 1997 | D149: 0 | E149: 0 | F149: 0
C150: 1998 | D150: 0 | E150: 0 | F150: 0
C151: 1999 | D151: 0 | E151: 0 | F151: 0
C152: 2000 | D152: 0 | E152: 0 | F152: 0
C153: 2001 | D153: 0 | E153: 0 | F153: 0
C154: 2002 | D154: 0 | E154: 0 | F154: 0
C155: 2003 | D155: 0 | E155: 0 | F155: 0
C156: 2004 | D156: 0 | E156: 0 | F156: 0
C157: 2005 | D157: 0 | E157: =VLOOKUP(C157,Gas_Heavy_Duty_CH4_N2O, 2,FALSE)*D157 -> 0 | F157: =VLOOKUP(C157,Gas_Heavy_Duty_CH4_N2O, 3,FALSE)*D157 -> 0
C158: 2006 | D158: 0 | E158: 0 | F158: 0
C159: 2007 | D159: 0 | E159: 0 | F159: 0
C160: 2008 | D160: 0 | E160: 0 | F160: 0
C161: 2009 | D161: 0 | E161: 0 | F161: 0
C162: 2010 | D162: 0 | E162: 0 | F162: 0
C163: 2011 | D163: 0 | E163: 0 | F163: 0
C164: 2012 | D164: 0 | E164: 0 | F164: 0
C165: 2013 | D165: 0 | E165: 0 | F165: 0
C166: 2014 | D166: 0 | E166: 0 | F166: 0
C167: 2015 | D167: 0 | E167: 0 | F167: 0
C168: 2016 | D168: 0 | E168: 0 | F168: 0
C169: 2017 | D169: 0 | E169: 0 | F169: 0
C170: 2018 | D170: 0 | E170: =VLOOKUP(C170,Gas_Heavy_Duty_CH4_N2O, 2,FALSE)*D170 -> 0 | F170: =VLOOKUP(C170,Gas_Heavy_Duty_CH4_N2O, 3,FALSE)*D170 -> 0
C171: 2019 | D171: 0 | E171: 0 | F171: 0
A172: Motorcycles - Gasoline | C172: 1960-1995 | D172: =SUMPRODUCT(--($D$22:$D$61=$A$172),--($E$22:$E$61<=1995),--($H$22:$H$61)) -> 0 | E172: =VLOOKUP(C172,Gas_Motorcycle_CH4_N2O, 2,FALSE)*D172 -> 0 | F172: =VLOOKUP(C172,Gas_Motorcycle_CH4_N2O, 3,FALSE)*D172 -> 0
C173: 1996-2019 | D173: =SUMPRODUCT(--($D$22:$D$61=$A$172),--($E$22:$E$61>=1996),--($H$22:$H$61)) -> 0 | E173: =VLOOKUP(C173,Gas_Motorcycle_CH4_N2O, 2,FALSE)*D173 -> 0 | F173: =VLOOKUP(C173,Gas_Motorcycle_CH4_N2O, 3,FALSE)*D173 -> 0
A175: Total Organization-Wide On-Road Non-Gasoline Mobile Source Mileage and CH4/N2O Emissions
A176: Vehicle Type | B176: Fuel Type | C176: Vehicle Year | D176: Mileage (miles) | E176: CH4 (g) | F176: N2O (g)
A177: Passenger Cars - Diesel | B177: Diesel | C177: 1960-1982 | D177: =SUMPRODUCT(--($D$22:$D$61=$A$177),--($E$22:$E$61<=1982),--($H$22:$H$61)) -> 0 | E177: =VLOOKUP($C177,Diesel_pass_CH4_N2O, 2,FALSE)*$D177 -> 0 | F177: =VLOOKUP($C177,Diesel_pass_CH4_N2O, 3,FALSE)*$D177 -> 0
C178: 1983-2006 | D178: =SUMPRODUCT(--($D$22:$D$61=$A$177),--($E$22:$E$61>=1983),--($E$22:$E$61<=2006),--($H$22:$H$61)) -> 0 | E178: =VLOOKUP($C178,Diesel_pass_CH4_N2O, 2,FALSE)*$D178 -> 0 | F178: =VLOOKUP($C178,Diesel_pass_CH4_N2O, 3,FALSE)*$D178 -> 0
C179: 2007-2019 | D179: =SUMPRODUCT(--($D$22:$D$61=$A$177),--($E$22:$E$61>=2007),--($H$22:$H$61)) -> 0 | E179: =VLOOKUP($C179,Diesel_pass_CH4_N2O, 2,FALSE)*$D179 -> 0 | F179: =VLOOKUP($C179,Diesel_pass_CH4_N2O, 3,FALSE)*$D179 -> 0
A180: Light-Duty Trucks - Diesel | B180: Diesel | C180: 1960-1982 | D180: =SUMPRODUCT(--($D$22:$D$61=$A$180),--($E$22:$E$61<=1982),--($H$22:$H$61)) -> 0 | E180: =VLOOKUP($C180,Diesel_Lt_Trucks_CH4_N2O, 2,FALSE)*$D180 -> 0 | F180: =VLOOKUP($C180,Diesel_Lt_Trucks_CH4_N2O, 3,FALSE)*$D180 -> 0
C181: 1983-2006 | D181: =SUMPRODUCT(--($D$22:$D$61=$A$180),--($E$22:$E$61>=1983),--($E$22:$E$61<=2006),--($H$22:$H$61)) -> 0 | E181: =VLOOKUP($C181,Diesel_Lt_Trucks_CH4_N2O, 2,FALSE)*$D181 -> 0 | F181: =VLOOKUP($C181,Diesel_Lt_Trucks_CH4_N2O, 3,FALSE)*$D181 -> 0
C182: 2007-2019 | D182: =SUMPRODUCT(--($D$22:$D$61=$A$180),--($E$22:$E$61>=2007),--($H$22:$H$61)) -> 0 | E182: =VLOOKUP($C182,Diesel_Lt_Trucks_CH4_N2O, 2,FALSE)*$D182 -> 0 | F182: =VLOOKUP($C182,Diesel_Lt_Trucks_CH4_N2O, 3,FALSE)*$D182 -> 0
A183: Medium- and Heavy-Duty Vehicles - Diesel | B183: Diesel | C183: 1960-2006 | D183: =SUMPRODUCT(--($D$22:$D$61=$A$183),--($E$22:$E$61<=2006),--($H$22:$H$61)) -> 0 | E183: =VLOOKUP($C183,Diesel_Heavy_Trucks_CH4_N2O, 2,FALSE)*$D183 -> 0 | F183: =VLOOKUP($C183,Diesel_Heavy_Trucks_CH4_N2O, 3,FALSE)*$D183 -> 0
C184: 2007-2019 | D184: =SUMPRODUCT(--($D$22:$D$61=$A$183),--($E$22:$E$61>=2007),--($H$22:$H$61)) -> 0 | E184: =VLOOKUP($C184,Diesel_Heavy_Trucks_CH4_N2O, 2,FALSE)*$D184 -> 0 | F184: =VLOOKUP($C184,Diesel_Heavy_Trucks_CH4_N2O, 3,FALSE)*$D184 -> 0
A185: Light-Duty Cars | B185: Methanol | D185: =SUMIF($D$22:$D$61,$A$185&" - "&B185,$H$22:$H$61) -> 0 | E185: ='Emission Factors'!D134*D185 -> 0 | F185: ='Emission Factors'!E134*D185 -> 0
B186: Ethanol | D186: =SUMIF($D$22:$D$61,$A$185&" - "&B186,$H$22:$H$61) -> 0 | E186: ='Emission Factors'!D135*D186 -> 0 | F186: ='Emission Factors'!E135*D186 -> 0
B187: CNG | D187: =SUMIF($D$22:$D$61,$A$185&" - "&B187,$H$22:$H$61) -> 0 | E187: ='Emission Factors'!D136*D187 -> 0 | F187: ='Emission Factors'!E136*D187 -> 0
B188: LPG | D188: =SUMIF($D$22:$D$61,$A$185&" - "&B188,$H$22:$H$61) -> 0 | E188: ='Emission Factors'!D137*D188 -> 0 | F188: ='Emission Factors'!E137*D188 -> 0
B189: Biodiesel | D189: =SUMIF($D$22:$D$61,$A$185&" - "&B189,$H$22:$H$61) -> 0 | E189: ='Emission Factors'!D138*D189 -> 0 | F189: ='Emission Factors'!E138*D189 -> 0
A190: Light-Duty Trucks | B190: Ethanol | D190: =SUMIF($D$22:$D$61,$A$190&" - "&B190,$H$22:$H$61) -> 0 | E190: ='Emission Factors'!D139*D190 -> 0 | F190: ='Emission Factors'!E139*D190 -> 0
B191: CNG | D191: =SUMIF($D$22:$D$61,$A$190&" - "&B191,$H$22:$H$61) -> 0 | E191: ='Emission Factors'!D140*D191 -> 0 | F191: ='Emission Factors'!E140*D191 -> 0
B192: LPG | D192: =SUMIF($D$22:$D$61,$A$190&" - "&B192,$H$22:$H$61) -> 0 | E192: ='Emission Factors'!D141*D192 -> 0 | F192: ='Emission Factors'!E141*D192 -> 0
B193: LNG | D193: =SUMIF($D$22:$D$61,$A$190&" - "&B193,$H$22:$H$61) -> 0 | E193: ='Emission Factors'!D142*D193 -> 0 | F193: ='Emission Factors'!E142*D193 -> 0
B194: Biodiesel | D194: =SUMIF($D$22:$D$61,$A$190&" - "&B194,$H$22:$H$61) -> 0 | E194: ='Emission Factors'!D143*D194 -> 0 | F194: ='Emission Factors'!E143*D194 -> 0
A195: Medium-Duty Trucks | B195: CNG | D195: =SUMIF($D$22:$D$61,$A$195&" - "&B195,$H$22:$H$61) -> 0 | E195: ='Emission Factors'!D144*D195 -> 0 | F195: ='Emission Factors'!E144*D195 -> 0
B196: LPG | D196: =SUMIF($D$22:$D$61,$A$195&" - "&B196,$H$22:$H$61) -> 0 | E196: ='Emission Factors'!D145*D196 -> 0 | F196: ='Emission Factors'!E145*D196 -> 0
B197: LNG | D197: =SUMIF($D$22:$D$61,$A$195&" - "&B197,$H$22:$H$61) -> 0 | E197: ='Emission Factors'!D146*D197 -> 0 | F197: ='Emission Factors'!E146*D197 -> 0
B198: Biodiesel | D198: =SUMIF($D$22:$D$61,$A$195&" - "&B198,$H$22:$H$61) -> 0 | E198: ='Emission Factors'!D147*D198 -> 0 | F198: ='Emission Factors'!E147*D198 -> 0
A199: Heavy-Duty Trucks | B199: Methanol | D199: =SUMIF($D$22:$D$61,$A$199&" - "&B199,$H$22:$H$61) -> 0 | E199: ='Emission Factors'!D148*D199 -> 0 | F199: ='Emission Factors'!E148*D199 -> 0
B200: Ethanol | D200: 0 | E200: ='Emission Factors'!D149*D200 -> 0 | F200: ='Emission Factors'!E149*D200 -> 0
B201: CNG | D201: 0 | E201: ='Emission Factors'!D150*D201 -> 0 | F201: ='Emission Factors'!E150*D201 -> 0
B202: LPG | D202: 0 | E202: ='Emission Factors'!D151*D202 -> 0 | F202: ='Emission Factors'!E151*D202 -> 0
B203: LNG | D203: 0 | E203: ='Emission Factors'!D152*D203 -> 0 | F203: ='Emission Factors'!E152*D203 -> 0
B204: Biodiesel | D204: 0 | E204: ='Emission Factors'!D153*D204 -> 0 | F204: ='Emission Factors'!E153*D204 -> 0
A205: Buses | B205: Methanol | D205: =SUMIF($D$22:$D$61,$A$205&" - "&B205,$H$22:$H$61) -> 0 | E205: ='Emission Factors'!D154*D205 -> 0 | F205: ='Emission Factors'!E154*D205 -> 0
B206: Ethanol | D206: 0 | E206: ='Emission Factors'!D155*D206 -> 0 | F206: ='Emission Factors'!E155*D206 -> 0
B207: CNG | D207: 0 | E207: ='Emission Factors'!D156*D207 -> 0 | F207: ='Emission Factors'!E156*D207 -> 0
B208: LPG | D208: 0 | E208: ='Emission Factors'!D157*D208 -> 0 | F208: ='Emission Factors'!E157*D208 -> 0
B209: LNG | D209: 0 | E209: ='Emission Factors'!D158*D209 -> 0 | F209: ='Emission Factors'!E158*D209 -> 0
B210: Biodiesel | D210: 0 | E210: ='Emission Factors'!D159*D210 -> 0 | F210: ='Emission Factors'!E159*D210 -> 0
A212: Total Organization-Wide Non-Road Mobile Source Fuel Usage and CH4/N2O Emissions
A213: Vehicle Type | B213: Fuel Type | C213: Fuel Usage (gallons) | D213: CH4 (g) | E213: N2O (g)
A214: Ships and Boats | B214: Residual Fuel Oil | C214: =SUMIF($D$22:$D$61,$A$214&" - "&B214,$F$22:$F$61) -> 0 | D214: ='Emission Factors'!C163*C214 -> 0 | E214: ='Emission Factors'!D163*C214 -> 0
B215: Gasoline (2 stroke) | C215: =SUMIF($D$22:$D$61,$A$214&" - "&B215,$F$22:$F$61) -> 0 | D215: ='Emission Factors'!C164*C215 -> 0 | E215: ='Emission Factors'!D164*C215 -> 0
B216: Gasoline (4 stroke) | C216: =SUMIF($D$22:$D$61,$A$214&" - "&B216,$F$22:$F$61) -> 0 | D216: ='Emission Factors'!C165*C216 -> 0 | E216: ='Emission Factors'!D165*C216 -> 0
B217: Diesel | C217: =SUMIF($D$22:$D$61,$A$214&" - "&B217,$F$22:$F$61) -> 0 | D217: ='Emission Factors'!C166*C217 -> 0 | E217: ='Emission Factors'!D166*C217 -> 0
A218: Locomotives | B218: Diesel | C218: =SUMIF($D$22:$D$61,$A$218&" - "&B218,$F$22:$F$61) -> 0 | D218: ='Emission Factors'!C167*C218 -> 0 | E218: ='Emission Factors'!D167*C218 -> 0
A219: Aircraft | B219: Jet Fuel | C219: =SUMIF($D$22:$D$61,$A$219&" - "&B219,$F$22:$F$61) -> 0 | D219: ='Emission Factors'!C168*C219 -> 0 | E219: ='Emission Factors'!D168*C219 -> 0
B220: Aviation Gasoline | C220: =SUMIF($D$22:$D$61,$A$219&" - "&B220,$F$22:$F$61) -> 0 | D220: ='Emission Factors'!C169*C220 -> 0 | E220: ='Emission Factors'!D169*C220 -> 0
A221: Agricultural Equipment | B221: Gasoline (2 stroke) | C221: =SUMIF($D$22:$D$61,$A$221&" - "&B221,$F$22:$F$61) -> 0 | D221: ='Emission Factors'!C170*C221 -> 0 | E221: ='Emission Factors'!D170*C221 -> 0
B222: Gasoline (4 stroke) | C222: =SUMIF($D$22:$D$61,$A$221&" - "&B222,$F$22:$F$61) -> 0 | D222: ='Emission Factors'!C171*C222 -> 0 | E222: ='Emission Factors'!D171*C222 -> 0
B223: Diesel | C223: =SUMIF($D$22:$D$61,$A$221&" - "&B223,$F$22:$F$61) -> 0 | D223: ='Emission Factors'!C172*C223 -> 0 | E223: ='Emission Factors'!D172*C223 -> 0
B224: LPG | C224: =SUMIF($D$22:$D$61,$A$221&" - "&B224,$F$22:$F$61) -> 0 | D224: ='Emission Factors'!C173*C224 -> 0 | E224: ='Emission Factors'!D173*C224 -> 0
A225: Agricultural Offroad Trucks | B225: Gasoline | C225: =SUMIF($D$22:$D$61,$A$225&" - "&B225,$F$22:$F$61) -> 0 | D225: ='Emission Factors'!C174*C225 -> 0 | E225: ='Emission Factors'!D174*C225 -> 0
B226: Diesel | C226: =SUMIF($D$22:$D$61,$A$225&" - "&B226,$F$22:$F$61) -> 0 | D226: ='Emission Factors'!C175*C226 -> 0 | E226: ='Emission Factors'!D175*C226 -> 0
A227: Construction/Mining Equipment | B227: Gasoline (2 stroke) | C227: =SUMIF($D$22:$D$61,$A$227&" - "&B227,$F$22:$F$61) -> 0 | D227: ='Emission Factors'!C176*C227 -> 0 | E227: ='Emission Factors'!D176*C227 -> 0
B228: Gasoline (4 stroke) | C228: =SUMIF($D$22:$D$61,$A$227&" - "&B228,$F$22:$F$61) -> 0 | D228: ='Emission Factors'!C177*C228 -> 0 | E228: ='Emission Factors'!D177*C228 -> 0
B229: Diesel | C229: =SUMIF($D$22:$D$61,$A$227&" - "&B229,$F$22:$F$61) -> 0 | D229: ='Emission Factors'!C178*C229 -> 0 | E229: ='Emission Factors'!D178*C229 -> 0
B230: LPG | C230: =SUMIF($D$22:$D$61,$A$227&" - "&B230,$F$22:$F$61) -> 0 | D230: ='Emission Factors'!C179*C230 -> 0 | E230: ='Emission Factors'!D179*C230 -> 0
A231: Construction/Mining Offroad Trucks | B231: Gasoline | C231: =SUMIF($D$22:$D$61,$A$231&" - "&B231,$F$22:$F$61) -> 0 | D231: ='Emission Factors'!C180*C231 -> 0 | E231: ='Emission Factors'!D180*C231 -> 0
B232: Diesel | C232: =SUMIF($D$22:$D$61,$A$231&" - "&B232,$F$22:$F$61) -> 0 | D232: ='Emission Factors'!C181*C232 -> 0 | E232: ='Emission Factors'!D181*C232 -> 0
A233: Lawn and Garden Equipment | B233: Gasoline (2 stroke) | C233: =SUMIF($D$22:$D$61,$A$233&" - "&B233,$F$22:$F$61) -> 0 | D233: ='Emission Factors'!C182*C233 -> 0 | E233: ='Emission Factors'!D182*C233 -> 0
B234: Gasoline (4 stroke) | C234: =SUMIF($D$22:$D$61,$A$233&" - "&B234,$F$22:$F$61) -> 0 | D234: ='Emission Factors'!C183*C234 -> 0 | E234: ='Emission Factors'!D183*C234 -> 0
B235: Diesel | C235: =SUMIF($D$22:$D$61,$A$233&" - "&B235,$F$22:$F$61) -> 0 | D235: ='Emission Factors'!C184*C235 -> 0 | E235: ='Emission Factors'!D184*C235 -> 0
B236: LPG | C236: =SUMIF($D$22:$D$61,$A$233&" - "&B236,$F$22:$F$61) -> 0 | D236: ='Emission Factors'!C185*C236 -> 0 | E236: ='Emission Factors'!D185*C236 -> 0
A237: Airport Equipment | B237: Gasoline | C237: =SUMIF($D$22:$D$61,$A$237&" - "&B237,$F$22:$F$61) -> 0 | D237: ='Emission Factors'!C186*C237 -> 0 | E237: ='Emission Factors'!D186*C237 -> 0
B238: Diesel | C238: =SUMIF($D$22:$D$61,$A$237&" - "&B238,$F$22:$F$61) -> 0 | D238: ='Emission Factors'!C187*C238 -> 0 | E238: ='Emission Factors'!D187*C238 -> 0
B239: LPG | C239: =SUMIF($D$22:$D$61,$A$237&" - "&B239,$F$22:$F$61) -> 0 | D239: ='Emission Factors'!C188*C239 -> 0 | E239: ='Emission Factors'!D188*C239 -> 0
A240: Industrial/Commercial Equipment | B240: Gasoline (2 stroke) | C240: =SUMIF($D$22:$D$61,$A$240&" - "&B240,$F$22:$F$61) -> 0 | D240: ='Emission Factors'!C189*C240 -> 0 | E240: ='Emission Factors'!D189*C240 -> 0
B241: Gasoline (4 stroke) | C241: =SUMIF($D$22:$D$61,$A$240&" - "&B241,$F$22:$F$61) -> 0 | D241: ='Emission Factors'!C190*C241 -> 0 | E241: ='Emission Factors'!D190*C241 -> 0
B242: Diesel | C242: =SUMIF($D$22:$D$61,$A$240&" - "&B242,$F$22:$F$61) -> 0 | D242: ='Emission Factors'!C191*C242 -> 0 | E242: ='Emission Factors'!D191*C242 -> 0
B243: LPG | C243: =SUMIF($D$22:$D$61,$A$240&" - "&B243,$F$22:$F$61) -> 0 | D243: ='Emission Factors'!C192*C243 -> 0 | E243: ='Emission Factors'!D192*C243 -> 0
A244: Logging Equipment | B244: Gasoline (2 stroke) | C244: =SUMIF($D$22:$D$61,$A$244&" - "&B244,$F$22:$F$61) -> 0 | D244: ='Emission Factors'!C193*C244 -> 0 | E244: ='Emission Factors'!D193*C244 -> 0
B245: Gasoline (4 stroke) | C245: =SUMIF($D$22:$D$61,$A$244&" - "&B245,$F$22:$F$61) -> 0 | D245: ='Emission Factors'!C194*C245 -> 0 | E245: ='Emission Factors'!D194*C245 -> 0
B246: Diesel | C246: =SUMIF($D$22:$D$61,$A$244&" - "&B246,$F$22:$F$61) -> 0 | D246: ='Emission Factors'!C195*C246 -> 0 | E246: ='Emission Factors'!D195*C246 -> 0
A247: Railroad Equipment | B247: Gasoline | C247: =SUMIF($D$22:$D$61,$A$247&" - "&B247,$F$22:$F$61) -> 0 | D247: ='Emission Factors'!C196*C247 -> 0 | E247: ='Emission Factors'!D196*C247 -> 0
B248: Diesel | C248: =SUMIF($D$22:$D$61,$A$247&" - "&B248,$F$22:$F$61) -> 0 | D248: ='Emission Factors'!C197*C248 -> 0 | E248: ='Emission Factors'!D197*C248 -> 0
... 9 more rows

Sheet Refrigeration and AC
A3: Scope 1 Emissions from Refrigeration and Air Conditioning Equipment
A5: Guidance
A6: (A) HFC, PFC, CO2, and SF6 refrigerants from facilities and vehicles are required to be included in the GHG inventory. Ozone depleting substances, such as CFCs and HCFCs, are regulated internationally and are typically excluded from a GHG inventory or reported as a memo item.
A7: (B) Select ONE of the three options with which to estimate emissions. Options range from most preferred method (Option 1) to least preferred method (Option 3). If option 3, screening method, is used and emissions are determined to be significant when compared to other emission sources, then one of the other methods should be applied to calculate emissions more accurately.
A8: (C) Enter annual data in ORANGE cells as appropriate for the selected option.
A10: Option 1. Material Balance Method: Enter organization-wide total gases stored and transferred (by gas) in Table 1.
A11: - Choose the appropriate gas from the Gas drop down menu.
A12: - Inventory Change = difference of gas stored in inventory from beginning to end of reporting period.
A13: (Includes only gas stored on-site (i.e. cylinders) and not gas contained within equipment).
A14: - Transferred Amount = gas purchased minus gas sold/disposed during reporting period.
A15: -- Gas purchased includes: Purchases for inventory, as part of equipment servicing (not from inventory),
A16: within purchased equipment, and gas returned to the site after off-site recycling.
A17: -- Gas sold/disposed includes: Returns to supplier, sales or disposals (including within equipment),
A18: and gas sent off-site for recycling, reclamation, or destruction.
A19: - Capacity Change = capacity of all units at beginning minus capacity of all units at end of reporting period.
A20: (can be assumed to be capacity of new units minus capacity of retired units).
A22: Table 1. Organization-Wide Refrigeration Gas CO2 Equivalent Emissions - Material Balance
A23: Gas | B23: Gas | C23: Inventory | D23: Transferred | E23: Capacity | F23: CO2 Equivalent
B24: GWP | C24: Change | D24: Amount | E24: Change | F24: Emissions
C25: (lb) | D25: (lb) | E25: (lb) | F25: (lb)
B26: =IF(A26="","",VLOOKUP(A26,GWP,2,FALSE)) ->  | F26: =IF(B26="", "",IF(($C26+$D26+$E26)*$B26<0,0,($C26+$D26+$E26)*$B26)) -> 
F29: =IF(B29="", "",IF(($C29+$D29+$E29)*$B29<0,0,($C29+$D29+$E29)*$B29)) -> 
A38: Option 2. Material Balance Method (Simplified): Enter organization-wide total gases in units (by gas) in Table 2.
A39: - Choose the appropriate gas from the drop down menu.
A40: - New units are those installed during reporting period (do not include any data for new units pre-charged by
A41: supplier), disposed units were disposed of during the reporting period, and existing units are all others.
A42: - Charge/Recharge = gas added to units by organization or a contractor (do not include pre-charge by manufacturer).
A43: - Capacity = sum of the full capacity for all units (do not include new units pre-charged by manufacturer).
A44: - Amount recovered = total gas recovered from all retired units.
A46: Table 2. Organization-Wide Refrigeration Gas CO2 Equivalent Emissions - Simplified Material Balance
A47: Gas | B47: Gas | C47: New Units | E47: Existing Units | F47: Disposed Units | H47: CO2 Equivalent
B48: GWP | C48: Charge | D48: Capacity | E48: Recharge | F48: Capacity | G48: Recovered | H48: Emissions
C49: (lb) | D49: (lb) | E49: (lb) | F49: (lb) | G49: (lb) | H49: (lb)
B50: =IF(A50="","",VLOOKUP(A50,GWP,2,FALSE)) ->  | H50: =IF(B50="","",IF(($C50-$D50+$E50+$F50-$G50)*$B50<0,0,($C50-$D50+$E50+$F50-$G50)*$B50)) -> 
H51: =IF(B51="","",IF(($C51-$D51+$E51+$F51-$G51)*$B51<0,0,($C51-$D51+$E51+$F51-$G51)*$B51)) -> 
A62: Option 3. Screening Method: Enter refrigerant information for each unit or group of units (by refrigerant) in Table 3.
A63: - Select the "Type of Equipment" (closest available) and "Gas" from the drop down box.
A64: - Enter amount of refrigerant added to new units by the organization (not pre-charged amount from manufacturer).
A65: - Enter refrigerant capacity (by equipment type and refrigerant) for all units operating and disposed during reporting period.
A66: -- For each unit added or removed during reporting period, multiply its capacity by a usage factor (0.0 to 1.0). For example, if the equipment was installed in June, multiply by 0.5 or (6/12), if it was installed in September you would multiply by 0.33 (4/12).
A67: -- If data entered for multiple units, sum the capacities or charge quantity for all like units.
A68: -- If capacity of unit(s) is not known, use upper value of default capacity provided in the Reference Table below.
A69: - See example entry in first row (GREEN Italics).
A71: Table 3. Source Level Refrigeration Gas CO2 Equivalent Emissions - Screening Method
A72: Source ID | B72: Type of Equipment | C72: Gas | D72: Gas GWP | E72: New Units | F72: Capacity | H72: CO2
E73: Charge | F73: Operating | G73: Disposed | H73: Equivalent
E74: (kg) | F74: Units | G74: Units | H74: Emissions
F75: (kg) | G75: (kg) | H75: (kg) | Q75: Formula Selection for Type of Equipment
A76: Bldg-012 | B76: Domestic Refrigeration | C76: HFC-32 | D76: =IF(ISNA(VLOOKUP($C76,GWP,2,FALSE)),"", VLOOKUP($C76,GWP,2,FALSE)) -> 675 | E76: 1000 | F76: =0.5 -> 0.5 | G76: 0.25 | H76: =($E76*(1/100)+$F76*(0.5/100)+$G76*(80/100)*(1-70/100))*$D76 -> 6792.1875 | Q76: Domestic Refrigeration | R76: Stand-Alone Commercial | S76: Medium/Large Commercial | T76: Transport Refrigeration | U76: Industrial Refrigeration | V76: Chillers | W76: Residential/Commercial A/C | X76: Car A/C Units | Y76: Light-Duty Truck A/C Units
H77: =IF($D77="","",SUM($Q77:$Y77)) ->  | Q77: =IF($B77=Q76,(($E77*(1/100)+$F77*(0.5/100)+$G77*(80/100)*(1-70/100))*$D77),0) -> 0 | R77: =IF($B77="Stand-Alone Commercial",(($E77*(3/100)+$F77*(15/100)+$G77*(80/100)*(1-70/100))*$D77),0) -> 0 | S77: =IF($B77="Medium/Large Commercial",(($E77*(3/100)+$F77*(35/100)+$G77*(100/100)*(1-70/100))*$D77),0) -> 0 | T77: =IF($B77="Transport Refrigeration",(($E77*(1/100)+$F77*(50/100)+$G77*(50/100)*(1-70/100))*$D77),0) -> 0 | U77: =IF($B77="Industrial Refrigeration",(($E77*(3/100)+$F77*(25/100)+$G77*(100/100)*(1-90/100))*$D77),0) -> 0 | V77: =IF($B77="Chillers",(($E77*(1/100)+$F77*(15/100)+$G77*(100/100)*(1-95/100))*$D77),0) -> 0 | W77: =IF($B77="Residential/Commercial A/C",(($E77*(1/100)+$F77*(10/100)+$G77*(80/100)*(1-80/100))*$D77),0) -> 0 | X77: =IF($B77="Car A/C Units",(($E77*(0.5/100)+$F77*(20/100)+$G77*(50/100)*(1-50/100))*$D77),0) -> 0 | Y77: =IF($B77="Light-Duty Truck A/C Units",(($E77*(0.5/100)+$F77*(20/100)+$G77*(50/100)*(1-50/100))*$D77),0) -> 0
H78: =IF($D78="","",SUM($Q78:$Y78)) ->  | Q78: =IF($B78="Domestic Refrigeration",(($E78*(1/100)+$F78*(0.5/100)+$G78*(80/100)*(1-70/100))*$D78),0) -> 0 | R78: =IF($B78="Stand-Alone Commercial",(($E78*(3/100)+$F78*(15/100)+$G78*(80/100)*(1-70/100))*$D78),0) -> 0 | S78: =IF($B78="Medium/Large Commercial",(($E78*(3/100)+$F78*(35/100)+$G78*(100/100)*(1-70/100))*$D78),0) -> 0 | T78: =IF($B78="Transport Refrigeration",(($E78*(1/100)+$F78*(50/100)+$G78*(50/100)*(1-70/100))*$D78),0) -> 0 | U78: =IF($B78="Industrial Refrigeration",(($E78*(3/100)+$F78*(25/100)+$G78*(100/100)*(1-90/100))*$D78),0) -> 0 | V78: =IF($B78="Chillers",(($E78*(1/100)+$F78*(15/100)+$G78*(100/100)*(1-95/100))*$D78),0) -> 0 | W78: =IF($B78="Residential/Commercial A/C",(($E78*(1/100)+$F78*(10/100)+$G78*(80/100)*(1-80/100))*$D78),0) -> 0 | X78: =IF($B78="Car A/C Units",(($E78*(0.5/100)+$F78*(20/100)+$G78*(50/100)*(1-50/100))*$D78),0) -> 0 | Y78: =IF($B78="Light-Duty Truck A/C Units",(($E78*(0.5/100)+$F78*(20/100)+$G78*(50/100)*(1-50/100))*$D78),0) -> 0
Q79: 0 | R79: 0 | S79: 0 | T79: 0 | U79: 0 | V79: 0 | W79: 0 | X79: 0 | Y79: 0
Q80: 0 | R80: 0 | S80: 0 | T80: 0 | U80: 0 | V80: 0 | W80: 0 | X80: 0 | Y80: 0
Q81: 0 | R81: 0 | S81: 0 | T81: 0 | U81: 0 | V81: 0 | W81: 0 | X81: 0 | Y81: 0
Q82: 0 | R82: 0 | S82: 0 | T82: 0 | U82: 0 | V82: 0 | W82: 0 | X82: 0 | Y82: 0
Q83: 0 | R83: 0 | S83: 0 | T83: 0 | U83: 0 | V83: 0 | W83: 0 | X83: 0 | Y83: 0
Q84: 0 | R84: 0 | S84: 0 | T84: 0 | U84: 0 | V84: 0 | W84: 0 | X84: 0 | Y84: 0
Q85: 0 | R85: 0 | S85: 0 | T85: 0 | U85: 0 | V85: 0 | W85: 0 | X85: 0 | Y85: 0
Q86: 0 | R86: 0 | S86: 0 | T86: 0 | U86: 0 | V86: 0 | W86: 0 | X86: 0 | Y86: 0
Q87: 0 | R87: 0 | S87: 0 | T87: 0 | U87: 0 | V87: 0 | W87: 0 | X87: 0 | Y87: 0
Q88: 0 | R88: 0 | S88: 0 | T88: 0 | U88: 0 | V88: 0 | W88: 0 | X88: 0 | Y88: 0
Q89: 0 | R89: 0 | S89: 0 | T89: 0 | U89: 0 | V89: 0 | W89: 0 | X89: 0 | Y89: 0
Q90: =IF($B90="Domestic Refrigeration",(($E90*(1/100)+$F90*(0.5/100)+$G90*(80/100)*(1-70/100))*$D90),0) -> 0 | R90: 0 | S90: 0 | T90: 0 | U90: 0 | V90: 0 | W90: 0 | X90: 0 | Y90: 0
Q91: 0 | R91: 0 | S91: 0 | T91: 0 | U91: 0 | V91: 0 | W91: 0 | X91: 0 | Y91: 0
Q92: 0 | R92: 0 | S92: 0 | T92: 0 | U92: 0 | V92: 0 | W92: 0 | X92: 0 | Y92: 0
D93: =IF(ISNA(VLOOKUP($C93,GWP,2,FALSE)),"", VLOOKUP($C93,GWP,2,FALSE)) ->  | Q93: 0 | R93: 0 | S93: 0 | T93: 0 | U93: 0 | V93: 0 | W93: 0 | X93: 0 | Y93: 0
Q94: 0 | R94: 0 | S94: 0 | T94: 0 | U94: 0 | V94: 0 | W94: 0 | X94: 0 | Y94: 0
Q95: 0 | R95: 0 | S95: 0 | T95: 0 | U95: 0 | V95: 0 | W95: 0 | X95: 0 | Y95: 0
Q96: 0 | R96: 0 | S96: 0 | T96: 0 | U96: 0 | V96: 0 | W96: 0 | X96: 0 | Y96: 0
Q97: 0 | R97: 0 | S97: 0 | T97: 0 | U97: 0 | V97: 0 | W97: 0 | X97: 0 | Y97: 0
Q98: 0 | R98: 0 | S98: 0 | T98: 0 | U98: 0 | V98: 0 | W98: 0 | X98: 0 | Y98: 0
Q99: 0 | R99: 0 | S99: 0 | T99: 0 | U99: 0 | V99: 0 | W99: 0 | X99: 0 | Y99: 0
Q100: 0 | R100: 0 | S100: 0 | T100: 0 | U100: 0 | V100: 0 | W100: 0 | X100: 0 | Y100: 0
Q101: 0 | R101: 0 | S101: 0 | T101: 0 | U101: 0 | V101: 0 | W101: 0 | X101: 0 | Y101: 0
Q102: 0 | R102: 0 | S102: 0 | T102: 0 | U102: 0 | V102: 0 | W102: 0 | X102: 0 | Y102: 0
Q103: 0 | R103: 0 | S103: 0 | T103: 0 | U103: 0 | V103: 0 | W103: 0 | X103: 0 | Y103: 0
Q104: 0 | R104: 0 | S104: 0 | T104: 0 | U104: 0 | V104: 0 | W104: 0 | X104: 0 | Y104: 0
Q105: 0 | R105: 0 | S105: 0 | T105: 0 | U105: 0 | V105: 0 | W105: 0 | X105: 0 | Y105: 0
Q106: 0 | R106: 0 | S106: 0 | T106: 0 | U106: 0 | V106: 0 | W106: 0 | X106: 0 | Y106: 0
Q107: 0 | R107: 0 | S107: 0 | T107: 0 | U107: 0 | V107: 0 | W107: 0 | X107: 0 | Y107: 0
Q108: 0 | R108: 0 | S108: 0 | T108: 0 | U108: 0 | V108: 0 | W108: 0 | X108: 0 | Y108: 0
Q109: 0 | R109: 0 | S109: 0 | T109: 0 | U109: 0 | V109: 0 | W109: 0 | X109: 0 | Y109: 0
Q110: 0 | R110: 0 | S110: 0 | T110: 0 | U110: 0 | V110: 0 | W110: 0 | X110: 0 | Y110: 0
Q111: 0 | R111: 0 | S111: 0 | T111: 0 | U111: 0 | V111: 0 | W111: 0 | X111: 0 | Y111: 0
Q112: 0 | R112: 0 | S112: 0 | T112: 0 | U112: 0 | V112: 0 | W112: 0 | X112: 0 | Y112: 0
Q113: 0 | R113: 0 | S113: 0 | T113: 0 | U113: 0 | V113: 0 | W113: 0 | X113: 0 | Y113: 0
Q114: 0 | R114: 0 | S114: 0 | T114: 0 | U114: 0 | V114: 0 | W114: 0 | X114: 0 | Y114: 0
A116: Reference Table: Type of Equipment and Default Capacity Ranges (Lower to Upper Range) for Table 3
A117: Domestic Refrigeration | C117: Domestic refrigeration units (capacity 0.05 to 0.5 kg)
A118: Stand-Alone Commercial | C118: Stand alone commercial applications (capacity 0.2 to 6 kg)
A119: Medium/Large Commercial | C119: Medium and large commercial refrigeration units (capacity 50 to 2,000 kg)
A120: Transport Refrigeration | C120: Transportation refrigeration units (capacity 3 to 8 kg)
A121: Industrial Refrigeration | C121: Industrial, food processing and cold storage units (capacity 10 to 10,000 kg)
A122: Chillers | C122: Commercial chillers (default capacity 10 to 2,000 kg)
A123: Residential/Commercial A/C | C123: Residential and commercial units, including heat pumps (capacity 0.5 to 100 kg)
A124: Car A/C Units | C124: Passenger car A/C units (capacity 0.5 kg)
A125: Light-Duty Truck A/C Units | C125: Light-duty truck A/C units (capacity 1.5 kg)
A127: GHG Emissions
A129: Total CO2 Equivalent Emissions (metric tons) - Refrigeration and AC Equipment
F130: =(((SUM($F$26:$F$36)+SUM($H$50:$H$60))*kg_per_lb) +SUM($H$77:$H$114))/1000 -> 0
A132: Notes:
A133: 1. CO2 emissions estimated using emission factors provided in Table 3 of the Center for Corporate Climate Leadership Greenhouse Gas Inventory Guidance
A134: Direct Fugitive Emissions from Refrigeration, Air Conditioning, Fire Suppression and Industrial Gases. (Dec 2020).
A135: 2. GWPs are from Intergovernmental Panel on Climate Change (IPCC) Fourth Assessment Report (2007).

Sheet Fire Suppression
A3: Scope 1 Emissions from Fire Suppression Equipment
A5: Guidance
A6: (A) HFC, PFC, and CO2 fire suppressants are required to be included in the GHG inventory. Other fire suppressants such as Halon compounds, HCFCs, aqueous solutions, or inert gases are typically excluded from a GHG inventory.
A7: (B) Select ONE of the three options from which to estimate emissions. Options range from most preferred method
A8: (Option 1) to least preferred method (Option 3). If option 3, screening method, is used and emissions are determined
A9: to be significant when compared to other emission sources, then one of the other methods should be applied to calculate
A10: emissions more accurately.
A11: (C) Enter annual data in ORANGE cells as appropriate for the selected option.
A13: Option 1. Material Balance Method: Enter organization-wide fire suppression gases stored and transferred (by gas) in Table 1.
A14: - Inventory Change = difference of gas stored in inventory from beginning to end of reporting period.
A15: (Includes only gas stored on-site (i.e. cylinders) and not gas contained within equipment).
A16: - Transferred Amount = gas purchased minus gas sold/disposed during reporting period.
A17: -- Gas purchased includes: Purchases for inventory, as part of equipment servicing (not from inventory)
A18: within purchased equipment and gas returned to the site after off-site recycling.
A19: -- Gas sold/disposed includes: Returns to supplier, sales or disposals (including within equipment),
A20: and gas sent off-site for recycling, reclamation, or destruction.
A21: - Capacity Change = capacity of all units at beginning minus capacity of all units at end of reporting period.
A22: (can be assumed to be capacity of new units minus capacity of retired units).
A24: Table 1. Organization-Wide Fire Suppression Gas CO2 Equivalent Emissions - Material Balance
A25: Gas | B25: Gas | C25: Inventory | D25: Transferred | E25: Capacity | F25: CO2 Equivalent
B26: GWP | C26: Change | D26: Amount | E26: Change | F26: Emissions
C27: (lb) | D27: (lb) | E27: (lb) | F27: (lb)
A28: CO2 | B28: =VLOOKUP(A28,GWP,2,FALSE) -> 1 | F28: =IF(($C28+$D28+$E28)*$B28=0,"",($C28+$D28+$E28)*$B28) -> 
A29: HFC-23 | B29: 14800 | F29: =IF(($C29+$D29+$E29)*$B29=0,"",($C29+$D29+$E29)*$B29) -> 
A30: HFC-125 | B30: 3500
A31: HFC-134a | B31: 1430
A32: HFC-227ea | B32: 3220
A33: HFC-236fa | B33: 9810
A34: CF4 | B34: 7390
A35: C4F10 | B35: 8860
A37: Option 2. Material Balance Method (Simplified): Enter organization-wide fire suppression gas in units (by gas) in Table 2.
A38: - New units are those installed during reporting period (do not include any data for new units pre-charged by
A39: supplier), disposed units were disposed of during the reporting period, and existing units are all others.
A40: - Charge/Recharge = gas added to units by organization or a contractor (do not include pre-charge by manufacturer).
A41: - Capacity = sum of the full capacity for all units (do not include new units pre-charged by manufacturer).
A42: - Amount recovered = total gas recovered from all retired units.
A44: Table 2. Organization-Wide Fire Suppression Gas CO2 Equivalent Emissions - Simplified Material Balance
C45: New Units | E45: Existing Units | F45: Disposed Units | H45: CO2 Equivalent
A46: Gas | B46: Gas | C46: Charge | D46: Capacity | E46: Recharge | F46: Capacity | G46: Recovered | H46: Emissions
B47: GWP | C47: (lb) | D47: (lb) | E47: (lb) | F47: (lb) | G47: (lb) | H47: (lb)
A48: CO2 | B48: =VLOOKUP(A48,GWP,2,FALSE) -> 1 | H48: =IF(($C48-$D48+$E48+$F48-$G48)*$B48=0,"",($C48-$D48+$E48+$F48-$G48)*$B48) -> 
A49: HFC-23 | B49: 14800 | H49: =IF(($C49-$D49+$E49+$F49-$G49)*$B49=0,"",($C49-$D49+$E49+$F49-$G49)*$B49) -> 
A50: HFC-125 | B50: 3500
A51: HFC-134a | B51: 1430
A52: HFC-227ea | B52: 3220
A53: HFC-236fa | B53: 9810
A54: CF4 | B54: 7390
A55: C4F10 | B55: 8860
A57: Option 3. Screening Method: Enter fire suppression gas information for each unit or group of units (by gas) in Table 3.
A58: - Enter "Type of Equipment" (Fixed or Portable) and select "Gas Type" from the drop down box.
A59: - Enter capacity (by gas type) for all units that operated during reporting period.
A60: -- For each unit added or removed during reporting period, multiply its capacity by a usage factor (0.0 to 1.0).
A61: -- If data entered for multiple units, sum the capacities for all units.
A62: - See example entry in first row (Green Italics).
A64: Table 3. Source Level Fire Suppression Gas CO2 Equivalent Emissions - Screening Method
A65: Source | B65: Type of | C65: Gas | D65: Gas | E65: Unit | F65: CO2 Equivalent
A66: ID | B66: Equipment | C66: Type | D66: GWP | E66: Capacity | F66: Emissions
B67: (Fixed/Portable) | E67: (kg) | F67: (kg)
A68: Bldg-012 | B68: Fixed | C68: HFC-134a | D68: =IF($C68="","",VLOOKUP(C68,GWP,2,FALSE)) -> 1430 | E68: 1.3 | F68: =IF($B68="Fixed",$D68*Fixed_FireLeakRate*$E68,IF($B68="Portable",$D68*Portable_FireLeakRate*$E68,"")) -> 65.065
F69: =IF($B69="Fixed",$D69*Fixed_FireLeakRate*$E69,IF($B69="Portable",$D69*Portable_FireLeakRate*$E69,"")) -> 
F70: =IF($B70="Fixed",$D70*0.015*$E70,IF($B70="Portable",$D70*0.02*$E70,"")) -> 
A106: GHG Emissions
A109: Total CO2 Equivalent Emissions (metric tons) - Fire Suppression Equipment | F109: =(((SUM($F$28:$F$35)+SUM($H$48:$H$55))*kg_per_lb)+SUM($F$69:$F$104))/1000 -> 0
A111: Notes:
A112: 1. Leak rates of fire extinguishers from Page A-28, US EPA (2021) - Inventory of U.S. Greenhouse Gas Emissions and Sinks: 1990 - 2018.
A113: 2. GWPs are from Intergovernmental Panel on Climate Change (IPCC) Fourth Assessment Report (2007).

Sheet Purchased Gases
A3: Scope 1 Emissions from Purchased Gases
A5: Guidance
A6: (A) Any use and release of the seven major greenhouse gases (CO2, CH4, N2O, PFCs, HFCs, SF6, and NF3) is required to be included in the GHG inventory. Ozone depleting substances, such as CFCs and HCFCs, are regulated internationally and are typically excluded from a GHG inventory or reported as a memo item.
A7: (B) Select the gas you purchase from the drop down menu and the amount purchased for the annual inventory reporting period in the ORANGE cells.
A8: (C) It is assumed that all gas purchased in the reporting period used and released during the reporting period. If your business makes bulk purchases and plans on using the gas for several years, divide the bulk amount by the years of usage and report that amount.
A9: Tip: If you purchase bulk gas, remember to report it for future years as well.
A11: Table 1. Purchased Gases
A12: Gas | B12: Gas | C12: Purchased | D12: CO2 Equivalent
B13: GWP | C13: Amount | D13: Emissions
C14: (lb) | D14: (lb)
B15: =IF(A15="","",VLOOKUP(A15,GWP,2,FALSE)) ->  | D15: =IF(B15="", "",B15*C15) -> 
D16: =IF(B16="", "",B16*C16) -> 
D25: =IF(B25="", "",B25*C25) -> 
A27: GHG Emissions
A30: Total CO2 Equivalent Emissions (metric tons) - Purchased Gas | E30: =SUM(D15:D25)*kg_per_lb/1000 -> 0
A32: Notes:
A33: 1. GWPs are from Intergovernmental Panel on Climate Change (IPCC) Fourth Assessment Report (2007).

Sheet Electricity
A3: Scope 2 Emissions from Purchase of Electricity
A5: Guidance
A6: The Indirect Emissions from Purchased Electricity Guidance document provides guidance for quantifying two scope 2 emissions totals, using a location-based method and a market-based method. The organization should quantify and report both totals in its GHG inventory. The location-based method considers average emission factors for the electricity grids that provide electricity. The market-based method considers contractual arrangements under which the organization procures electricity from specific sources, such as renewable energy.
A7: (A) Enter total annual electricity purchased in kWh and each eGRID subregion for each facility or site in ORANGE cells of Table 1.
A8: (B) If electricity consumption data are not available for a facility, an estimate should be made for completeness. See the "Items to Note" section of the Help sheet for suggested estimation approaches.
A9: (C) Select "eGRID subregion" from drop box and enter "Electricity Purchased."
B10: - Use map (Figure 1) at bottom of sheet to determine appropriate eGRID subregion. If subregion cannot be determined from the map, find the correct subregion by entering the location's zip code into EPA’s Power Profiler:
B11: https://www.epa.gov/egrid/power-profiler#/
A12: (D) See the market-based emission factor hierarchy on the market-based method Help sheet. If any of the first four types of emission factors are applicable, enter the factors in the yellow cells marked as "<enter factor>". If not, leave the yellow cells as is, and eGRID subregion factors will be used for market-based emissions. Example entry is shown in first row (GREEN Italics) for a facility that purchases RECs for 100% of its consumption, and therefore has a market-based emission factor of 0.
A14: Tips: Enter electricity usage by location and then look up the eGRID subregion for each location.
A15: If you purchase renewable energy that is less than 100% of your site's electricity, see the example in the market-based method Help sheet. | F15: Market-Based Use these cells to enter applicable market-based emission factors | L15: Location-Based
A16: Table 1. Total Amount of Electricity Purchased by eGRID Subregion | F16: Emission Factors | I16: Emissions | L16: Emissions
A17: Source | B17: Source | C17: Source | D17: eGRID Subregion | E17: Electricity | F17: CO2 | G17: CH4 | H17: N2O | I17: CO2 | J17: CH4 | K17: N2O | L17: CO2 | M17: CH4 | N17: N2O
A18: ID | B18: Description | C18: Area (sq ft) | D18: where electricity is consumed | E18: Purchased | F18: Emissions | G18: Emissions | H18: Emissions | I18: Emissions | J18: Emissions | K18: Emissions | L18: Emissions | M18: Emissions | N18: Emissions
E19: (kWh) | F19: (lb/MWh) | G19: (lb/MWh) | H19: (lb/MWh) | I19: (lb) | J19: (lb) | K19: (lb) | L19: (lb) | M19: (lb) | N19: (lb)
A20: Bldg-012 | B20: East Power Plant | C20: 12517 | D20: HIMS (HICC Miscellaneous) | E20: 200000 | F20: 0 | G20: 0 | H20: 0 | I20: =IFERROR(IF(ISBLANK(F20),L20,E20/1000*F20),"Enter Factor") -> 0 | J20: =IFERROR(IF(ISBLANK(G20),M20,F20/1000*G20),"Enter Factor") -> 0 | K20: =IFERROR(IF(ISBLANK(H20),N20,G20/1000*H20),"Enter Factor") -> 0 | L20: =IF(ISNA(VLOOKUP($D20,eGRID_em_Fctrs,4,FALSE)),"",VLOOKUP($D20,eGRID_em_Fctrs,4,FALSE)*$E20/1000) -> 228640 | M20: =IF(ISNA(VLOOKUP($D20,eGRID_em_Fctrs,5,FALSE)),"",VLOOKUP($D20,eGRID_em_Fctrs,5,FALSE)*$E20/1000) -> 22 | N20: =IF(ISNA(VLOOKUP($D20,eGRID_em_Fctrs,7,FALSE)),"",VLOOKUP($D20,eGRID_em_Fctrs,7,FALSE)*$E20/1000) -> 3.4
F21: <enter factor> | G21: <enter factor> | H21: <enter factor> | I21: =IFERROR(IF(OR(ISBLANK(F21),F21="<enter factor>"),L21,$E21/1000*F21),"") ->  | L21: =IF(ISNA(VLOOKUP($D21,eGRID_em_Fctrs,4,FALSE)),"",VLOOKUP($D21,eGRID_em_Fctrs,4,FALSE)*$E21/1000) -> 
F22: <enter factor> | G22: <enter factor> | H22: <enter factor> | L22: =IF(ISNA(VLOOKUP($D22,eGRID_em_Fctrs,4,FALSE)),"",VLOOKUP($D22,eGRID_em_Fctrs,4,FALSE)*$E22/1000) -> 
F23: <enter factor> | G23: <enter factor> | H23: <enter factor> | I23: =IFERROR(IF(OR(ISBLANK(F23),F23="<enter factor>"),L23,$E23/1000*F23),"") ->  | J23: =IFERROR(IF(OR(ISBLANK(G23),G23="<enter factor>"),M23,$E23/1000*G23),"") ->  | K23: =IFERROR(IF(OR(ISBLANK(H23),H23="<enter factor>"),N23,$E23/1000*H23),"") ->  | L23: =IF(ISNA(VLOOKUP($D23,eGRID_em_Fctrs,4,FALSE)),"",VLOOKUP($D23,eGRID_em_Fctrs,4,FALSE)*$E23/1000) -> 
F24: <enter factor> | G24: <enter factor> | H24: <enter factor> | J24: =IFERROR(IF(OR(ISBLANK(G24),G24="<enter factor>"),M24,$E24/1000*G24),"") ->  | K24: =IFERROR(IF(OR(ISBLANK(H24),H24="<enter factor>"),N24,$E24/1000*H24),"") -> 
F25: <enter factor> | G25: <enter factor> | H25: <enter factor>
F26: <enter factor> | G26: <enter factor> | H26: <enter factor>
F27: <enter factor> | G27: <enter factor> | H27: <enter factor>
F28: <enter factor> | G28: <enter factor> | H28: <enter factor>
F29: <enter factor> | G29: <enter factor> | H29: <enter factor>
F30: <enter factor> | G30: <enter factor> | H30: <enter factor>
F31: <enter factor> | G31: <enter factor> | H31: <enter factor>
F32: <enter factor> | G32: <enter factor> | H32: <enter factor>
F33: <enter factor> | G33: <enter factor> | H33: <enter factor>
F34: <enter factor> | G34: <enter factor> | H34: <enter factor>
F35: <enter factor> | G35: <enter factor> | H35: <enter factor>
F36: <enter factor> | G36: <enter factor> | H36: <enter factor>
F37: <enter factor> | G37: <enter factor> | H37: <enter factor>
F38: <enter factor> | G38: <enter factor> | H38: <enter factor>
F39: <enter factor> | G39: <enter factor> | H39: <enter factor>
F40: <enter factor> | G40: <enter factor> | H40: <enter factor>
F41: <enter factor> | G41: <enter factor> | H41: <enter factor>
F42: <enter factor> | G42: <enter factor> | H42: <enter factor>
F43: <enter factor> | G43: <enter factor> | H43: <enter factor>
F44: <enter factor> | G44: <enter factor> | H44: <enter factor>
F45: <enter factor> | G45: <enter factor> | H45: <enter factor>
F46: <enter factor> | G46: <enter factor> | H46: <enter factor>
F47: <enter factor> | G47: <enter factor> | H47: <enter factor>
F48: <enter factor> | G48: <enter factor> | H48: <enter factor>
F49: <enter factor> | G49: <enter factor> | H49: <enter factor>
F50: <enter factor> | G50: <enter factor> | H50: <enter factor>
F51: <enter factor> | G51: <enter factor> | H51: <enter factor>
F52: <enter factor> | G52: <enter factor> | H52: <enter factor>
F53: <enter factor> | G53: <enter factor> | H53: <enter factor>
F54: <enter factor> | G54: <enter factor> | H54: <enter factor>
F55: <enter factor> | G55: <enter factor> | H55: <enter factor>
F56: <enter factor> | G56: <enter factor> | H56: <enter factor>
F57: <enter factor> | G57: <enter factor> | H57: <enter factor>
A58: Total Emissions for All Sources | E58: =SUM($E$21:$E$57) -> 0 | I58: =SUM($I$21:$I$57) -> 0 | J58: =SUM($J$21:$J$57) -> 0 | K58: =SUM($K$21:$K$57) -> 0 | L58: =SUM($L$21:$L$57) -> 0 | M58: =SUM($M$21:$M$57) -> 0 | N58: =SUM($N$21:$N$57) -> 0
A60: GHG Emissions
A62: CO2 Equivalent Emissions (metric tons)
A63: Location-Based Electricity Emissions | E63: =($L$58+$M$58*CH4_GWP+$N$58*N2O_GWP)*kg_per_lb/1000 -> 0
A64: Market-Based Electricity Emissions | E64: =($I$58+$J$58*CH4_GWP+$K$58*N2O_GWP)*kg_per_lb/1000 -> 0
A65: Notes:
A66: 1. CO2, CH4 and N2O emissions are estimated using methodology provided in EPA's Center for Corporate Climate Leadership Greenhouse Gas Inventory Guidance
A67: - Indirect Emissions from Purchased Electricity (January 2016).
A70: Figure 1. EPA eGRID2020, April 2022.

Sheet Steam
A3: Scope 2 Emissions from Purchase of Steam
A5: Guidance
A6: (A) Enter annual data for each facility or site in ORANGE cells in Table 1.
A7: - Enter amount of steam purchased in mmBtu. Heat Content conversions can be found on the "Heat Content" sheet.
A8: - Select "Fuel Type" from drop box to indicate the fuel used to generate the steam.
A9: -- If "Fuel Type" is not known, select "Natural Gas" from drop box as default value.
A10: -- If more than one fuel type is used, enter multiple rows, apportioning the steam using the same percentages as the fuel mix.
A11: (B) If steam is purchased at a facility but steam consumption data are not available, an estimate should be made for completeness. See the "Items to Note" section of the Help sheet for suggested estimation approaches.
A12: (C) Preferred Method (steam emission factors ARE available from your supplier). Example entry is shown in first data row (GREEN Italics).
A13: - Enter supplier emission factors for CO2, CH4, and N2O in the purple cells marked as "<enter factor>" if available, otherwise leave factor cells blank.
A14: - These should be expressed in lb / mmBtu of Steam. Heat Content conversions can be found on the "Heat Content" sheet.
A15: - Boiler Efficiency is not necessary if emission factors are available.
B16: - Typically supplier emission factors for steam will apply to both location-based and market-based emissions, and no market-based emission factors need to be entered. However, if there are different applicable market-based emission factors, enter the factors in the yellow cells marked as "<enter factor>". If needed, see the market-based method Help Sheet for guidance.
A17: (D) Alternative Method (supplier-specific emission factors are NOT available). Example entry is shown in second data row (BLUE Italics).
A18: - Enter boiler efficiency. If boiler efficiency is not known, use 80% as default value. Do not enter market-based emission factors.
G20: Location-Based Use these cells to enter emission factors from the steam supplier (if available) | M20: Market-Based Use these cells to enter market-based emission factors if different than the supplier emission factors.
A21: Table 1. Fuel, Boiler, Steam and Emission Factor Data for Steam Purchased | G21: Emission Factors | J21: Emissions | M21: Emission Factors | P21: Emissions
A22: Source ID | B22: Source Description | C22: Source Area (sq ft) | D22: Fuel Type | E22: Boiler | F22: Steam | G22: CO2 | H22: CH4 | I22: N2O | J22: CO2 | K22: CH4 | L22: N2O | M22: CO2 | N22: CH4 | O22: N2O | P22: CO2 | Q22: CH4 | R22: N2O
E23: Efficiency | F23: Purchased | G23: Factor | H23: Factor | I23: Factor | J23: Emissions | K23: Emissions | L23: Emissions | M23: Factor | N23: Factor | O23: Factor | P23: Emissions | Q23: Emissions | R23: Emissions
E24: (%) | F24: (mmBtu) | G24: (kg / mmBtu) | H24: (g / mmBtu) | I24: (g / mmBtu) | J24: (kg) | K24: (g) | L24: (g) | M24: (kg / mmBtu) | N24: (g / mmBtu) | O24: (g / mmBtu) | P24: (kg) | Q24: (g) | R24: (g)
A25: Bldg-011 | B25: Office | C25: 5000 | D25: Natural Gas | E25: 80 | F25: 5000 | G25: 72 | H25: 1.5 | I25: 0.6 | J25: =IF($F25="","", IF(OR(G25="<enter factor>",G25=""),(VLOOKUP($D25,Stationary_Fuel_Fctrs_mmBtu,2,FALSE))*$F25/(IF($E25="",0.8,$E25/100)), G25*$F25/(IF($E25="",0.8,$E25/100)))) -> 450000 | K25: =IF($F25="","", IF(OR(H25="<enter factor>",H25=""),(VLOOKUP($D25,Stationary_Fuel_Fctrs_mmBtu,3,FALSE))*$F25/(IF($E25="",0.8,$E25/100)), H25*$F25/(IF($E25="",0.8,$E25/100)))) -> 9375 | L25: =IF($F25="","", IF(OR(I25="<enter factor>",I25=""),(VLOOKUP($D25,Stationary_Fuel_Fctrs_mmBtu,4,FALSE))*$F25/(IF($E25="",0.8,$E25/100)), I25*$F25/(IF($E25="",0.8,$E25/100)))) -> 3750 | M25: 70 | N25: 1 | O25: 0.5 | P25: =IF($F25="","", IF(OR(M25="<enter factor>",M25=""),J25, M25*$F25/(IF($E25="",0.8,$E25/100)))) -> 437500 | Q25: =IF($F25="","", IF(OR(N25="<enter factor>",N25=""),K25, N25*$F25/(IF($E25="",0.8,$E25/100)))) -> 6250 | R25: =IF($F25="","", IF(OR(O25="<enter factor>",O25=""),L25, O25*$F25/(IF($E25="",0.8,$E25/100)))) -> 3125
A26: Bldg-012 | B26: Steam-Blr Room | C26: 2000 | D26: Sub-bituminous Coal | E26: 80 | F26: 1000 | G26: <enter factor> | H26: <enter factor> | I26: <enter factor> | J26: 121462.5 | K26: 13750 | L26: 2000 | M26: <enter factor> | N26: <enter factor> | O26: <enter factor> | P26: 121462.5 | Q26: 13750 | R26: 2000
G27: <enter factor> | H27: <enter factor> | I27: <enter factor> | M27: <enter factor> | N27: <enter factor> | O27: <enter factor> | P27: =IF($F27="","", IF(OR(M27="<enter factor>",M27=""),J27, M27*$F27/(IF($E27="",0.8,$E27/100)))) -> 
G28: <enter factor> | H28: <enter factor> | I28: <enter factor> | M28: <enter factor> | N28: <enter factor> | O28: <enter factor>
G29: <enter factor> | H29: <enter factor> | I29: <enter factor> | M29: <enter factor> | N29: <enter factor> | O29: <enter factor> | P29: =IF($F29="","", IF(OR(M29="<enter factor>",M29=""),J29, M29*$F29/(IF($E29="",0.8,$E29/100)))) ->  | Q29: =IF($F29="","", IF(OR(N29="<enter factor>",N29=""),K29, N29*$F29/(IF($E29="",0.8,$E29/100)))) ->  | R29: =IF($F29="","", IF(OR(O29="<enter factor>",O29=""),L29, O29*$F29/(IF($E29="",0.8,$E29/100)))) -> 
G30: <enter factor> | H30: <enter factor> | I30: <enter factor> | M30: <enter factor> | N30: <enter factor> | O30: <enter factor>
G31: <enter factor> | H31: <enter factor> | I31: <enter factor> | M31: <enter factor> | N31: <enter factor> | O31: <enter factor>
G32: <enter factor> | H32: <enter factor> | I32: <enter factor> | M32: <enter factor> | N32: <enter factor> | O32: <enter factor>
G33: <enter factor> | H33: <enter factor> | I33: <enter factor> | M33: <enter factor> | N33: <enter factor> | O33: <enter factor>
G34: <enter factor> | H34: <enter factor> | I34: <enter factor> | M34: <enter factor> | N34: <enter factor> | O34: <enter factor>
G35: <enter factor> | H35: <enter factor> | I35: <enter factor> | M35: <enter factor> | N35: <enter factor> | O35: <enter factor>
G36: <enter factor> | H36: <enter factor> | I36: <enter factor> | M36: <enter factor> | N36: <enter factor> | O36: <enter factor>
G37: <enter factor> | H37: <enter factor> | I37: <enter factor> | M37: <enter factor> | N37: <enter factor> | O37: <enter factor>
G38: <enter factor> | H38: <enter factor> | I38: <enter factor> | M38: <enter factor> | N38: <enter factor> | O38: <enter factor>
G39: <enter factor> | H39: <enter factor> | I39: <enter factor> | M39: <enter factor> | N39: <enter factor> | O39: <enter factor>
G40: <enter factor> | H40: <enter factor> | I40: <enter factor> | M40: <enter factor> | N40: <enter factor> | O40: <enter factor>
G41: <enter factor> | H41: <enter factor> | I41: <enter factor> | M41: <enter factor> | N41: <enter factor> | O41: <enter factor>
G42: <enter factor> | H42: <enter factor> | I42: <enter factor> | M42: <enter factor> | N42: <enter factor> | O42: <enter factor>
G43: <enter factor> | H43: <enter factor> | I43: <enter factor> | M43: <enter factor> | N43: <enter factor> | O43: <enter factor>
G44: <enter factor> | H44: <enter factor> | I44: <enter factor> | M44: <enter factor> | N44: <enter factor> | O44: <enter factor>
G45: <enter factor> | H45: <enter factor> | I45: <enter factor> | M45: <enter factor> | N45: <enter factor> | O45: <enter factor>
G46: <enter factor> | H46: <enter factor> | I46: <enter factor> | M46: <enter factor> | N46: <enter factor> | O46: <enter factor>
G47: <enter factor> | H47: <enter factor> | I47: <enter factor> | M47: <enter factor> | N47: <enter factor> | O47: <enter factor>
G48: <enter factor> | H48: <enter factor> | I48: <enter factor> | M48: <enter factor> | N48: <enter factor> | O48: <enter factor>
G49: <enter factor> | H49: <enter factor> | I49: <enter factor> | M49: <enter factor> | N49: <enter factor> | O49: <enter factor>
G50: <enter factor> | H50: <enter factor> | I50: <enter factor> | M50: <enter factor> | N50: <enter factor> | O50: <enter factor>
G51: <enter factor> | H51: <enter factor> | I51: <enter factor> | M51: <enter factor> | N51: <enter factor> | O51: <enter factor>
G52: <enter factor> | H52: <enter factor> | I52: <enter factor> | M52: <enter factor> | N52: <enter factor> | O52: <enter factor>
G53: <enter factor> | H53: <enter factor> | I53: <enter factor> | M53: <enter factor> | N53: <enter factor> | O53: <enter factor>
G54: <enter factor> | H54: <enter factor> | I54: <enter factor> | M54: <enter factor> | N54: <enter factor> | O54: <enter factor>
G55: <enter factor> | H55: <enter factor> | I55: <enter factor> | M55: <enter factor> | N55: <enter factor> | O55: <enter factor>
G56: <enter factor> | H56: <enter factor> | I56: <enter factor> | M56: <enter factor> | N56: <enter factor> | O56: <enter factor>
G57: <enter factor> | H57: <enter factor> | I57: <enter factor> | M57: <enter factor> | N57: <enter factor> | O57: <enter factor>
G58: <enter factor> | H58: <enter factor> | I58: <enter factor> | M58: <enter factor> | N58: <enter factor> | O58: <enter factor>
G59: <enter factor> | H59: <enter factor> | I59: <enter factor> | M59: <enter factor> | N59: <enter factor> | O59: <enter factor>
G60: <enter factor> | H60: <enter factor> | I60: <enter factor> | M60: <enter factor> | N60: <enter factor> | O60: <enter factor>
G61: <enter factor> | H61: <enter factor> | I61: <enter factor> | M61: <enter factor> | N61: <enter factor> | O61: <enter factor>
G62: <enter factor> | H62: <enter factor> | I62: <enter factor> | M62: <enter factor> | N62: <enter factor> | O62: <enter factor>
G63: <enter factor> | H63: <enter factor> | I63: <enter factor> | M63: <enter factor> | N63: <enter factor> | O63: <enter factor>
A65: GHG Emissions
A66: Emissions by Source and Fuel Type for Steam Purchased
C67: Location-Based | F67: Market-Based
A68: Fuel Type | C68: CO2 | D68: CH4 | E68: N2O | F68: CO2 | G68: CH4 | H68: N2O
C69: Emissions | D69: Emissions | E69: Emissions | F69: Emissions | G69: Emissions | H69: Emissions
C70: (kg) | D70: (g) | E70: (g) | F70: (kg) | G70: (g) | H70: (g)
A71: Natural Gas | C71: =SUMIF($D$27:$D$63,$A71,$J$27:$J$63) -> 0 | D71: =SUMIF($D$27:$D$63,$A71,$K$27:$K$63) -> 0 | E71: =SUMIF($D$27:$D$63,$A71,$L$27:$L$63) -> 0 | F71: =SUMIF($D$27:$D$63,$A71,$P$27:$P$63) -> 0 | G71: =SUMIF($D$27:$D$63,$A71,$Q$27:$Q$63) -> 0 | H71: =SUMIF($D$27:$D$63,$A71,$R$27:$R$63) -> 0
A72: Distillate Fuel Oil No. 2 | C72: =SUMIF($D$27:$D$63,$A72,$J$27:$J$63) -> 0 | D72: =SUMIF($D$27:$D$63,$A72,$K$27:$K$63) -> 0 | E72: =SUMIF($D$27:$D$63,$A72,$L$27:$L$63) -> 0 | F72: =SUMIF($D$27:$D$63,$A72,$P$27:$P$63) -> 0 | G72: =SUMIF($D$27:$D$63,$A72,$Q$27:$Q$63) -> 0 | H72: =SUMIF($D$27:$D$63,$A72,$R$27:$R$63) -> 0
A73: Residual Fuel Oil No. 6 | C73: 0 | D73: 0 | E73: 0 | F73: 0 | G73: 0 | H73: 0
A74: Kerosene | C74: 0 | D74: 0 | E74: 0 | F74: 0 | G74: 0 | H74: 0
A75: Liquefied Petroleum Gases (LPG) | C75: 0 | D75: 0 | E75: 0 | F75: 0 | G75: 0 | H75: 0
A76: Anthracite Coal | C76: 0 | D76: 0 | E76: 0 | F76: 0 | G76: 0 | H76: 0
A77: Bituminous Coal | C77: =SUMIF($D$27:$D$63,$A77,$J$27:$J$63) -> 0 | D77: 0 | E77: 0 | F77: 0 | G77: 0 | H77: 0
A78: Sub-bituminous Coal | C78: 0 | D78: 0 | E78: 0 | F78: 0 | G78: 0 | H78: 0
A79: Lignite Coal | C79: 0 | D79: 0 | E79: 0 | F79: 0 | G79: 0 | H79: 0
A80: Mixed (Electric Power Sector) | C80: 0 | D80: 0 | E80: 0 | F80: 0 | G80: 0 | H80: 0
A81: Coal Coke | C81: 0 | D81: 0 | E81: 0 | F81: 0 | G81: 0 | H81: 0
A82: Wood and Wood Residuals | C82: 0 | D82: 0 | E82: 0 | F82: 0 | G82: 0 | H82: 0
A83: Landfill Gas | C83: 0 | D83: 0 | E83: 0 | F83: 0 | G83: 0 | H83: 0
A84: Total Emissions for All Sources | C84: =SUM(C71:C83) -> 0 | D84: 0 | E84: 0 | F84: 0 | G84: 0 | H84: 0
A86: CO2 Equivalent Emissions (metric tons)
A87: Location-Based Electricity Emissions | F87: =($C$84+$D$84*CH4_GWP/1000+$E$84*N2O_GWP/1000)/1000 -> 0
A88: Market-Based Electricity Emissions | F88: =($F$84+$G$84*CH4_GWP/1000+$H$84*N2O_GWP/1000)/1000 -> 0

Sheet Business Travel
A3: Scope 3 Emissions from Employee Business Travel
A5: Guidance
A6: (A) Enter annual data in ORANGE cells in the table corresponding to the transport method. Example entry is shown in first row (GREEN Italics).
A7: (B) Mileage data can be entered for individual trips or individual employees, or miles for multiple employees can be subtotaled by
A8: vehicle type or flight length.
A9: (C) For employees traveling by car, select "Vehicle Type" and enter miles traveled (vehicle-miles) in Table 1.
A10: (D) For employees traveling by rail or bus, select "Vehicle Type" and enter miles traveled (passenger-miles) in Table 2.
A11: (E) For employees traveling by air, select "Flight Length" and enter miles traveled (passenger-miles) in Table 3.
A12: --- Note: The emission factors for air travel do not include radiative forcing.
A14: Table 1. Personal Vehicle, Rental Car or Taxi - Business Travel by Vehicle-Miles (CO2, CH4 and N2O)
A15: Source ID | B15: Source Description | C15: Vehicle Type | D15: Vehicle-Miles (miles) | E15: CO2 Emissions (kg) | F15: CH4 Emissions (g) | G15: N2O Emissions (g)
A16: JD-001 | B16: John Doe 1 | C16: Passenger Car | D16: 100 | E16: =IF($C16="","",VLOOKUP($C16,Biz_Travel_Fctr,2,FALSE)*$D16) -> 33.2 | F16: =IF($C16="","",VLOOKUP($C16,Biz_Travel_Fctr,3,FALSE)*$D16) -> 0.7 | G16: =IF($C16="","",VLOOKUP($C16,Biz_Travel_Fctr,4,FALSE)*$D16) -> 0.7
E17: =IF($C17="","",VLOOKUP($C17,Biz_Travel_Fctr,2,FALSE)*$D17) -> 
A55: Total for all Personal Vehicle Business Travel | E55: =SUM(E17:E54) -> 0 | F55: =SUM(F17:F54) -> 0 | G55: =SUM(G17:G54) -> 0
A57: Table 2. Rail or Bus - Business Travel by Passenger-Miles (CO2, CH4 and N2O)
A58: Source ID | B58: Source Description | C58: Vehicle Type | D58: Passenger-Miles (miles) | E58: CO2 Emissions (kg) | F58: CH4 Emissions (g) | G58: N2O Emissions (g)
A59: JD-001 | B59: John Doe 1 | C59: Transit Rail (i.e. Subway, Tram) | D59: 100 | E59: =IF($C59="","",VLOOKUP($C59,Biz_Travel_Fctr,2,FALSE)*$D59) -> 9.9 | F59: =IF($C59="","",VLOOKUP($C59,Biz_Travel_Fctr,3,FALSE)*$D59) -> 0.84 | G59: =IF($C59="","",VLOOKUP($C59,Biz_Travel_Fctr,4,FALSE)*$D59) -> 0.12
A60: test | B60: test
A108: Total for all Rail and Bus Business Travel | E108: =SUM(E60:E107) -> 0 | F108: =SUM(F60:F107) -> 0 | G108: =SUM(G60:G107) -> 0
A110: Table 3. Air - Business Travel by Passenger-Miles (CO2, CH4 and N2O)
A111: Source ID | B111: Source Description | C111: Flight Length | D111: Passenger-Miles (miles) | E111: CO2 Emissions (kg) | F111: CH4 Emissions (g) | G111: N2O Emissions (g)
A112: JD-001 | B112: John Doe 1 | C112: Medium Haul (>= 300 miles, < 2300 miles) | D112: 1000 | E112: 229 | F112: 10.4 | G112: 8.5
E113: =IF($C113="","",VLOOKUP($C113,Biz_Travel_Fctr,2,FALSE)*$D113) ->  | F113: =IF($C113="","",VLOOKUP($C113,Biz_Travel_Fctr,3,FALSE)*$D113) ->  | G113: =IF($C113="","",VLOOKUP($C113,Biz_Travel_Fctr,4,FALSE)*$D113) -> 
A145: Total for all Air Business Travel | E145: =SUM(E113:E144) -> 0 | F145: =SUM(F113:F144) -> 0 | G145: =SUM(G113:G144) -> 0
A147: GHG Emissions
A149: Total CO2 Emissions by Travel Type
A150: Transport Type | C150: CO2 (kg) | D150: CH4 (g) | E150: N2O (g)
A151: Passenger Car | C151: =SUMIF($C$17:$C$54,$A151,E$17:E$54) -> 0 | D151: =SUMIF($C$17:$C$54,$A151,F$17:F$54) -> 0 | E151: 0
A152: Light-Duty Truck | C152: 0 | D152: 0 | E152: 0
A153: Motorcycle | C153: 0 | D153: 0 | E153: 0
A154: Intercity Rail - Northeast Corridor | C154: =SUMIF($C$60:$C$107,$A154,E$60:E$107) -> 0 | D154: 0 | E154: 0
A155: Intercity Rail - Other Routes | C155: =SUMIF($C$60:$C$107,$A155,E$60:E$107) -> 0 | D155: =SUMIF($C$60:$C$107,$A155,F$60:F$107) -> 0 | E155: =SUMIF($C$60:$C$107,$A155,G$60:G$107) -> 0
A156: Intercity Rail - National Average | C156: 0 | D156: 0 | E156: 0
A157: Commuter Rail | C157: 0 | D157: 0 | E157: 0
A158: Transit Rail (i.e. Subway, Tram) | C158: 0 | D158: 0 | E158: 0
A159: Bus | C159: 0 | D159: 0 | E159: 0
A160: Short Haul (< 300 miles) | C160: =SUMIF($C$113:$C$144,$A160,E$113:E$144) -> 0 | D160: =SUMIF($C$113:$C$144,$A160,F$113:F$144) -> 0 | E160: =SUMIF($C$113:$C$144,$A160,G$113:G$144) -> 0
A161: Medium Haul (>= 300 miles, < 2300 miles) | C161: =SUMIF($C$113:$C$144,$A161,E$113:E$144) -> 0 | D161: =SUMIF($C$113:$C$144,$A161,F$113:F$144) -> 0 | E161: =SUMIF($C$113:$C$144,$A161,G$113:G$144) -> 0
A162: Long Haul (>= 2300 miles) | C162: 0 | D162: 0 | E162: 0
A165: Total CO2 Equivalent Emissions (metric tons) - Employee Business Travel | D165: =(SUM(C151:C162)+SUM(D151:D162)/1000*CH4_GWP+SUM(E151:E162)/1000*N2O_GWP)/1000 -> 0

Sheet Commuting
A3: Scope 3 Emissions from Employee Commuting
A5: Guidance
A6: (A) Enter annual data in ORANGE cells in the table corresponding to the transport method. Example entry is shown in first row (GREEN Italics).
A7: (B) For employees commuting in a personal vehicle, select the "Vehicle Type" and enter miles traveled (vehicle-miles) in Table 1.
A8: (C) For employees commuting using public transportation, select the "Transport Type" and enter miles traveled (passenger-miles) in Table 2.
A10: Tip: If more than one employee travels by the same vehicle type or transport type, miles can be combined and entered in one row.
A12: Table 1. Personal Vehicle - Employee Commuting by Vehicle-Miles (CO2, CH4 and N2O)
A13: Source ID | B13: Source Description | C13: Vehicle Type | D13: Vehicle-Miles (miles) | E13: CO2 Emissions (kg) | F13: CH4 Emissions (g) | G13: N2O Emissions (g)
A14: JD-001 | B14: John Doe 1 | C14: Passenger Car | D14: 100 | E14: =IF($C14="","",VLOOKUP($C14,Biz_Travel_Fctr,2,FALSE)*$D14) -> 33.2 | F14: =IF($C14="","",VLOOKUP($C14,Biz_Travel_Fctr,3,FALSE)*$D14) -> 0.7 | G14: =IF($C14="","",VLOOKUP($C14,Biz_Travel_Fctr,4,FALSE)*$D14) -> 0.7
A53: Total for all Personal Vehicle Employee Commuting | E53: =SUM(E15:E52) -> 0 | F53: =SUM(F15:F52) -> 0 | G53: =SUM(G15:G52) -> 0
A55: Table 2. Public Transportation - Employee Commuting by Passenger-Miles (CO2, CH4 and N2O)
A56: Source ID | B56: Source Description | C56: Transport Type | D56: Passenger-Miles (miles) | E56: CO2 Emissions (kg) | F56: CH4 Emissions (g) | G56: N2O Emissions (g)
A57: JD-001 | B57: John Doe 1 | C57: Bus | D57: 100 | E57: =IF($C57="","",VLOOKUP($C57,Biz_Travel_Fctr,2,FALSE)*$D57) -> 5.6 | F57: =IF($C57="","",VLOOKUP($C57,Biz_Travel_Fctr,3,FALSE)*$D57) -> 2.1 | G57: =IF($C57="","",VLOOKUP($C57,Biz_Travel_Fctr,4,FALSE)*$D57) -> 0.09
A106: Total for all Public Transportation Employee Commuting | E106: =SUM(E58:E105) -> 0 | F106: =SUM(F58:F105) -> 0 | G106: =SUM(G58:G105) -> 0
A108: GHG Emissions
A110: Total CO2 Emissions by Commuting Type
A111: Transport Type | C111: CO2 (kg) | D111: CH4 (g) | E111: N2O (g)
A112: Passenger Car | C112: =SUMIF($C$15:$C$52,$A112,E$15:E$52) -> 0 | D112: 0 | E112: 0
A113: Light-Duty Truck | C113: 0 | D113: 0 | E113: 0
A114: Motorcycle | C114: 0 | D114: 0 | E114: 0
A115: Intercity Rail - Northeast Corridor | C115: =SUMIF($C$58:$C$105,$A115,E$58:E$105) -> 0 | D115: =SUMIF($C$58:$C$105,$A115,F$58:F$105) -> 0 | E115: =SUMIF($C$58:$C$105,$A115,G$58:G$105) -> 0
A116: Intercity Rail - Other Routes | C116: 0 | D116: 0 | E116: 0
A117: Intercity Rail - National Average | C117: 0 | D117: 0 | E117: 0
A118: Commuter Rail | C118: 0 | D118: 0 | E118: 0
A119: Transit Rail (i.e. Subway, Tram) | C119: =SUMIF($C$58:$C$105,$A119,E$58:E$105) -> 0 | D119: =SUMIF($C$58:$C$105,$A119,F$58:F$105) -> 0 | E119: =SUMIF($C$58:$C$105,$A119,G$58:G$105) -> 0
A120: Bus | C120: =SUMIF($C$58:$C$105,$A120,E$58:E$105) -> 0 | D120: =SUMIF($C$58:$C$105,$A120,F$58:F$105) -> 0 | E120: =SUMIF($C$58:$C$105,$A120,G$58:G$105) -> 0
A123: Total CO2 Equivalent Emissions (metric tons) - Commuting | D123: =(SUM(C112:C120)+SUM(D112:D120)/1000*CH4_GWP+SUM(E112:E120)/1000*N2O_GWP)/1000 -> 0

Sheet Upstream Trans and Dist
A3: Scope 3 Emissions from Upstream Transportation and Distribution
A5: Guidance
A6: (A) Enter annual data in ORANGE cells in the table corresponding to the transport method. Example entry is shown in first row (GREEN Italics).
A7: (B) For rail, water, or air shipments, enter short ton-mile data in Table 2. See Help sheet for details on calculating short ton-miles.
A8: (C) For road shipments, if your organization's product is the only product transported in the vehicle (i.e. full truckload shipment) then enter the vehicle type and miles for each leg of transport in Table 1. Emissions are calculated using vehicle-miles.
A9: (D) For road shipments, if your organization's product makes up only part of the truck load (i.e. less-than-load or LTL shipment), then enter the vehicle type and short ton-miles (product weight (short tons) x distance) for each leg of transport in Table 2. Emissions are calculated using short ton-miles. See Help sheet for details on calculating ton-miles.
A10: Tip: Make sure all transport legs are accounted for from manufacturing facility to distribution to customer.
A11: --- Note: This calculator does not currently provide a place to calculate emissions from distribution warehouses.
A12: Table 1. On-Road Product Transport by Vehicle-Miles (CO2, CH4 and N2O)
A13: Source ID | B13: Source Description | C13: Vehicle Type | D13: Vehicle-Miles (miles) | E13: CO2 Emissions (kg) | F13: CH4 Emissions (g) | G13: N2O Emissions (g)
A14: Bldg-012 | B14: East Power Plant Finished Goods | C14: Medium- and Heavy-duty Truck | D14: 100 | E14: =IF($C14="","",VLOOKUP($C14,Prod_TransVM_Fctrs,2,FALSE)*$D14) -> 145 | F14: =IF($C14="","",VLOOKUP($C14,Prod_TransVM_Fctrs,3,FALSE)*$D14) -> 1.3 | G14: =IF($C14="","",VLOOKUP($C14,Prod_TransVM_Fctrs,4,FALSE)*$D14) -> 3.4
E15: =IF($C15="","",VLOOKUP($C15,Prod_TransVM_Fctrs,2,FALSE)*$D15) -> 
A53: Total for Product Transport by Vehicle-Miles | E53: =SUM(E15:E52) -> 0 | F53: =SUM(F15:F52) -> 0 | G53: =SUM(G15:G52) -> 0
A56: Table 2. Product Transport by Ton-Miles (CO2, CH4 and N2O)
A57: Source ID | B57: Source Description | C57: Vehicle Type | D57: Short Ton-Miles | E57: CO2 Emissions (kg) | F57: CH4 Emissions (g) | G57: N2O Emissions (g)
A58: Bldg-012 | B58: East Power Plant Finished Goods | C58: Medium- and Heavy-Duty Truck | D58: 100 | E58: =IF($C58="","",VLOOKUP(C58,Prod_TransTM_fctrs,2,FALSE)*$D58) -> 21.1 | F58: =IF($C58="","",VLOOKUP(C58,Prod_TransTM_fctrs,3,FALSE)*$D58) -> 0.2 | G58: =IF($C58="","",VLOOKUP(C58,Prod_TransTM_fctrs,4,FALSE)*$D58) -> 0.49
F59: =IF($C59="","",VLOOKUP(C59,Prod_TransTM_fctrs,3,FALSE)*$D59) ->  | G59: =IF($C59="","",VLOOKUP(C59,Prod_TransTM_fctrs,4,FALSE)*$D59) -> 
A97: Total for all Product Transport by Ton-Miles | E97: =SUM(E59:E96) -> 0 | F97: =SUM(F59:F96) -> 0 | G97: =SUM(G59:G96) -> 0
A99: GHG Emissions
A101: Total Emissions by Transportation Mode Type | C101: =SUM(E97,E53)-SUM(C103:C108) -> 0 | D101: =SUM(F97,F53)-SUM(D103:D108) -> 0 | E101: 0
A102: Transport Type | C102: CO2 (kg) | D102: CH4 (g) | E102: N2O (g)
A103: Medium- and Heavy-Duty Truck | C103: =SUMIF($C$15:$C$52,$A103,E$15:E$52)+SUMIF($C$59:$C$96,$A103,E$59:E$96) -> 0 | D103: =SUMIF($C$15:$C$52,$A103,F$15:F$52)+SUMIF($C$59:$C$96,$A103,F$59:F$96) -> 0 | E103: =SUMIF($C$15:$C$52,$A103,G$15:G$52)+SUMIF($C$59:$C$96,$A103,G$59:G$96) -> 0
A104: Light-Duty Truck | C104: =SUMIF($C$15:$C$52,$A104,E$15:E$52) -> 0 | D104: 0 | E104: 0
A105: Passenger Car | C105: 0 | D105: 0 | E105: 0
A106: Rail | C106: =SUMIF($C$59:$C$96,$A106,E$59:E$96) -> 0 | D106: 0 | E106: 0
A107: Aircraft | C107: 0 | D107: 0 | E107: 0
A108: Waterborne Craft | C108: 0 | D108: 0 | E108: 0
A111: Total CO2 Equivalent Emissions (metric tons) - Upstream Transportation and Distribution | D111: =(SUM(C103:C108)+SUM(D103:D108)/1000*CH4_GWP+SUM(E103:E108)/1000*N2O_GWP)/1000 -> 0

Sheet Waste
A3: Scope 3 Emissions from Waste
A5: Guidance
A6: (A) Enter annual waste data in ORANGE cells. Example entry is shown in first row (GREEN Italics).
A7: (B) First, choose the appropriate material then the disposal method from the drop down options. For the average-data method, use one of the mixed material types, such as mixed MSW. If the exact waste material is not available, consider an appropriate proxy. For example, dimensional lumber can be used as a proxy for wood furniture.
A8: (C) Choose an appropriate disposal method. Note that not all disposal methods are available for all materials. If there is a #NA or # Value error in the emissions column, you must pick a new material type or appropriate disposal method.
A10: Table 1. Waste Disposal Weight by Waste Material and Disposal Method (CO2, CH4 and N2O)
A11: Source ID | B11: Source Description | C11: Waste Material | D11: Disposal Method | E11: Weight | F11: Unit | G11: CO2e Emissions (kg)
A12: Bldg-012 | B12: East Power Plant Finished Goods | C12: Copper Wire | D12: Landfilled | E12: 1000 | F12: metric ton | G12: =IF($E12="","",E12*(VLOOKUP($F12,'Unit Conversions'!$A$12:$C$16,3,FALSE)*INDEX('Emission Factors'!$B$348:$H$408,MATCH(C12,'Emission Factors'!$B$348:$B$408,0),MATCH(D12,'Emission Factors'!$B$348:$H$348,0)))*1000) -> 22040
G13: =IF($E13="","",E13*(VLOOKUP($F13,'Unit Conversions'!$A$12:$C$16,3,FALSE)*INDEX('Emission Factors'!$B$348:$H$408,MATCH(C13,'Emission Factors'!$B$348:$B$408,0),MATCH(D13,'Emission Factors'!$B$348:$H$348,0)))*1000) -> 
G14: =IF($E14="","",E14*(VLOOKUP($F14,'Unit Conversions'!$A$12:$C$16,3,FALSE)*INDEX('Emission Factors'!$B$348:$H$408,MATCH(C14,'Emission Factors'!$B$348:$B$408,0),MATCH(D14,'Emission Factors'!$B$348:$H$348,0)))*1000) -> 
G15: =IF($E15="","",E15*(VLOOKUP($F15,'Unit Conversions'!$A$12:$C$16,3,FALSE)*INDEX('Emission Factors'!$B$348:$H$408,MATCH(C15,'Emission Factors'!$B$348:$B$408,0),MATCH(D15,'Emission Factors'!$B$348:$H$348,0)))*1000) -> 
G16: =IF($E16="","",E16*(VLOOKUP($F16,'Unit Conversions'!$A$12:$C$16,3,FALSE)*INDEX('Emission Factors'!$B$348:$H$408,MATCH(C16,'Emission Factors'!$B$348:$B$408,0),MATCH(D16,'Emission Factors'!$B$348:$H$348,0)))*1000) -> 
G17: =IF($E17="","",E17*(VLOOKUP($F17,'Unit Conversions'!$A$12:$C$16,3,FALSE)*INDEX('Emission Factors'!$B$348:$H$408,MATCH(C17,'Emission Factors'!$B$348:$B$408,0),MATCH(D17,'Emission Factors'!$B$348:$H$348,0)))*1000) -> 
G18: =IF($E18="","",E18*(VLOOKUP($F18,'Unit Conversions'!$A$12:$C$16,3,FALSE)*INDEX('Emission Factors'!$B$348:$H$408,MATCH(C18,'Emission Factors'!$B$348:$B$408,0),MATCH(D18,'Emission Factors'!$B$348:$H$348,0)))*1000) -> 
G19: =IF($E19="","",E19*(VLOOKUP($F19,'Unit Conversions'!$A$12:$C$16,3,FALSE)*INDEX('Emission Factors'!$B$348:$H$408,MATCH(C19,'Emission Factors'!$B$348:$B$408,0),MATCH(D19,'Emission Factors'!$B$348:$H$348,0)))*1000) -> 
G20: =IF($E20="","",E20*(VLOOKUP($F20,'Unit Conversions'!$A$12:$C$16,3,FALSE)*INDEX('Emission Factors'!$B$348:$H$408,MATCH(C20,'Emission Factors'!$B$348:$B$408,0),MATCH(D20,'Emission Factors'!$B$348:$H$348,0)))*1000) -> 
G21: =IF($E21="","",E21*(VLOOKUP($F21,'Unit Conversions'!$A$12:$C$16,3,FALSE)*INDEX('Emission Factors'!$B$348:$H$408,MATCH(C21,'Emission Factors'!$B$348:$B$408,0),MATCH(D21,'Emission Factors'!$B$348:$H$348,0)))*1000) -> 
G22: =IF($E22="","",E22*(VLOOKUP($F22,'Unit Conversions'!$A$12:$C$16,3,FALSE)*INDEX('Emission Factors'!$B$348:$H$408,MATCH(C22,'Emission Factors'!$B$348:$B$408,0),MATCH(D22,'Emission Factors'!$B$348:$H$348,0)))*1000) -> 
G23: =IF($E23="","",E23*(VLOOKUP($F23,'Unit Conversions'!$A$12:$C$16,3,FALSE)*INDEX('Emission Factors'!$B$348:$H$408,MATCH(C23,'Emission Factors'!$B$348:$B$408,0),MATCH(D23,'Emission Factors'!$B$348:$H$348,0)))*1000) -> 
G24: =IF($E24="","",E24*(VLOOKUP($F24,'Unit Conversions'!$A$12:$C$16,3,FALSE)*INDEX('Emission Factors'!$B$348:$H$408,MATCH(C24,'Emission Factors'!$B$348:$B$408,0),MATCH(D24,'Emission Factors'!$B$348:$H$348,0)))*1000) -> 
G25: =IF($E25="","",E25*(VLOOKUP($F25,'Unit Conversions'!$A$12:$C$16,3,FALSE)*INDEX('Emission Factors'!$B$348:$H$408,MATCH(C25,'Emission Factors'!$B$348:$B$408,0),MATCH(D25,'Emission Factors'!$B$348:$H$348,0)))*1000) -> 
G26: =IF($E26="","",E26*(VLOOKUP($F26,'Unit Conversions'!$A$12:$C$16,3,FALSE)*INDEX('Emission Factors'!$B$348:$H$408,MATCH(C26,'Emission Factors'!$B$348:$B$408,0),MATCH(D26,'Emission Factors'!$B$348:$H$348,0)))*1000) -> 
G27: =IF($E27="","",E27*(VLOOKUP($F27,'Unit Conversions'!$A$12:$C$16,3,FALSE)*INDEX('Emission Factors'!$B$348:$H$408,MATCH(C27,'Emission Factors'!$B$348:$B$408,0),MATCH(D27,'Emission Factors'!$B$348:$H$348,0)))*1000) -> 
G28: =IF($E28="","",E28*(VLOOKUP($F28,'Unit Conversions'!$A$12:$C$16,3,FALSE)*INDEX('Emission Factors'!$B$348:$H$408,MATCH(C28,'Emission Factors'!$B$348:$B$408,0),MATCH(D28,'Emission Factors'!$B$348:$H$348,0)))*1000) -> 
G29: =IF($E29="","",E29*(VLOOKUP($F29,'Unit Conversions'!$A$12:$C$16,3,FALSE)*INDEX('Emission Factors'!$B$348:$H$408,MATCH(C29,'Emission Factors'!$B$348:$B$408,0),MATCH(D29,'Emission Factors'!$B$348:$H$348,0)))*1000) -> 
G30: =IF($E30="","",E30*(VLOOKUP($F30,'Unit Conversions'!$A$12:$C$16,3,FALSE)*INDEX('Emission Factors'!$B$348:$H$408,MATCH(C30,'Emission Factors'!$B$348:$B$408,0),MATCH(D30,'Emission Factors'!$B$348:$H$348,0)))*1000) -> 
G31: =IF($E31="","",E31*(VLOOKUP($F31,'Unit Conversions'!$A$12:$C$16,3,FALSE)*INDEX('Emission Factors'!$B$348:$H$408,MATCH(C31,'Emission Factors'!$B$348:$B$408,0),MATCH(D31,'Emission Factors'!$B$348:$H$348,0)))*1000) -> 
G32: =IF($E32="","",E32*(VLOOKUP($F32,'Unit Conversions'!$A$12:$C$16,3,FALSE)*INDEX('Emission Factors'!$B$348:$H$408,MATCH(C32,'Emission Factors'!$B$348:$B$408,0),MATCH(D32,'Emission Factors'!$B$348:$H$348,0)))*1000) -> 
G33: =IF($E33="","",E33*(VLOOKUP($F33,'Unit Conversions'!$A$12:$C$16,3,FALSE)*INDEX('Emission Factors'!$B$348:$H$408,MATCH(C33,'Emission Factors'!$B$348:$B$408,0),MATCH(D33,'Emission Factors'!$B$348:$H$348,0)))*1000) -> 
G34: =IF($E34="","",E34*(VLOOKUP($F34,'Unit Conversions'!$A$12:$C$16,3,FALSE)*INDEX('Emission Factors'!$B$348:$H$408,MATCH(C34,'Emission Factors'!$B$348:$B$408,0),MATCH(D34,'Emission Factors'!$B$348:$H$348,0)))*1000) -> 
G35: =IF($E35="","",E35*(VLOOKUP($F35,'Unit Conversions'!$A$12:$C$16,3,FALSE)*INDEX('Emission Factors'!$B$348:$H$408,MATCH(C35,'Emission Factors'!$B$348:$B$408,0),MATCH(D35,'Emission Factors'!$B$348:$H$348,0)))*1000) -> 
G36: =IF($E36="","",E36*(VLOOKUP($F36,'Unit Conversions'!$A$12:$C$16,3,FALSE)*INDEX('Emission Factors'!$B$348:$H$408,MATCH(C36,'Emission Factors'!$B$348:$B$408,0),MATCH(D36,'Emission Factors'!$B$348:$H$348,0)))*1000) -> 
G37: =IF($E37="","",E37*(VLOOKUP($F37,'Unit Conversions'!$A$12:$C$16,3,FALSE)*INDEX('Emission Factors'!$B$348:$H$408,MATCH(C37,'Emission Factors'!$B$348:$B$408,0),MATCH(D37,'Emission Factors'!$B$348:$H$348,0)))*1000) -> 
G38: =IF($E38="","",E38*(VLOOKUP($F38,'Unit Conversions'!$A$12:$C$16,3,FALSE)*INDEX('Emission Factors'!$B$348:$H$408,MATCH(C38,'Emission Factors'!$B$348:$B$408,0),MATCH(D38,'Emission Factors'!$B$348:$H$348,0)))*1000) -> 
G39: =IF($E39="","",E39*(VLOOKUP($F39,'Unit Conversions'!$A$12:$C$16,3,FALSE)*INDEX('Emission Factors'!$B$348:$H$408,MATCH(C39,'Emission Factors'!$B$348:$B$408,0),MATCH(D39,'Emission Factors'!$B$348:$H$348,0)))*1000) -> 
G40: =IF($E40="","",E40*(VLOOKUP($F40,'Unit Conversions'!$A$12:$C$16,3,FALSE)*INDEX('Emission Factors'!$B$348:$H$408,MATCH(C40,'Emission Factors'!$B$348:$B$408,0),MATCH(D40,'Emission Factors'!$B$348:$H$348,0)))*1000) -> 
G41: =IF($E41="","",E41*(VLOOKUP($F41,'Unit Conversions'!$A$12:$C$16,3,FALSE)*INDEX('Emission Factors'!$B$348:$H$408,MATCH(C41,'Emission Factors'!$B$348:$B$408,0),MATCH(D41,'Emission Factors'!$B$348:$H$348,0)))*1000) -> 
G42: =IF($E42="","",E42*(VLOOKUP($F42,'Unit Conversions'!$A$12:$C$16,3,FALSE)*INDEX('Emission Factors'!$B$348:$H$408,MATCH(C42,'Emission Factors'!$B$348:$B$408,0),MATCH(D42,'Emission Factors'!$B$348:$H$348,0)))*1000) -> 
G43: =IF($E43="","",E43*(VLOOKUP($F43,'Unit Conversions'!$A$12:$C$16,3,FALSE)*INDEX('Emission Factors'!$B$348:$H$408,MATCH(C43,'Emission Factors'!$B$348:$B$408,0),MATCH(D43,'Emission Factors'!$B$348:$H$348,0)))*1000) -> 
G44: =IF($E44="","",E44*(VLOOKUP($F44,'Unit Conversions'!$A$12:$C$16,3,FALSE)*INDEX('Emission Factors'!$B$348:$H$408,MATCH(C44,'Emission Factors'!$B$348:$B$408,0),MATCH(D44,'Emission Factors'!$B$348:$H$348,0)))*1000) -> 
G45: =IF($E45="","",E45*(VLOOKUP($F45,'Unit Conversions'!$A$12:$C$16,3,FALSE)*INDEX('Emission Factors'!$B$348:$H$408,MATCH(C45,'Emission Factors'!$B$348:$B$408,0),MATCH(D45,'Emission Factors'!$B$348:$H$348,0)))*1000) -> 
G46: =IF($E46="","",E46*(VLOOKUP($F46,'Unit Conversions'!$A$12:$C$16,3,FALSE)*INDEX('Emission Factors'!$B$348:$H$408,MATCH(C46,'Emission Factors'!$B$348:$B$408,0),MATCH(D46,'Emission Factors'!$B$348:$H$348,0)))*1000) -> 
G47: =IF($E47="","",E47*(VLOOKUP($F47,'Unit Conversions'!$A$12:$C$16,3,FALSE)*INDEX('Emission Factors'!$B$348:$H$408,MATCH(C47,'Emission Factors'!$B$348:$B$408,0),MATCH(D47,'Emission Factors'!$B$348:$H$348,0)))*1000) -> 
G48: =IF($E48="","",E48*(VLOOKUP($F48,'Unit Conversions'!$A$12:$C$16,3,FALSE)*INDEX('Emission Factors'!$B$348:$H$408,MATCH(C48,'Emission Factors'!$B$348:$B$408,0),MATCH(D48,'Emission Factors'!$B$348:$H$348,0)))*1000) -> 
G49: =IF($E49="","",E49*(VLOOKUP($F49,'Unit Conversions'!$A$12:$C$16,3,FALSE)*INDEX('Emission Factors'!$B$348:$H$408,MATCH(C49,'Emission Factors'!$B$348:$B$408,0),MATCH(D49,'Emission Factors'!$B$348:$H$348,0)))*1000) -> 
G50: =IF($E50="","",E50*(VLOOKUP($F50,'Unit Conversions'!$A$12:$C$16,3,FALSE)*INDEX('Emission Factors'!$B$348:$H$408,MATCH(C50,'Emission Factors'!$B$348:$B$408,0),MATCH(D50,'Emission Factors'!$B$348:$H$348,0)))*1000) -> 
G51: =IF($E51="","",E51*(VLOOKUP($F51,'Unit Conversions'!$A$12:$C$16,3,FALSE)*INDEX('Emission Factors'!$B$348:$H$408,MATCH(C51,'Emission Factors'!$B$348:$B$408,0),MATCH(D51,'Emission Factors'!$B$348:$H$348,0)))*1000) -> 
G52: =IF($E52="","",E52*(VLOOKUP($F52,'Unit Conversions'!$A$12:$C$16,3,FALSE)*INDEX('Emission Factors'!$B$348:$H$408,MATCH(C52,'Emission Factors'!$B$348:$B$408,0),MATCH(D52,'Emission Factors'!$B$348:$H$348,0)))*1000) -> 
G53: =IF($E53="","",E53*(VLOOKUP($F53,'Unit Conversions'!$A$12:$C$16,3,FALSE)*INDEX('Emission Factors'!$B$348:$H$408,MATCH(C53,'Emission Factors'!$B$348:$B$408,0),MATCH(D53,'Emission Factors'!$B$348:$H$348,0)))*1000) -> 
G54: =IF($E54="","",E54*(VLOOKUP($F54,'Unit Conversions'!$A$12:$C$16,3,FALSE)*INDEX('Emission Factors'!$B$348:$H$408,MATCH(C54,'Emission Factors'!$B$348:$B$408,0),MATCH(D54,'Emission Factors'!$B$348:$H$348,0)))*1000) -> 
G55: =IF($E55="","",E55*(VLOOKUP($F55,'Unit Conversions'!$A$12:$C$16,3,FALSE)*INDEX('Emission Factors'!$B$348:$H$408,MATCH(C55,'Emission Factors'!$B$348:$B$408,0),MATCH(D55,'Emission Factors'!$B$348:$H$348,0)))*1000) -> 
G56: =IF($E56="","",E56*(VLOOKUP($F56,'Unit Conversions'!$A$12:$C$16,3,FALSE)*INDEX('Emission Factors'!$B$348:$H$408,MATCH(C56,'Emission Factors'!$B$348:$B$408,0),MATCH(D56,'Emission Factors'!$B$348:$H$348,0)))*1000) -> 
G57: =IF($E57="","",E57*(VLOOKUP($F57,'Unit Conversions'!$A$12:$C$16,3,FALSE)*INDEX('Emission Factors'!$B$348:$H$408,MATCH(C57,'Emission Factors'!$B$348:$B$408,0),MATCH(D57,'Emission Factors'!$B$348:$H$348,0)))*1000) -> 
G58: =IF($E58="","",E58*(VLOOKUP($F58,'Unit Conversions'!$A$12:$C$16,3,FALSE)*INDEX('Emission Factors'!$B$348:$H$408,MATCH(C58,'Emission Factors'!$B$348:$B$408,0),MATCH(D58,'Emission Factors'!$B$348:$H$348,0)))*1000) -> 
G59: =IF($E59="","",E59*(VLOOKUP($F59,'Unit Conversions'!$A$12:$C$16,3,FALSE)*INDEX('Emission Factors'!$B$348:$H$408,MATCH(C59,'Emission Factors'!$B$348:$B$408,0),MATCH(D59,'Emission Factors'!$B$348:$H$348,0)))*1000) -> 
G60: =IF($E60="","",E60*(VLOOKUP($F60,'Unit Conversions'!$A$12:$C$16,3,FALSE)*INDEX('Emission Factors'!$B$348:$H$408,MATCH(C60,'Emission Factors'!$B$348:$B$408,0),MATCH(D60,'Emission Factors'!$B$348:$H$348,0)))*1000) -> 
G61: =IF($E61="","",E61*(VLOOKUP($F61,'Unit Conversions'!$A$12:$C$16,3,FALSE)*INDEX('Emission Factors'!$B$348:$H$408,MATCH(C61,'Emission Factors'!$B$348:$B$408,0),MATCH(D61,'Emission Factors'!$B$348:$H$348,0)))*1000) -> 
G62: =IF($E62="","",E62*(VLOOKUP($F62,'Unit Conversions'!$A$12:$C$16,3,FALSE)*INDEX('Emission Factors'!$B$348:$H$408,MATCH(C62,'Emission Factors'!$B$348:$B$408,0),MATCH(D62,'Emission Factors'!$B$348:$H$348,0)))*1000) -> 
G63: =IF($E63="","",E63*(VLOOKUP($F63,'Unit Conversions'!$A$12:$C$16,3,FALSE)*INDEX('Emission Factors'!$B$348:$H$408,MATCH(C63,'Emission Factors'!$B$348:$B$408,0),MATCH(D63,'Emission Factors'!$B$348:$H$348,0)))*1000) -> 
G64: =IF($E64="","",E64*(VLOOKUP($F64,'Unit Conversions'!$A$12:$C$16,3,FALSE)*INDEX('Emission Factors'!$B$348:$H$408,MATCH(C64,'Emission Factors'!$B$348:$B$408,0),MATCH(D64,'Emission Factors'!$B$348:$H$348,0)))*1000) -> 
G65: =IF($E65="","",E65*(VLOOKUP($F65,'Unit Conversions'!$A$12:$C$16,3,FALSE)*INDEX('Emission Factors'!$B$348:$H$408,MATCH(C65,'Emission Factors'!$B$348:$B$408,0),MATCH(D65,'Emission Factors'!$B$348:$H$348,0)))*1000) -> 
G66: =IF($E66="","",E66*(VLOOKUP($F66,'Unit Conversions'!$A$12:$C$16,3,FALSE)*INDEX('Emission Factors'!$B$348:$H$408,MATCH(C66,'Emission Factors'!$B$348:$B$408,0),MATCH(D66,'Emission Factors'!$B$348:$H$348,0)))*1000) -> 
G67: =IF($E67="","",E67*(VLOOKUP($F67,'Unit Conversions'!$A$12:$C$16,3,FALSE)*INDEX('Emission Factors'!$B$348:$H$408,MATCH(C67,'Emission Factors'!$B$348:$B$408,0),MATCH(D67,'Emission Factors'!$B$348:$H$348,0)))*1000) -> 
G68: =IF($E68="","",E68*(VLOOKUP($F68,'Unit Conversions'!$A$12:$C$16,3,FALSE)*INDEX('Emission Factors'!$B$348:$H$408,MATCH(C68,'Emission Factors'!$B$348:$B$408,0),MATCH(D68,'Emission Factors'!$B$348:$H$348,0)))*1000) -> 
G69: =IF($E69="","",E69*(VLOOKUP($F69,'Unit Conversions'!$A$12:$C$16,3,FALSE)*INDEX('Emission Factors'!$B$348:$H$408,MATCH(C69,'Emission Factors'!$B$348:$B$408,0),MATCH(D69,'Emission Factors'!$B$348:$H$348,0)))*1000) -> 
G70: =IF($E70="","",E70*(VLOOKUP($F70,'Unit Conversions'!$A$12:$C$16,3,FALSE)*INDEX('Emission Factors'!$B$348:$H$408,MATCH(C70,'Emission Factors'!$B$348:$B$408,0),MATCH(D70,'Emission Factors'!$B$348:$H$348,0)))*1000) -> 
G71: =IF($E71="","",E71*(VLOOKUP($F71,'Unit Conversions'!$A$12:$C$16,3,FALSE)*INDEX('Emission Factors'!$B$348:$H$408,MATCH(C71,'Emission Factors'!$B$348:$B$408,0),MATCH(D71,'Emission Factors'!$B$348:$H$348,0)))*1000) -> 
G72: =IF($E72="","",E72*(VLOOKUP($F72,'Unit Conversions'!$A$12:$C$16,3,FALSE)*INDEX('Emission Factors'!$B$348:$H$408,MATCH(C72,'Emission Factors'!$B$348:$B$408,0),MATCH(D72,'Emission Factors'!$B$348:$H$348,0)))*1000) -> 
G73: =IF($E73="","",E73*(VLOOKUP($F73,'Unit Conversions'!$A$12:$C$16,3,FALSE)*INDEX('Emission Factors'!$B$348:$H$408,MATCH(C73,'Emission Factors'!$B$348:$B$408,0),MATCH(D73,'Emission Factors'!$B$348:$H$348,0)))*1000) -> 
G74: =IF($E74="","",E74*(VLOOKUP($F74,'Unit Conversions'!$A$12:$C$16,3,FALSE)*INDEX('Emission Factors'!$B$348:$H$408,MATCH(C74,'Emission Factors'!$B$348:$B$408,0),MATCH(D74,'Emission Factors'!$B$348:$H$348,0)))*1000) -> 
G75: =IF($E75="","",E75*(VLOOKUP($F75,'Unit Conversions'!$A$12:$C$16,3,FALSE)*INDEX('Emission Factors'!$B$348:$H$408,MATCH(C75,'Emission Factors'!$B$348:$B$408,0),MATCH(D75,'Emission Factors'!$B$348:$H$348,0)))*1000) -> 
G76: =IF($E76="","",E76*(VLOOKUP($F76,'Unit Conversions'!$A$12:$C$16,3,FALSE)*INDEX('Emission Factors'!$B$348:$H$408,MATCH(C76,'Emission Factors'!$B$348:$B$408,0),MATCH(D76,'Emission Factors'!$B$348:$H$348,0)))*1000) -> 
G77: =IF($E77="","",E77*(VLOOKUP($F77,'Unit Conversions'!$A$12:$C$16,3,FALSE)*INDEX('Emission Factors'!$B$348:$H$408,MATCH(C77,'Emission Factors'!$B$348:$B$408,0),MATCH(D77,'Emission Factors'!$B$348:$H$348,0)))*1000) -> 
G78: =IF($E78="","",E78*(VLOOKUP($F78,'Unit Conversions'!$A$12:$C$16,3,FALSE)*INDEX('Emission Factors'!$B$348:$H$408,MATCH(C78,'Emission Factors'!$B$348:$B$408,0),MATCH(D78,'Emission Factors'!$B$348:$H$348,0)))*1000) -> 
G79: =IF($E79="","",E79*(VLOOKUP($F79,'Unit Conversions'!$A$12:$C$16,3,FALSE)*INDEX('Emission Factors'!$B$348:$H$408,MATCH(C79,'Emission Factors'!$B$348:$B$408,0),MATCH(D79,'Emission Factors'!$B$348:$H$348,0)))*1000) -> 
G80: =IF($E80="","",E80*(VLOOKUP($F80,'Unit Conversions'!$A$12:$C$16,3,FALSE)*INDEX('Emission Factors'!$B$348:$H$408,MATCH(C80,'Emission Factors'!$B$348:$B$408,0),MATCH(D80,'Emission Factors'!$B$348:$H$348,0)))*1000) -> 
G81: =IF($E81="","",E81*(VLOOKUP($F81,'Unit Conversions'!$A$12:$C$16,3,FALSE)*INDEX('Emission Factors'!$B$348:$H$408,MATCH(C81,'Emission Factors'!$B$348:$B$408,0),MATCH(D81,'Emission Factors'!$B$348:$H$348,0)))*1000) -> 
G82: =IF($E82="","",E82*(VLOOKUP($F82,'Unit Conversions'!$A$12:$C$16,3,FALSE)*INDEX('Emission Factors'!$B$348:$H$408,MATCH(C82,'Emission Factors'!$B$348:$B$408,0),MATCH(D82,'Emission Factors'!$B$348:$H$348,0)))*1000) -> 
G83: =IF($E83="","",E83*(VLOOKUP($F83,'Unit Conversions'!$A$12:$C$16,3,FALSE)*INDEX('Emission Factors'!$B$348:$H$408,MATCH(C83,'Emission Factors'!$B$348:$B$408,0),MATCH(D83,'Emission Factors'!$B$348:$H$348,0)))*1000) -> 
G84: =IF($E84="","",E84*(VLOOKUP($F84,'Unit Conversions'!$A$12:$C$16,3,FALSE)*INDEX('Emission Factors'!$B$348:$H$408,MATCH(C84,'Emission Factors'!$B$348:$B$408,0),MATCH(D84,'Emission Factors'!$B$348:$H$348,0)))*1000) -> 
A87: GHG Emissions
A89: Total Emissions by Disposal Method
A90: Waste Material | B90: CO2e (kg)
A91: Recycled | B91: =SUMIF($D$13:$D$84,$A91,G$13:G$84) -> 0
A92: Landfilled | B92: =SUMIF($D$13:$D$84,$A92,G$13:G$84) -> 0
A93: Combusted | B93: 0
A94: Composted | B94: 0
A95: Anaerobically Digested (Dry Digestate with Curing) | B95: =SUMIF($D$13:$D$84,$A95,G$13:G$84) -> 0
A96: Anaerobically Digested (Wet Digestate with Curing) | B96: 0
A99: Total CO2 Equivalent Emissions (metric tons) - Waste | D99: =SUM(B91:B96)/1000 -> 0

Sheet Offsets
A3: Purchased Offsets
A5: Guidance
A6: (A) Enter quantity of offsets purchased for each offset project in terms of CO2 equivalent in ORANGE cells of Table 1. Enter offsets purchased for the inventory reporting period. Example entry is shown in first row (GREEN Italics).
A8: Table 1. Total Amount of Purchased Offsets
A9: ID | B9: Project Description | C9: Offsets Purchased (Metric Tons CO2e)
A10: Trees | B10: Forestry Project | C10: 5000
A22: GHG Reductions
A24: Total CO2 Equivalent Emission Reductions (metric tons) - Offsets
C25: =SUM(C11:C20) -> 0

Sheet Unit Conversions
A3: Tool Sheet: Unit Conversions
A6: Mass
A7: Convert From | B7: Convert To | C7: Multiply By | D7: Units
A8: pounds (lb) | B8: gram (g) | C8: 453.6 | D8: g / lb
A9: pounds (lb) | B9: kilogram (kg) | C9: 0.4536 | D9: kg / lb
A10: pounds (lb) | B10: metric ton | C10: 0.0004536 | D10: metric ton / lb
A11: kilogram (kg) | B11: pounds (lb) | C11: 2.205 | D11: lb / kg
A12: gram (g) | B12: short ton | C12: =C13/1000 -> 1.102e-06 | D12: short ton / g
A13: kilogram (kg) | B13: short ton | C13: =C14/1000 -> 0.001102 | D13: short ton / kg
A14: metric ton | B14: short ton | C14: 1.102 | D14: short ton / metric ton
A15: pounds (lb) | B15: short ton | C15: =1/2000 -> 0.0005 | D15: short ton / lb
A16: short ton | B16: short ton | C16: 1 | D16: short ton / short ton
A17: metric ton | B17: pounds (lb) | C17: 2205 | D17: lb / metric ton
A18: metric ton | B18: kilogram (kg) | C18: 1000 | D18: kg / metric ton
A20: Volume
A21: Convert From | B21: Convert To | C21: Multiply By | D21: Units
A22: standard cubic foot (scf) | B22: US gallon (gal) | C22: 7.4805 | D22: gal / scf
A23: standard cubic foot (scf) | B23: barrel (bbl) | C23: 0.1781 | D23: bbl / scf
A24: standard cubic foot (scf) | B24: liters (L) | C24: 28.32 | D24: L / scf
A25: standard cubic foot (scf) | B25: cubic meters (m3) | C25: 0.02832 | D25: m3 / scf
A26: US gallon (gal) | B26: barrel (bbl) | C26: 0.0238 | D26: bbl / gal
A27: US gallon (gal) | B27: liters (L) | C27: 3.785 | D27: L / gal
A28: US gallon (gal) | B28: cubic meters (m3) | C28: 0.003785 | D28: m3 / gal
A29: barrel (bbl) | B29: US gallons (gal) | C29: 42 | D29: gal / bbl
A30: barrel (bbl) | B30: liters (L) | C30: 158.99 | D30: L / bbl
A31: barrel (bbl) | B31: cubic meters (m3) | C31: 0.1589 | D31: m3 / bbl
A32: liters (L) | B32: cubic meters (m3) | C32: 0.001 | D32: m3 / L
A33: liters (L) | B33: US gallon (gal) | C33: 0.2642 | D33: gal / L
A34: cubic meters (m3) | B34: barrel (bbl) | C34: 6.2897 | D34: bbl / m3
A35: cubic meters (m3) | B35: US gallon (gal) | C35: 264.2 | D35: gal / m3
A36: cubic meters (m3) | B36: liters (L) | C36: 1000 | D36: L / m3
A38: Energy
A39: Convert From | B39: Convert To | C39: Multiply By | D39: Units
A40: kilowatt hour (kWh) | B40: Btu | C40: 3412 | D40: Btu / kWh
A41: kilowatt hour (kWh) | B41: kilojoules (KJ) | C41: 3600 | D41: KJ / kWh
A42: megajoule (MJ) | B42: gigajoules (GJ) | C42: 0.001 | D42: GJ / MJ
A43: gigajoule (GJ) | B43: million Btu (mmBtu) | C43: 0.9478 | D43: mmBtu / GJ
A44: gigajoule (GJ) | B44: kilowatt hours (kWh) | C44: 277.8 | D44: kWh / GJ
A45: Btu | B45: joules (J) | C45: 1055 | D45: J / Btu
A46: million Btu (mmBtu) | B46: gigajoules (GJ) | C46: 1.055 | D46: GJ / mmBtu
A47: million Btu (mmBtu) | B47: kilowatt hours (kWh) | C47: 293 | D47: kWh / mmBtu
A48: therm | B48: Btu | C48: 100000 | D48: Btu / therm
A49: therm | B49: gigajoules (GJ) | C49: 0.1055 | D49: GJ / therm
A50: therm | B50: kilowatt hours (kWh) | C50: 29.3 | D50: kWh / therm
A52: Distance
A53: Convert From | B53: Convert To | C53: Multiply By | D53: Units
A54: mile | B54: kilometers (km) | C54: 1.609 | D54: km / mile
A55: nautical mile | B55: miles | C55: 1.15 | D55: mile / nautical mile
A56: kilometer (km) | B56: miles | C56: =ROUND(1/C54,3) -> 0.622 | D56: mile / km
A58: Other
A59: Kilo | B59: 1000
A60: Mega | B60: 1000000
A61: Giga | B61: 1000000000
A62: Tera | B62: 1000000000000
A63: Molecular Weigh of C | B63: 12
A64: Molecular Weight of CO2 | B64: 44

Sheet Heat Content
A3: Tool Sheet: Heat Content for Specific Fuels
A6: Fuel Type | B6: Convert From | C6: Convert To | D6: Multiply By | E6: Units | F6: Source
A7: Natural Gas | B7: mmBtu | C7: scf | D7: =ROUND(1/0.001026,6) -> 974.658869 | E7: scf / mmBtu | F7: EPA, Emission Factors Hub April 2022 Based on Federal Register EPA; 40 CFR Part 98; e-CFR, (see link below). Table C-1, Table C-2 (as amended at 81 FR 89252, Dec. 9, 2016), Table AA-1 (78 FR 71965, Nov. 29, 2013). https://www.ecfr.gov/cgi-bin/text-idx?SID=ae265d7d6f98ec86fcd8640b9793a3f6&mc=true&node=pt40.23.98&rgn=div5#ap40.23.98_19.1
A8: Natural Gas | B8: Dth (Decatherm) | C8: scf | D8: =D7 -> 974.658869 | E8: scf / Dth
A9: Natural Gas | B9: therm | C9: scf | D9: =D8/10 -> 97.4658869 | E9: scf / therm
A10: Natural Gas | B10: ccf | C10: scf | D10: 100 | E10: scf / ccf
A11: Natural Gas | B11: Mcf | C11: scf | D11: 1000 | E11: scf / Mcf
A12: Natural Gas | B12: cubic meter | C12: scf | D12: =1/'Unit Conversions'!C25 -> 35.31073446 | E12: scf / cubic meter
A13: Natural Gas | B13: kWh | C13: scf | D13: =D7*('Unit Conversions'!C40/1000000) -> 3.325536061 | E13: scf / kWh
A14: Anthracite Coal | B14: mmBtu | C14: Short ton | D14: =1/25.09 -> 0.03985651654 | E14: short ton / mmBtu
A15: Bituminous Coal | B15: mmBtu | C15: Short ton | D15: =1/24.93 -> 0.04011231448 | E15: short ton / mmBtu
A16: Sub-bituminous Coal | B16: mmBtu | C16: Short ton | D16: =1/17.25 -> 0.05797101449 | E16: short ton / mmBtu
A17: Coal Coke | B17: mmBtu | C17: Short ton | D17: =1/24.8 -> 0.04032258065 | E17: short ton / mmBtu
A18: Lignite Coal | B18: mmBtu | C18: Short ton | D18: =1/14.21 -> 0.07037297678 | E18: short ton / mmBtu
A19: Mixed (Electric Power Sector) | B19: mmBtu | C19: Short ton | D19: =1/19.73 -> 0.0506842372 | E19: short ton / mmBtu
A20: Wood and Wood Residuals | B20: mmBtu | C20: Short ton | D20: =1/17.48 -> 0.05720823799 | E20: short ton / mmBtu
A21: Distillate Fuel Oil No. 2 | B21: mmBtu | C21: gallon | D21: =1/0.138 -> 7.246376812 | E21: gallon / mmBtu
A22: Residual Fuel Oil No. 6 | B22: mmBtu | C22: gallon | D22: =1/0.15 -> 6.666666667 | E22: gallon / mmBtu
A23: Kerosene | B23: mmBtu | C23: gallon | D23: =1/0.135 -> 7.407407407 | E23: gallon / mmBtu
A24: Liquefied Petroleum Gases (LPG) | B24: mmBtu | C24: gallon | D24: =1/0.092 -> 10.86956522 | E24: gallon / mmBtu
A25: Landfill Gas | B25: mmBtu | C25: scf | D25: =1/0.000485 -> 2061.85567 | E25: scf / mmBtu
A26: Steam | B26: Mlb (1,000 pounds) | C26: mmBtu | D26: =D27*1000 -> 1.194 | E26: mmBtu / Mlb | F26: EPA, ENERGY STAR, https://www.energystar.gov/buildings/tools-and-resources/portfolio-manager-technical-reference-thermal-conversion-factors
A27: Steam | B27: lb | C27: mmBtu | D27: =1.194/1000 -> 0.001194 | E27: mmBtu / lb
A28: Steam | B28: short ton | C28: mmBtu | D28: =D27/'Unit Conversions'!C15 -> 2.388 | E28: mmBtu / short ton

Sheet Emission Factors
A3: Tool Sheet: Emission Factors
A5: All emission factors sourced from EPA's Emission Factors Hub, April 2022. Unless otherwise noted. Fuel emission factors presented represent the combustion-only emissions (e.g., tank-to-wheel)
A6: https://www.epa.gov/climateleadership/center-corporate-climate-leadership-ghg-emission-factors-hub
A7: Stationary Combustion Emission Factors (Used for Steam and Stationary Combustion)
A9: Fuel Type | B9: CO2 Factor (kg / mmBtu) | C9: CH4 Factor (g / mmBtu) | D9: N2O Factor (g / mmBtu) | E9: CO2 Factor (kg / Unit) | F9: CH4 Factor (g / unit) | G9: N2O Factor (g / unit) | H9: Unit
A10: Natural Gas | B10: 53.06 | C10: 1 | D10: 0.1 | E10: 0.05444 | F10: 0.00103 | G10: 0.0001 | H10: scf
A11: Distillate Fuel Oil No. 2 | B11: 73.96 | C11: 3 | D11: 0.6 | E11: 10.21 | F11: 0.41 | G11: 0.08 | H11: gallons
A12: Residual Fuel Oil No. 6 | B12: 75.1 | C12: 3 | D12: 0.6 | E12: 11.27 | F12: 0.45 | G12: 0.09 | H12: gallons
A13: Kerosene | B13: 75.2 | C13: 3 | D13: 0.6 | E13: 10.15 | F13: 0.41 | G13: 0.08 | H13: gallons
A14: Liquefied Petroleum Gases (LPG) | B14: 61.71 | C14: 3 | D14: 0.6 | E14: 5.68 | F14: 0.28 | G14: 0.06 | H14: gallons
A15: Anthracite Coal | B15: 103.69 | C15: 11 | D15: 1.6 | E15: 2602 | F15: 276 | G15: 40 | H15: short tons
A16: Bituminous Coal | B16: 93.28 | C16: 11 | D16: 1.6 | E16: 2325 | F16: 274 | G16: 40 | H16: short tons
A17: Sub-bituminous Coal | B17: 97.17 | C17: 11 | D17: 1.6 | E17: 1676 | F17: 190 | G17: 28 | H17: short tons
A18: Lignite Coal | B18: 97.72 | C18: 11 | D18: 1.6 | E18: 1389 | F18: 156 | G18: 23 | H18: short tons
A19: Mixed (Electric Power Sector) | B19: 95.52 | C19: 11 | D19: 1.6
A20: Coal Coke | B20: 113.67 | C20: 11 | D20: 1.6
A21: Wood and Wood Residuals | B21: 0 | C21: 7.2 | D21: 3.6 | E21: 1640 | F21: 126 | G21: 63 | H21: short tons
A22: Landfill Gas | B22: 0 | C22: 3.2 | D22: 0.63 | E22: 0.025254 | F22: 0.001552 | G22: 0.000306 | H22: scf
A24: Mobile Combustion Emission Factors
A25: CO2 Emissions for Road Vehicles
A26: Fuel Type | B26: CO2 Emission Factor (kg CO2 / unit) | C26: Unit
A27: Motor Gasoline | B27: 8.78 | C27: gallon
A28: Diesel Fuel | B28: 10.21 | C28: gallon
A29: Residual Fuel Oil | B29: 11.27 | C29: gallon
A30: Aviation Gasoline | B30: 8.31 | C30: gallon
A31: Kerosene-Type Jet Fuel | B31: 9.75 | C31: gallon
A32: Liquefied Petroleum Gases (LPG) | B32: 5.68 | C32: gallon
A33: Ethanol (100%) | B33: 5.75 | C33: gallon
A34: Biodiesel (100%) | B34: 9.45 | C34: gallon
A35: Liquefied Natural Gas (LNG) | B35: 4.5 | C35: gallon
A36: Compressed Natural Gas (CNG) | B36: 0.05444 | C36: scf
A38: CH4 and N2O Emissions for Highway Vehicles
A39: Vehicle Type | B39: Year | C39: CH4 Factor (g / mile) | D39: N2O Factor (g / mile) | E39: Notes
A40: Gasoline Passenger Cars | B40: 1984-93 | C40: 0.0704 | D40: 0.0647
B41: 1994 | C41: 0.0617 | D41: 0.0603
B42: 1995 | C42: 0.0531 | D42: 0.056
B43: 1996 | C43: 0.0434 | D43: 0.0503
B44: 1997 | C44: 0.0337 | D44: 0.0446
B45: 1998 | C45: 0.024 | D45: 0.0389
B46: 1999 | C46: 0.0215 | D46: 0.0355
B47: 2000 | C47: 0.0175 | D47: 0.0304
B48: 2001 | C48: 0.0105 | D48: 0.0212
B49: 2002 | C49: 0.0102 | D49: 0.0207
B50: 2003 | C50: 0.0095 | D50: 0.0181
B51: 2004 | C51: 0.0078 | D51: 0.0085
B52: 2005 | C52: 0.0075 | D52: 0.0067
B53: 2006 | C53: 0.0076 | D53: 0.0075
B54: 2007 | C54: 0.0072 | D54: 0.0052
B55: 2008 | C55: 0.0072 | D55: 0.0049
B56: 2009 | C56: 0.0071 | D56: 0.0046
B57: 2010 | C57: 0.0071 | D57: 0.0046
B58: 2011 | C58: 0.0071 | D58: 0.0046
B59: 2012 | C59: 0.0071 | D59: 0.0046
B60: 2013 | C60: 0.0071 | D60: 0.0046
B61: 2014 | C61: 0.0071 | D61: 0.0046
B62: 2015 | C62: 0.0068 | D62: 0.0042
B63: 2016 | C63: 0.0065 | D63: 0.0038
B64: 2017 | C64: 0.0054 | D64: 0.0018
B65: 2018 | C65: 0.0052 | D65: 0.0016
B66: 2019 | C66: 0.0051 | D66: 0.0015
A67: Gasoline Light-Duty Trucks | B67: 1987-93 | C67: 0.0813 | D67: 0.1035
A68: (Vans, Pickup Trucks, SUVs) | B68: 1994 | C68: 0.0646 | D68: 0.0982
B69: 1995 | C69: 0.0517 | D69: 0.0908
B70: 1996 | C70: 0.0452 | D70: 0.0871
B71: 1997 | C71: 0.0452 | D71: 0.0871
B72: 1998 | C72: 0.0412 | D72: 0.0787
B73: 1999 | C73: 0.0333 | D73: 0.0618
B74: 2000 | C74: 0.034 | D74: 0.0631
B75: 2001 | C75: 0.0221 | D75: 0.0379
B76: 2002 | C76: 0.0242 | D76: 0.0424
B77: 2003 | C77: 0.0221 | D77: 0.0373
B78: 2004 | C78: 0.0115 | D78: 0.0088
B79: 2005 | C79: 0.0105 | D79: 0.0064
B80: 2006 | C80: 0.0108 | D80: 0.008
B81: 2007 | C81: 0.0103 | D81: 0.0061
B82: 2008 | C82: 0.0095 | D82: 0.0036
B83: 2009 | C83: 0.0095 | D83: 0.0036
B84: 2010 | C84: 0.0095 | D84: 0.0035
B85: 2011 | C85: 0.0096 | D85: 0.0034
B86: 2012 | C86: 0.0096 | D86: 0.0033
B87: 2013 | C87: 0.0095 | D87: 0.0035
B88: 2014 | C88: 0.0095 | D88: 0.0033
B89: 2015 | C89: 0.0094 | D89: 0.0031
B90: 2016 | C90: 0.0091 | D90: 0.0029
B91: 2017 | C91: 0.0084 | D91: 0.0018
B92: 2018 | C92: 0.0081 | D92: 0.0015
B93: 2019 | C93: 0.008 | D93: 0.0013 | E93: Assume these CH4 and N2O factors for ethanol light-duty vehicles
A94: Gasoline Heavy-Duty Vehicles | B94: 1985-86 | C94: 0.409 | D94: 0.0515
B95: 1987 | C95: 0.3675 | D95: 0.0849
B96: 1988-1989 | C96: 0.3492 | D96: 0.0933
B97: 1990-1995 | C97: 0.3246 | D97: 0.1142
B98: 1996 | C98: 0.1278 | D98: 0.168
B99: 1997 | C99: 0.0924 | D99: 0.1726
B100: 1998 | C100: 0.0655 | D100: 0.175
B101: 1999 | C101: 0.0648 | D101: 0.1724
B102: 2000 | C102: 0.063 | D102: 0.166
B103: 2001 | C103: 0.0577 | D103: 0.1468
B104: 2002 | C104: 0.0634 | D104: 0.1673
B105: 2003 | C105: 0.0602 | D105: 0.1553
B106: 2004 | C106: 0.0298 | D106: 0.0164
B107: 2005 | C107: 0.0297 | D107: 0.0083
B108: 2006 | C108: 0.0299 | D108: 0.0241
B109: 2007 | C109: 0.0322 | D109: 0.0015
B110: 2008 | C110: 0.034 | D110: 0.0015
B111: 2009 | C111: 0.0339 | D111: 0.0015
B112: 2010 | C112: 0.032 | D112: 0.0015
B113: 2011 | C113: 0.0304 | D113: 0.0015
B114: 2012 | C114: 0.0313 | D114: 0.0015
B115: 2013 | C115: 0.0313 | D115: 0.0015
B116: 2014 | C116: 0.0315 | D116: 0.0015
B117: 2015 | C117: 0.0332 | D117: 0.0021
B118: 2016 | C118: 0.0321 | D118: 0.0061
B119: 2017 | C119: 0.0329 | D119: 0.0084
B120: 2018 | C120: 0.0326 | D120: 0.0082
B121: 2019 | C121: 0.033 | D121: 0.0091 | E121: Assumed these CH4 and N2O factors for ethanol heavy-duty vehicles and buses
A122: Gasoline Motorcycles | B122: 1960-1995 | C122: 0.0899 | D122: 0.0087
B123: 1996-2019 | C123: 0.0672 | D123: 0.0069
A125: Vehicle Type | B125: Fuel Type | C125: Vehicle Year | D125: CH4 Factor (g / mile) | E125: N2O Factor (g / mile)
A126: Passenger Cars | B126: Diesel | C126: 1960-1982 | D126: 0.0006 | E126: 0.0012
C127: 1983-2006 | D127: 0.0005 | E127: 0.001
C128: 2007-2019 | D128: 0.0302 | E128: 0.0192
A129: Light-Duty Trucks | B129: Diesel | C129: 1960-1982 | D129: 0.0011 | E129: 0.0017
C130: 1983-2006 | D130: 0.0009 | E130: 0.0014
C131: 2007-2019 | D131: 0.029 | E131: 0.0214
A132: Medium- and Heavy-Duty Vehicles | B132: Diesel | C132: 1960-2006 | D132: 0.0051 | E132: 0.0048
C133: 2007-2019 | D133: 0.0095 | E133: 0.0431
A134: Light-Duty Cars | B134: Methanol | D134: 0.008 | E134: 0.005
B135: Ethanol | D135: 0.008 | E135: 0.005
B136: CNG | D136: 0.081 | E136: 0.005
B137: LPG | D137: 0.008 | E137: 0.005
B138: Biodiesel | D138: 0.03 | E138: 0.019
A139: Light-Duty Trucks | B139: Ethanol | D139: 0.012 | E139: 0.009
B140: CNG | D140: 0.121 | E140: 0.009
B141: LPG | D141: 0.012 | E141: 0.012
B142: LNG | D142: 0.121 | E142: 0.009
B143: Biodiesel | D143: 0.029 | E143: 0.021
A144: Medium-Duty Trucks | B144: CNG | D144: 4.2 | E144: 0.001
B145: LPG | D145: 0.014 | E145: 0.034
B146: LNG | D146: 4.2 | E146: 0.001
B147: Biodiesel | D147: 0.009 | E147: 0.043
A148: Heavy-Duty Trucks | B148: Methanol | D148: 0.075 | E148: 0.028
B149: Ethanol | D149: 0.075 | E149: 0.028
B150: CNG | D150: 3.7 | E150: 0.001
B151: LPG | D151: 0.013 | E151: 0.026
B152: LNG | D152: 3.7 | E152: 0.001
B153: Biodiesel | D153: 0.009 | E153: 0.043
A154: Buses | B154: Methanol | D154: 0.016 | E154: 0.032
B155: Ethanol | D155: 0.016 | E155: 0.032
B156: CNG | D156: 10 | E156: 0.001
B157: LPG | D157: 0.034 | E157: 0.017
B158: LNG | D158: 10 | E158: 0.001
B159: Biodiesel | D159: 0.009 | E159: 0.043
A161: CH4 and N2O Emissions for Non-Road Vehicles
A162: Vehicle Type (superscript from EF Hub removed) | B162: Fuel Type | C162: CH4 Factor (g / gallon) | D162: N2O Factor (g / gallon)
A163: Ships and Boats | B163: Residual Fuel Oil | C163: 1.11 | D163: 0.32
B164: Gasoline (2 stroke) | C164: 4.58 | D164: 0.08
B165: Gasoline (4 stroke) | C165: 2.24 | D165: 0.01
B166: Diesel | C166: 6.41 | D166: 0.17
A167: Locomotives | B167: Diesel | C167: 0.8 | D167: 0.26
A168: Aircraft | B168: Jet Fuel | C168: 0 | D168: 0.3
B169: Aviation Gasoline | C169: 7.06 | D169: 0.11
A170: Agricultural Equipment | B170: Gasoline (2 stroke) | C170: 9.19 | D170: 0.26
B171: Gasoline (4 stroke) | C171: 3.33 | D171: 1.83
B172: Diesel | C172: 0.97 | D172: 0.9
B173: LPG | C173: 0.42 | D173: 0.6
A174: Agricultural Offroad Trucks | B174: Gasoline | C174: 3.33 | D174: 1.84
B175: Diesel | C175: 0.99 | D175: 0.92
A176: Construction/Mining Equipment | B176: Gasoline (2 stroke) | C176: 12.11 | D176: 0.34
B177: Gasoline (4 stroke) | C177: 3.03 | D177: 1.67
B178: Diesel | C178: 0.94 | D178: 0.87
B179: LPG | C179: 0.44 | D179: 0.63
A180: Construction/Mining Offroad Trucks | B180: Gasoline | C180: 3.03 | D180: 1.67
B181: Diesel | C181: 0.99 | D181: 0.92
A182: Lawn and Garden Equipment | B182: Gasoline (2 stroke) | C182: 10.21 | D182: 0.28
B183: Gasoline (4 stroke) | C183: 2.85 | D183: 1.56
B184: Diesel | C184: 0.93 | D184: 0.86
B185: LPG | C185: 0.45 | D185: 0.64
A186: Airport Equipment | B186: Gasoline | C186: 3.88 | D186: 2.13
B187: Diesel | C187: 0.99 | D187: 0.91
B188: LPG | C188: 0.45 | D188: 0.64
A189: Industrial/Commercial Equipment | B189: Gasoline (2 stroke) | C189: 9.21 | D189: 0.26
B190: Gasoline (4 stroke) | C190: 3.04 | D190: 1.67
B191: Diesel | C191: 0.93 | D191: 0.87
B192: LPG | C192: 0.45 | D192: 0.64
A193: Logging Equipment | B193: Gasoline (2 stroke) | C193: 12.48 | D193: 0.35
B194: Gasoline (4 stroke) | C194: 2.85 | D194: 1.57
B195: Diesel | C195: 0.99 | D195: 0.92
A196: Railroad Equipment | B196: Gasoline | C196: 2.87 | D196: 1.59
B197: Diesel | C197: 0.83 | D197: 0.78
B198: LPG | C198: 0.43 | D198: 0.63
A199: Recreational Equipment | B199: Gasoline (2 stroke) | C199: 4.27 | D199: 0.2
B200: Gasoline (4 stroke) | C200: 4.3 | D200: 2.22
B201: Diesel | C201: 0.8 | D201: 0.75
B202: LPG | C202: 0.41 | D202: 0.58
A204: Refrigerants and Global Warming Potentials (GWPs)
A205: Gas | B205: GWP
A206: CO2 | B206: 1
A207: CH4 | B207: 25
A208: N2O | B208: 298
A209: HFC-23 | B209: 14800
... 193 more rows

Sheet DropDown (hidden)
A1: Tab Navigation | B1: Help Tab Navigation | C1: Fuel Combusted | D1: OnRoad | E1: NonRoad | F1: TYPE OF REFRIGERATION EQUIPMENT | G1: CHOICES FOR REFRIGERANT | H1: Fire Suppression Equipment | I1: Fire Suppression Gas | J1: GHGs | K1: Electricity eGRID Subregions | L1: Steam Fuel Type | M1: Travel by Vehicle Miles | N1: Travel by Passenger Miles | O1: Travel by Air | P1: Product Transport Vehicle Type | Q1: Product Transport Type | R1: Fuel | S1: Fuel Type | T1: Gas | U1: Liquid | V1: Solid | W1: Mass | Y1: Aluminum Cans | Z1: Aluminum Ingot | AA1: Steel Cans | AB1: Copper Wire | AC1: Glass | AD1: HDPE | AE1: LDPE | AF1: PET | AG1: LLDPE | AH1: PP | AI1: PS | AJ1: PVC | AK1: PLA | AL1: Corrugated Containers | AM1: Magazines and Third class mail | AN1: Newspaper | AO1: Office Paper | AP1: Phonebooks | AQ1: Textbooks | AR1: Dimensional Lumber | AS1: Medium density Fiberboard | AT1: Food Waste non meat | AU1: Food Waste meat only | AV1: Beef | AW1: Poultry | AX1: Grains | AY1: Bread | AZ1: Fruits and Vegetables | BA1: Dairy Products | BB1: Yard Trimmings | BC1: Grass | BD1: Leaves | BE1: Branches | BF1: Mixed Paper general | BG1: Mixed Paper primarily residential | BH1: Mixed Paper primarily from offices | BI1: Mixed Metals | BJ1: Mixed Plastics | BK1: Mixed Recyclables | BL1: Food Waste | BM1: Mixed Organics | BN1: Mixed MSW municipal solid waste | BO1: Carpet | BP1: Desktop CPUs | BQ1: Portable Electronic Devices | BR1: Flat panel Displays | BS1: CRT Displays | BT1: Electronic Peripherals | BU1: Hard copy Devices | BV1: Mixed Electronics | BW1: Clay Bricks | BX1: Concrete | BY1: Fly Ash | BZ1: Tires | CA1: Asphalt Concrete | CB1: Asphalt Shingles | CC1: Drywall | CD1: Fiberglass Insulation | CE1: Vinyl Flooring | CF1: Wood Flooring
A2: Stationary Combustion | B2: Help - Data Management | C2: Natural Gas | D2: Passenger Cars - Gasoline | E2: Ships and Boats - Residual Fuel Oil | F2: Domestic Refrigeration | G2: CO2 | H2: Fixed | I2: CO2 | J2: CO2 | K2: ='Emission Factors'!A286 -> AKGD (ASCC Alaska Grid) | L2: Natural Gas | M2: Passenger Car | N2: ='Emission Factors'!A319 -> Intercity Rail - Northeast Corridor | O2: ='Emission Factors'!A325 -> Short Haul (< 300 miles) | P2: Medium- and Heavy-duty Truck | Q2: Medium- and Heavy-Duty Truck | R2: Natural Gas | S2: Gas | T2: SCF | U2: Gallons | V2: Short Ton | W2: ='Unit Conversions'!A12 -> gram (g) | Y2: Recycled | Z2: Recycled | AA2: Recycled | AB2: Recycled | AC2: Recycled | AD2: Recycled | AE2: Landfilled | AF2: Recycled | AG2: Landfilled | AH2: Landfilled | AI2: Landfilled | AJ2: Landfilled | AK2: Landfilled | AL2: Recycled | AM2: Recycled | AN2: Recycled | AO2: Recycled | AP2: Recycled | AQ2: Recycled | AR2: Recycled | AS2: Recycled | AT2: Landfilled | AU2: Landfilled | AV2: Landfilled | AW2: Landfilled | AX2: Landfilled | AY2: Landfilled | AZ2: Landfilled | BA2: Landfilled | BB2: Landfilled | BC2: Landfilled | BD2: Landfilled | BE2: Landfilled | BF2: Recycled | BG2: Recycled | BH2: Recycled | BI2: Recycled | BJ2: Recycled | BK2: Recycled | BL2: Landfilled | BM2: Landfilled | BN2: Landfilled | BO2: Landfilled | BP2: Landfilled | BQ2: Landfilled | BR2: Landfilled | BS2: Landfilled | BT2: Landfilled | BU2: Landfilled | BV2: Landfilled | BW2: Landfilled | BX2: Recycled | BY2: Recycled | BZ2: Recycled | CA2: Recycled | CB2: Recycled | CC2: Landfilled | CD2: Recycled | CE2: Landfilled | CF2: Landfilled
A3: Mobile Sources | B3: Help - Stationary Combustion | C3: Distillate Fuel Oil No. 2 | D3: Light-Duty Trucks - Gasoline | E3: Ships and Boats - Gasoline (2 stroke) | F3: Stand-Alone Commercial | G3: HFC-23 | H3: Portable | I3: HFC-23 | J3: CH4 | K3: ='Emission Factors'!A287 -> AKMS (ASCC Miscellaneous) | L3: Distillate Fuel Oil No. 2 | M3: Light-Duty Truck | N3: ='Emission Factors'!A320 -> Intercity Rail - Other Routes | O3: ='Emission Factors'!A326 -> Medium Haul (>= 300 miles, < 2300 miles) | P3: Light-Duty Truck | Q3: Rail | R3: Distillate Fuel Oil No. 2 | S3: Liquid | T3: Therm | U3: MMBtu | V3: MMBtu | W3: ='Unit Conversions'!A13 -> kilogram (kg) | Y3: Landfilled | Z3: Landfilled | AA3: Landfilled | AB3: Landfilled | AC3: Landfilled | AD3: Landfilled | AE3: Combusted | AF3: Landfilled | AG3: Combusted | AH3: Combusted | AI3: Combusted | AJ3: Combusted | AK3: Combusted | AL3: Landfilled | AM3: Landfilled | AN3: Landfilled | AO3: Landfilled | AP3: Landfilled | AQ3: Landfilled | AR3: Landfilled | AS3: Landfilled | AT3: Combusted | AU3: Combusted | AV3: Combusted | AW3: Combusted | AX3: Combusted | AY3: Combusted | AZ3: Combusted | BA3: Combusted | BB3: Combusted | BC3: Combusted | BD3: Combusted | BE3: Combusted | BF3: Landfilled | BG3: Landfilled | BH3: Landfilled | BI3: Landfilled | BJ3: Landfilled | BK3: Landfilled | BL3: Combusted | BM3: Combusted | BN3: Combusted | BO3: Combusted | BP3: Combusted | BQ3: Combusted | BR3: Combusted | BS3: Combusted | BT3: Combusted | BU3: Combusted | BV3: Combusted | BX3: Landfilled | BY3: Landfilled | BZ3: Landfilled | CA3: Landfilled | CB3: Landfilled | CD3: Landfilled | CE3: Combusted | CF3: Combusted
A4: Refrigeration and AC | B4: Help - Mobile Sources | C4: Residual Fuel Oil No. 6 | D4: Heavy-Duty Vehicles - Gasoline | E4: Ships and Boats - Gasoline (4 stroke) | F4: Medium/Large Commercial | G4: HFC-32 | I4: HFC-125 | J4: N2O | K4: ='Emission Factors'!A288 -> AZNM (WECC Southwest) | L4: Residual Fuel Oil No. 6 | M4: Motorcycle | N4: ='Emission Factors'!A321 -> Intercity Rail - National Average | O4: ='Emission Factors'!A327 -> Long Haul (>= 2300 miles) | P4: Passenger Car | Q4: Aircraft | R4: Residual Fuel Oil No. 6 | S4: Liquid | T4: MMBtu | W4: ='Unit Conversions'!A14 -> metric ton | Y4: Combusted | Z4: Combusted | AA4: Combusted | AB4: Combusted | AC4: Combusted | AD4: Combusted | AF4: Combusted | AK4: Composted | AL4: Combusted | AM4: Combusted | AN4: Combusted | AO4: Combusted | AP4: Combusted | AQ4: Combusted | AR4: Combusted | AS4: Combusted | AT4: Composted | AU4: Anaerobically Digested (Dry Digestate with Curing) | AV4: Composted | AW4: Composted | AX4: Composted | AY4: Composted | AZ4: Composted | BA4: Composted | BB4: Composted | BC4: Composted | BD4: Composted | BE4: Composted | BF4: Combusted | BG4: Combusted | BH4: Combusted | BI4: Combusted | BJ4: Combusted | BK4: Combusted | BL4: Composted | BM4: Composted | BZ4: Combusted | CB4: Combusted
A5: Fire Suppression | B5: Help - Refrigeration and AC | C5: Kerosene | D5: Motorcycles - Gasoline | E5: Ships and Boats - Diesel | F5: Transport Refrigeration | G5: HFC-125 | I5: HFC-134a | J5: SF6 | K5: ='Emission Factors'!A289 -> CAMX (WECC California) | L5: Kerosene | N5: ='Emission Factors'!A322 -> Commuter Rail | Q5: Waterborne Craft | R5: Kerosene | S5: Liquid | W5: ='Unit Conversions'!A15 -> pounds (lb) | AT5: Anaerobically Digested (Dry Digestate with Curing) | AU5: Anaerobically Digested (Wet Digestate with Curing) | AV5: Anaerobically Digested (Dry Digestate with Curing) | AW5: Anaerobically Digested (Dry Digestate with Curing) | AX5: Anaerobically Digested (Dry Digestate with Curing) | AY5: Anaerobically Digested (Dry Digestate with Curing) | AZ5: Anaerobically Digested (Dry Digestate with Curing) | BA5: Anaerobically Digested (Dry Digestate with Curing) | BB5: Anaerobically Digested (Dry Digestate with Curing) | BC5: Anaerobically Digested (Dry Digestate with Curing) | BD5: Anaerobically Digested (Dry Digestate with Curing) | BE5: Anaerobically Digested (Dry Digestate with Curing)
A6: Purchased Gases | B6: Help - Fire Suppression | C6: Liquefied Petroleum Gases (LPG) | D6: Passenger Cars - Diesel | E6: Locomotives - Diesel | F6: Industrial Refrigeration | G6: HFC-134a | I6: HFC-227ea | J6: NF3 | K6: ='Emission Factors'!A290 -> ERCT (ERCOT All) | L6: Liquefied Petroleum Gases (LPG) | N6: ='Emission Factors'!A323 -> Transit Rail (i.e. Subway, Tram) | R6: Liquefied Petroleum Gases (LPG) | S6: Liquid | W6: ='Unit Conversions'!A16 -> short ton | AT6: Anaerobically Digested (Wet Digestate with Curing) | AV6: Anaerobically Digested (Wet Digestate with Curing) | AW6: Anaerobically Digested (Wet Digestate with Curing) | AX6: Anaerobically Digested (Wet Digestate with Curing) | AY6: Anaerobically Digested (Wet Digestate with Curing) | AZ6: Anaerobically Digested (Wet Digestate with Curing) | BA6: Anaerobically Digested (Wet Digestate with Curing)
A7: Electricity | B7: Help - Purchased Gases | C7: Anthracite Coal | D7: Light-Duty Trucks - Diesel | E7: Aircraft - Jet Fuel | F7: Chillers | G7: HFC-143a | I7: HFC-236fa | J7: HFC-23 | K7: ='Emission Factors'!A291 -> FRCC (FRCC All) | L7: Anthracite Coal | N7: ='Emission Factors'!A324 -> Bus | R7: Anthracite Coal | S7: Solid
A8: Steam | B8: Help - Electricity | C8: Bituminous Coal | D8: Medium- and Heavy-Duty Vehicles - Diesel | E8: Aircraft - Aviation Gasoline | F8: Residential/Commercial A/C | G8: HFC-152a | I8: CF4 | J8: HFC-32 | K8: ='Emission Factors'!A292 -> HIMS (HICC Miscellaneous) | L8: Bituminous Coal | R8: Bituminous Coal | S8: Solid
A9: Business Travel | B9: Help - Steam | C9: Sub-bituminous Coal | D9: Light-Duty Cars - Methanol | E9: Agricultural Equipment - Gasoline (2 stroke) | F9: Car A/C Units | G9: HFC-236fa | I9: C4F10 | J9: HFC-125 | K9: ='Emission Factors'!A293 -> HIOA (HICC Oahu) | L9: Sub-bituminous Coal | R9: Sub-bituminous Coal | S9: Solid
A10: Commuting | B10: Help - Business Travel | C10: Lignite Coal | D10: Light-Duty Cars - Ethanol | E10: Agricultural Equipment - Gasoline (4 stroke) | F10: Light-Duty Truck A/C Units | G10: CF4 | J10: HFC-134a | K10: ='Emission Factors'!A294 -> MROE (MRO East) | L10: Lignite Coal | R10: Lignite Coal | S10: Solid
A11: Upstream Trans and Dist | B11: Help - Commuting | C11: Wood and Wood Residuals | D11: Light-Duty Cars - CNG | E11: Agricultural Equipment - Diesel | G11: C2F6 | J11: HFC-143a | K11: ='Emission Factors'!A295 -> MROW (MRO West) | L11: Mixed (Electric Power Sector) | R11: Wood and Wood Residuals | S11: Solid
A12: Waste | B12: Help - Upstream Trans and Dist | C12: Landfill Gas | D12: Light-Duty Cars - LPG | E12: Agricultural Equipment - LPG | G12: SF6 | J12: HFC-152a | K12: ='Emission Factors'!A296 -> NEWE (NPCC New England) | L12: Coal Coke | R12: Landfill Gas | S12: Gas
A13: Offsets | B13: Help - Market-Based Method | D13: Light-Duty Cars - Biodiesel | E13: Agricultural Offroad Trucks - Gasoline | G13: R-401A | J13: HFC-236fa | K13: ='Emission Factors'!A297 -> NWPP (WECC Northwest) | L13: Wood and Wood Residuals
B14: Help - Offsets | D14: Light-Duty Trucks - Ethanol | E14: Agricultural Offroad Trucks - Diesel | G14: R-401B | J14: CF4 | K14: ='Emission Factors'!A298 -> NYCW (NPCC NYC/Westchester) | L14: Landfill Gas
D15: Light-Duty Trucks - CNG | E15: Construction/Mining Equipment - Gasoline (2 stroke) | G15: R-401C | J15: C2F6 | K15: ='Emission Factors'!A299 -> NYLI (NPCC Long Island)
D16: Light-Duty Trucks - LPG | E16: Construction/Mining Equipment - Gasoline (4 stroke) | G16: R-402A | J16: C3F8 | K16: ='Emission Factors'!A300 -> NYUP (NPCC Upstate NY)
D17: Light-Duty Trucks - LNG | E17: Construction/Mining Equipment - Diesel | G17: R-402B | J17: C4F10 | K17: PRMS (Puerto Rico Miscellaneous)
D18: Light-Duty Trucks - Biodiesel | E18: Construction/Mining Equipment - LPG | G18: R-403B | J18: c-C4F8 | K18: ='Emission Factors'!A302 -> RFCE (RFC East)
D19: Medium-Duty Trucks - CNG | E19: Construction/Mining Offroad Trucks - Gasoline | G19: R-404A | J19: C5F12 | K19: ='Emission Factors'!A303 -> RFCM (RFC Michigan)
D20: Medium-Duty Trucks - LPG | E20: Construction/Mining Offroad Trucks - Diesel | G20: R-406A | J20: C6F14 | K20: ='Emission Factors'!A304 -> RFCW (RFC West)
D21: Medium-Duty Trucks - LNG | E21: Lawn and Garden Equipment - Gasoline (2 stroke) | G21: R-407A | J21: R-401A | K21: ='Emission Factors'!A305 -> RMPA (WECC Rockies)
D22: Medium-Duty Trucks - Biodiesel | E22: Lawn and Garden Equipment - Gasoline (4 stroke) | G22: R-407B | J22: R-401B | K22: ='Emission Factors'!A306 -> SPNO (SPP North)
D23: Heavy-Duty Trucks - Methanol | E23: Lawn and Garden Equipment - Diesel | G23: R-407C | J23: R-401C | K23: ='Emission Factors'!A307 -> SPSO (SPP South)
D24: Heavy-Duty Trucks - Ethanol | E24: Lawn and Garden Equipment - LPG | G24: R-407D | J24: R-402A | K24: ='Emission Factors'!A308 -> SRMV (SERC Mississippi Valley)
D25: Heavy-Duty Trucks - CNG | E25: Airport Equipment - Gasoline | G25: R-407E | J25: R-402B | K25: ='Emission Factors'!A309 -> SRMW (SERC Midwest)
D26: Heavy-Duty Trucks - LPG | E26: Airport Equipment - Diesel | G26: R-408A | J26: R-403B | K26: ='Emission Factors'!A310 -> SRSO (SERC South)
D27: Heavy-Duty Trucks - LNG | E27: Airport Equipment - LPG | G27: R-409A | J27: R-404A | K27: ='Emission Factors'!A311 -> SRTV (SERC Tennessee Valley)
D28: Heavy-Duty Trucks - Biodiesel | E28: Industrial/Commercial Equipment - Gasoline (2 stroke) | G28: R-410A | J28: R-406A | K28: ='Emission Factors'!A312 -> SRVC (SERC Virginia/Carolina)
D29: Buses - Methanol | E29: Industrial/Commercial Equipment - Gasoline (4 stroke) | G29: R-410B | J29: R-407A
D30: Buses - Ethanol | E30: Industrial/Commercial Equipment - Diesel | G30: R-411A | J30: R-407B
D31: Buses - CNG | E31: Industrial/Commercial Equipment - LPG | G31: R-411B | J31: R-407C
D32: Buses - LPG | E32: Logging Equipment - Gasoline (2 stroke) | G32: R-413A | J32: R-407D
D33: Buses - LNG | E33: Logging Equipment - Gasoline (4 stroke) | G33: R-414A | J33: R-407E
D34: Buses - Biodiesel | E34: Logging Equipment - Diesel | G34: R-414B | J34: R-408A
E35: Railroad Equipment - Gasoline | G35: R-417A | J35: R-409A
E36: Railroad Equipment - Diesel | G36: R-422A | J36: R-410A
E37: Railroad Equipment - LPG | G37: R-422D | J37: R-410B
E38: Recreational Equipment - Gasoline (2 stroke) | G38: R-423A | J38: R-411A
E39: Recreational Equipment - Gasoline (4 stroke) | G39: R-424A | J39: R-411B
E40: Recreational Equipment - Diesel | G40: R-426A | J40: R-413A
E41: Recreational Equipment - LPG | G41: R-428A | J41: R-414A
G42: R-434A | J42: R-414B
G43: R-500 | J43: R-417A
G44: R-502 | J44: R-422A
G45: R-504 | J45: R-422D
G46: R-507 | J46: R-423A
G47: R-508A | J47: R-424A
G48: R-508B | J48: R-426A
J49: R-428A
J50: R-434A
J51: R-500
J52: R-502
J53: R-504
J54: R-507
J55: R-508A
J56: R-508B

Sheet Help - Data Management
C2: Stationary Combustion
A4: Data Management - HELP SHEET
A6: On this sheet you will find general suggestions regarding GHG inventory data management.
A8: DATA MANAGEMENT
A9: This Calculator provides the calculations to quantify your organization's GHG emissions based on annual totals for activity data, which are entered in the ORANGE data entry cells in this workbook. It is good practice to use a spreadsheet or database to track more detailed activity data, such as monthly energy consumption, and aggregate that detailed data into annual totals for entry into the Calculator. This approach provides an "audit trail" that retraces the steps completed to arrive at the annual usage numbers you enter into the Calculator. ENERGY STAR's Portfolio Manager is one database option if your business is already using this tool. (More information on Portfolio Manager is available in the Guide to GHG Management). The bullets below suggest the type of data you may want to store in the data management spreadsheet or database.
B11: A List of Facilities and Attributes | E11: Purchased Gas Data
B12: * Facility Name or Site ID | E12: * Types of Gas Purchased
B13: * Address (including zip code) | E13: * Amount of Gas Purchased
B14: * Floor area (sq ft) | E14: Steam Data
B15: * Number of Employees | E15: * Monthly Consumption Data by Meter or Facility
B16: * Open and Close Date of Facility | E16: * Monthly Cost Data by Meter or Facility
B17: * Type of Facility | E17: * Steam Provider Emission Factors
B18: Electricity Data | E18: * Fuel Type Used to Generate Steam
B19: * Monthly Consumption Data by Meter or Facility | E19: * Boiler Efficiency
B20: * Monthly Cost Data by Meter or Facility | E20: Business Travel
B21: * Record of renewable energy purchased through contractual instruments | E21: * Mode of Transportation
B22: Stationary Fuel Data (for each Fuel Type) | E22: * Mileage by Trip (i.e., for each leg of transport)
B23: * Monthly Consumption Data by Meter or Facility | E23: Commuting
B24: * Monthly Cost Data by Meter or Facility | E24: * Mode of Transportation per Employee
B25: Mobile Fuel Data | E25: * Mileage by Trip (i.e., for each leg of transport)
B26: * List of Vehicles (Year, Make, Model, Fuel Type) | E26: Product Transport
B27: * Fuel Consumption by Vehicle | E27: * Mode of Transportation for each Shipment
B28: * Fuel Cost by Vehicle | E28: * Weight of Product Transported for each Shipment
B29: * Miles Traveled by Vehicle | E29: * Distance Product Transported for each Shipment
B30: Refrigeration and AC Data
B31: * Inventory of Equipment by Facility
B32: * Refrigerant Capacity of Equipment
B33: * Refrigerant Purchase, Inventory, and Disposal Data
B34: Fire Suppression Data
B35: * Inventory of Equipment by Facility
B36: * Fire Suppressant Capacity of Equipment
B37: * Fire Suppressant Purchase, Inventory, and Disposal Data
B38: Disposal Data
A40: QUALITY ASSURANCE/QUALITY CONTROL (QA/QC) - Suggested Checks
A41: The accuracy of a GHG inventory depends on the accuracy of the activity data. Here are a few quick checks to make sure your data are realistic. If any of these checks lead to questions, it is best to review the data month by month to look for data points that are significantly higher or lower than other points. Checking data sources such as utility bills can confirm data entry accuracy.
B43: Benchmarks
B44: Compare your energy consumption data against typical benchmarks.
B45: 1. Compare your energy consumption data per square foot of floor area against the averages by building type and region in the tables below. See below for building type definitions.
B46: 2. Does any facility look significantly higher or lower than these averages? If so, can the difference be explained?
B48: Electricity Intensity | C48: kWh electricity / sq ft / year
B49: Principal Building Activity | C49: Northeast | D49: Midwest | E49: South | F49: West
B50: Education | C50: 8.7 | D50: 10.3 | E50: 12.6 | F50: 10
B51: Food sales | C51: 45 | D51: 50.5 | E51: 56.2 | F51: 42.7
B52: Food service | C52: 39.7 | D52: 43.1 | E52: 49.7 | F52: 41.1
B53: Health care | C53: 22 | D53: 25.1 | E53: 29.5 | F53: 24.6
B54: Inpatient | C54: 26.3 | D54: 28.9 | E54: 34.3 | F54: 32.5
B55: Outpatient | C55: 17.6 | D55: 20.1 | E55: 21.7 | F55: 14.3
B56: Lodging | C56: 14 | D56: 15.4 | E56: 16.6 | F56: 14.1
B57: Mercantile | C57: 16.3 | D57: 17.5 | E57: 19.7 | F57: 17.6
B58: Retail (other than mall) | C58: 12.8 | D58: 14.1 | E58: 16.3 | F58: 15.8
B59: Enclosed and strip malls | C59: 19.9 | D59: 21.4 | E59: 22.5 | F59: 19.1
B60: Office | C60: 17.1 | D60: 15.3 | E60: 16 | F60: 14.9
B61: Public assembly | C61: 14.1 | D61: 13.2 | E61: 16.3 | F61: 13.2
B62: Public order and safety | C62: 15.1 | D62: 10.3 | E62: 18.3 | F62: insufficient data
B63: Religious worship | C63: 4.5 | D63: 4.5 | E63: 6.1 | F63: 4.7
B64: Service | C64: 6.6 | D64: 7.3 | E64: 9.8 | F64: 8.8
B65: Warehouse and storage | C65: 4.9 | D65: 6.6 | E65: 8.4 | F65: 4.8
B66: Other | C66: 43.2 | D66: 20.2 | E66: 32 | F66: 20.3
B67: Vacant | C67: insufficient data | D67: 5.3 | E67: 4 | F67: 5.6
B69: Natural Gas Intensity | C69: standard cubic feet (scf) natural gas / sq ft / year
B70: Principal Building Activity | C70: Northeast | D70: Midwest | E70: South | F70: West
B71: Education | C71: 46.6 | D71: 38.8 | E71: 16.5 | F71: 27.9
B72: Food sales | C72: insufficient data | D72: insufficient data | E72: 59.1 | F72: insufficient data
B73: Food service | C73: 130.7 | D73: 162.4 | E73: 178 | F73: 139.7
B74: Health care | C74: 68.8 | D74: 85.7 | E74: 77 | F74: 86
B75: Inpatient | C75: 107.4 | D75: 111.7 | E75: 88.3 | F75: 109
B76: Outpatient | C76: 33.1 | D76: 48 | E76: 24.8 | F76: 45.2
B77: Lodging | C77: 43.9 | D77: 49.3 | E77: 33.1 | F77: 56.3
B78: Mercantile | C78: 40.4 | D78: 43 | E78: 26.1 | F78: 31.4
B79: Retail (other than mall) | C79: 25.1 | D79: 33.9 | E79: 15.1 | F79: 15.2
B80: Enclosed and strip malls | C80: 50.3 | D80: 50.9 | E80: 31.2 | F80: 44.4
B81: Office | C81: 34.3 | D81: 33.2 | E81: 17.2 | F81: 22.2
B82: Public assembly | C82: 42.6 | D82: 40.5 | E82: 26 | F82: 26.7
B83: Public order and safety | C83: insufficient data | D83: insufficient data | E83: 23.4 | F83: insufficient data
B84: Religious worship | C84: 25.8 | D84: 38.9 | E84: 22.2 | F84: 29.1
B85: Service | C85: 64.8 | D85: 38.1 | E85: 44.6 | F85: 35.3
B86: Warehouse and storage | C86: 27.6 | D86: 20.3 | E86: 11.3 | F86: 25.5
B87: Other | C87: insufficient data | D87: insufficient data | E87: 41.6 | F87: 74
B88: Vacant | C88: insufficient data | D88: insufficient data | E88: insufficient data | F88: insufficient data
B90: Fuel Oil Intensity | C90: gallons fuel oil / sq ft / year
B91: Principal Building Activity | C91: Northeast | D91: Midwest | E91: South | F91: West
B92: Education | C92: 0.15 | D92: 0.02 | E92: 0.09 | F92: insufficient data
B93: Health care | C93: 0.15 | D93: 0.02 | E93: 0.02 | F93: 0.02
B94: Office | C94: 0.06 | D94: 0.01 | E94: 0.01 | F94: 0.01
B95: All others | C95: 0.11 | D95: 0.04 | E95: 0.02 | F95: 0.02
B96: See table at bottom of sheet for building type descriptions.
B97: Source:
B98: 1. Source- EIA's 2012 Commercial Buildings Energy Consumption Survey, Table C15 (Electricity), Table C25 ( Natural Gas), Table C35 (Fuel Oil). http://www.eia.gov/consumption/commercial/data/2012/index.cfm?view=consumption#c23-c32
B99: 2. Building Type Definitions Source- http://www.eia.gov/consumption/commercial/building-type-definitions.cfm
B101: Calculated Unit Costs
B102: Calculated unit costs that are out of expected ranges can indicate data entry errors.
B103: 1. Use the cost and consumption data entered into your data management file to calculate the cost per unit of consumption for each month and each emissions source.
B104: 2. Is the unit cost within expected ranges? Is it fairly constant month to month? Keep in mind that very low consumption (such as with heating fuel during the summer) can skew the unit cost due to fixed monthly fees.
B105: 3. If the calculated unit cost is not reasonable, is there an error in either the consumption data or the cost data?
B107: Year Over Year Comparison
B108: Compare usage data from one year to the next.
B109: 1. Is there a significant change in consumption data year over year? If so, hone in on the facilities causing the change.
B110: 2. If there is a significant change, can it be explained?
B111: 3. If this amount is not reasonable, is there an error in either the consumption data or the data entry? Check monthly data by facility.
B113: Building Types
B115: Building Type | C115: Description | F115: Examples
B116: Education | C116: Buildings used for academic or technical classroom instruction, such as elementary, middle, or high schools, and classroom buildings on college or university campuses. Buildings on education campuses for which the main use is not classroom are included in the category relating to their use. For example, administration buildings are part of "Office," dormitories are "Lodging," and libraries are "Public Assembly." | F116: elementary or middle school, high school, college or university, preschool or daycare, adult education, career or vocational training, religious education
B117: Food Sales | C117: Buildings used for retail or wholesale of food. | F117: grocery store or food market, gas station with a convenience store, convenience store,
B118: Food Service | C118: Buildings used for preparation and sale of food and beverages for consumption. | F118: fast food, restaurant or cafeteria, bar, catering service or reception hall, coffee, bagel, or doughnut shop, ice cream or frozen yogurt shop
B119: Health Care (Inpatient) | C119: Buildings used as diagnostic and treatment facilities for inpatient care. | F119: hospital, inpatient rehabilitation
B120: Health Care (Outpatient) | C120: Buildings used as diagnostic and treatment facilities for outpatient care. Medical offices are included here if they use any type of diagnostic medical equipment (if they do not, they are categorized as an office building). | F120: medical office (see previous column), clinic or other outpatient health care, outpatient rehabilitation, veterinarian
B121: Lodging | C121: Buildings used to offer multiple accommodations for short-term or long-term residents, including skilled nursing and other residential care buildings. | F121: motel or inn, hotel, dormitory, fraternity, or sorority, retirement home, nursing home, assisted living, or other residential care, convent or monastery, shelter, orphanage, or children's home, halfway house
B122: Mercantile (Retail Other Than Mall) | C122: Buildings used for the sale and display of goods other than food. | F122: retail store, beer, wine, or liquor store, rental center, dealership or showroom for vehicles or boats, studio/gallery
B123: Mercantile (Enclosed and Strip Malls) | C123: Shopping malls comprised of multiple connected establishments. | F123: enclosed mall, strip shopping center
B124: Office | C124: Buildings used for general office space, professional office, or administrative offices. Medical offices are included here if they do not use any type of diagnostic medical equipment (if they do, they are categorized as an outpatient health care building). | F124: administrative or professional office, government office, mixed-use office, bank or other financial institution, medical office (see previous column), sales office, contractor's office (e.g. construction, plumbing, HVAC), non-profit or social services, city hall or city center, religious office, call center
B125: Public Assembly | C125: Buildings in which people gather for social or recreational activities, whether in private or non-private meeting halls. | F125: social or meeting (e.g. community center, lodge, meeting hall, convention center,senior center), recreation (e.g. gymnasium, health club, bowling alley, ice rink, field house, indoor racquet sports), entertainment or culture (e.g. museum, theater, cinema, sports arena, casino, night club), library, funeral home, student activities center, armory, exhibition hall, broadcasting studio, transportation terminal
B126: Public Order and Safety | C126: Buildings used for the preservation of law and order or public safety. | F126: police station, fire station, jail, reformatory, or penitentiary, courthouse or probation office
B127: Religious Worship | C127: Buildings in which people gather for religious activities, (such as chapels, churches, mosques, synagogues, and temples). | F127: No subcategories collected
B128: Service | C128: Buildings in which some type of service is provided, other than food service or retail sales of goods | F128: vehicle service or vehicle repair shop, vehicle storage/ maintenance (car barn), repair shop, dry cleaner or laundromat, post office or postal center, car wash, gas station, photo processing shop, beauty parlor or barber shop, tanning salon, copy center or printing shop, kennel
B129: Warehouse and Storage | C129: Buildings used to store goods, manufactured products, merchandise, raw materials, or personal belongings (such as self-storage). | F129: refrigerated warehouse, non-refrigerated warehouse, distribution or shipping center
B130: Other | C130: Buildings that are industrial or agricultural with some retail space; buildings having several different commercial activities that, together, comprise 50 percent or more of the floorspace, but whose largest single activity is agricultural, industrial/ manufacturing, or residential; and all other miscellaneous buildings that do not fit into any other category. | F130: airplane hangar, crematorium, laboratory, telephone switching, agricultural with some retail space, manufacturing or industrial with some retail space, data center or server farm
B131: Vacant | C131: Buildings in which more floorspace was vacant than was used for any single commercial activity at the time of interview. Therefore, a vacant building may have some occupied floorspace. | F131: No subcategories collected, but a question was asked to determine whether the building was completely vacant.

Sheet Help - Stationary Combustion
A3: Scope 1 Emissions from Stationary Combustion Sources - HELP SHEET
A5: DEFINITION
A6: Combustion emission sources are stationary sources that combust fuel, like a natural gas hot water heater for an office building or an oil burning boiler. Emissions result from the actual combustion of the fuels to produce useful products, like heat and hot water.
A8: COLLECT
A9: To account for these sources, collect information about the type of fuel used and the quantity of fuel combusted at each facility. Sources of data can vary, but the data are often provided by the utility organization that supplies the fuel to the organization. A monthly natural gas bill, for example, can be used to provide information regarding how much natural gas was purchased for the previous billing cycle.
A10: Data Collection Checklist (for all facilities)
A11: - | B11: Type of fuel consumed
A12: - | B12: Amount of fuel consumed
A14: QUANTIFY
A15: After the data has been collected, it should be entered into the appropriate orange colored boxes of the Calculator section titled “Stationary Combustion.” The fuel type can be selected from the form. After the data are entered into the Calculator, the CO2 equivalent emissions are displayed in the blue colored box.
A18: Items to Note
A19: - | B19: Use the heat content sheet to convert units provided on the invoice into the units the Calculator requires.
A20: - | B20: If you are one of many tenants in a facility and you do not have the actual amount of fuel used in your space, you may estimate your fuel usage by multiplying the fuel usage of the entire facility by the percentage of the floor area that your organization occupies.
A21: - | B21: Companies with home offices can optionally include these spaces in their inventory if the energy use associated with business activities can be reasonably estimated.
A22: - | B22: The Energy Information Administration conducts a Commercial Building Energy Consumption Survey and provides average energy consumption by building type per square foot. Use the numbers below to compare against your data or to estimate for natural gas if no data are available. For example, if you have a 1,000 sq ft office suite in the Northeast multiply by 34.3 to get an estimation of 34,300 scf natural gas for a year.
B24: Natural Gas Intensity | C24: standard cubic feet (scf) natural gas / sq ft / year
B25: Principal Building Activity | C25: Northeast | D25: Midwest | E25: South | F25: West
B26: Education | C26: 46.6 | D26: 38.8 | E26: 16.5 | F26: 27.9
B27: Food sales | C27: insufficient data | D27: insufficient data | E27: 59.1 | F27: insufficient data
B28: Food service | C28: 130.7 | D28: 162.4 | E28: 178 | F28: 139.7
B29: Health care | C29: 68.8 | D29: 85.7 | E29: 77 | F29: 86
B30: Inpatient | C30: 107.4 | D30: 111.7 | E30: 88.3 | F30: 109
B31: Outpatient | C31: 33.1 | D31: 48 | E31: 24.8 | F31: 45.2
B32: Lodging | C32: 43.9 | D32: 49.3 | E32: 33.1 | F32: 56.3
B33: Mercantile | C33: 40.4 | D33: 43 | E33: 26.1 | F33: 31.4
B34: Retail (other than mall) | C34: 25.1 | D34: 33.9 | E34: 15.1 | F34: 15.2
B35: Enclosed and strip malls | C35: 50.3 | D35: 50.9 | E35: 31.2 | F35: 44.4
B36: Office | C36: 34.3 | D36: 33.2 | E36: 17.2 | F36: 22.2
B37: Public assembly | C37: 42.6 | D37: 40.5 | E37: 26 | F37: 26.7
B38: Public order and safety | C38: insufficient data | D38: insufficient data | E38: 23.4 | F38: insufficient data
B39: Religious worship | C39: 25.8 | D39: 38.9 | E39: 22.2 | F39: 29.1
B40: Service | C40: 64.8 | D40: 38.1 | E40: 44.6 | F40: 35.3
B41: Warehouse and storage | C41: 27.6 | D41: 20.3 | E41: 11.3 | F41: 25.5
B42: Other | C42: insufficient data | D42: insufficient data | E42: 41.6 | F42: 74
B43: Vacant | C43: insufficient data | D43: insufficient data | E43: insufficient data | F43: insufficient data
B44: Source: EIA's Commercial Buildings Energy Consumption Survey (CBECS) 2012, Released May 2016. Table C25: Natural gas consumption and conditional energy intensity by Census region
B45: http://www.eia.gov/consumption/commercial/data/2012/index.cfm?view=consumption#c23-c32

Sheet Help - Mobile Sources
A3: Scope 1 Emissions from Mobile Sources - HELP SHEET
A5: DEFINITION
A6: Mobile sources, like owned or leased cars and heavy duty vehicles generate emissions by burning fuel. The fuel usage for any vehicle that is under the organization's operational control should be reported here as scope 1 emissions. As required by GHG Protocol these emissions are only calculated for the combustion of the fuel (e.g., tank-to-wheel).
A8: COLLECT
A9: Determine the types of vehicles, types and amount of fuel, and the miles driven for each vehicle or vehicle type. Data sources vary but fuel usage is often determined from fuel receipts or purchase records and provided in gallons, and mileage from vehicle records. Mileage or fuel use can also be estimated based on vehicle fuel economy from the manufacturer or www.fueleconomy.gov if the other data sources are not readily available.
A10: www.fueleconomy.gov
A12: Data Collection Checklist (for all vehicles)
A13: - | B13: Type and year of vehicle
A14: - | B14: Amount of fuel consumed for the inventory reporting period
A15: - | B15: Total miles driven for the inventory reporting period
A17: QUANTIFY
A18: Enter the data into the appropriate orange colored boxes of the Calculator section titled “Mobile Sources.” If the organization owns or leases biofuel or ethanol vehicles, the percentage of biologically-based fuel should be entered into the boxes provided; default values are available if needed. Once the data are entered into the Calculator, the CO2 equivalent emissions are calculated and summarized in the blue colored box. Biomass CO2 emissions are calculated and summarized in the green colored box, and are typically not summed into the organization’s total GHG emissions because they are considered to be a net zero emission source.
B19: Vehicle Classification Guidelines
B20: Pickups, Vans, and SUVs should be classified as "Light Trucks"
B21: Trucks weighing more than 8,500 lb should be classified as "Heavy- Duty Trucks"
B22: Non-highway vehicles should be classified as "Other Offroad Equipment"
A24: Items to Note
A25: - | B25: Vehicle Classification Guidelines
B26: Trucks weighing more than 8,500 lb should be classified as "Heavy- Duty Vehicles"
B27: Pickup trucks, vans, and SUVs should be classified as "Light-Duty Trucks"
B28: Non-highway vehicles should be classified as "Construction Equip."
A29: - | B29: Fuel usage and mileage is reported the same for hybrid vehicles as for conventional vehicles. If you are estimating mileage or fuel usage keep in mind the fuel efficiency.
A30: - | B30: If your organization owns a private jet or plane it should be included here. Depending on the fuel it uses, pick the appropriate type from the drop down menu (i.e., Aviation Gasoline Aircraft, Jet Fuel Aircraft).
A31: - | B31: If you are using biodiesel or ethanol, the percentage of biodiesel and ethanol should be filled out accordingly. If you are using these fuels in pure form, then you would enter 100%. If you are using a mixture of biodiesel and petroleum diesel, or a mixture of ethanol and gasoline then you would enter the biodiesel or ethanol percentage in that mixture. For example, B100 is 100% biodiesel, likewise B20 is 20% biodiesel. This is similar for ethanol; E85 is 85% ethanol.
A32: - | B32: The Vehicle Type column is organized in order of most common vehicle types and their fuels.

Sheet Help - Refrigeration and AC
A3: Scope 1 Emissions from Refrigeration and Air Conditioning Equipment - HELP SHEET
A5: DEFINITION
A6: Refrigeration and Air Conditioning (AC) equipment sources can vary in size based on the type of organization. Emissions from refrigeration and AC devices, in facilities or vehicles, are caused by the leakage of chemicals with global warming impact during use, maintenance and/or disposal of the device. They are often small sources for office-based organizations. For example, a small office building may have one rooftop AC unit while a grocery store chain may have several rooftop AC units per store as well as a multitude of other refrigeration equipment.
A8: COLLECT
A9: Choose one of three different calculation methods available in the “Refrigeration and AC” section of the Calculator. The types of refrigerants along with the data needs for each method are listed in the Calculator. Data for these sources is often collected from maintenance and inspection records, work orders, or invoices from contractors that service this equipment. Refrigerants not included on the list may be chemicals that do not need to be included in the inventory. For example, ozone depleting substances, such as chlorofluorocarbons (CFCs) or “freon” and hydrochlorofluorocarbons (HCFCs), are regulated internationally and are typically excluded from a GHG inventory or reported as a memo item. A reason to track these sources is to provide explanation for the increase of HFCs and PFCs when they replace the phased out CFCs and HCFCs.
A10: Data Collection Checklist (by equipment)
A11: - | B11: Refrigerant purchase, inventory, and disposal data
A12: - | B12: Inventory of equipment by facility
A13: - | B13: Refrigerant capacity of equipment
A14: - | B14: Amount of refrigerant (HFC and PFC) emitted over the inventory reporting period
A15: - | B15: Optional: Track HCFC and CFCs, such as R-22
A17: QUANTIFY
A18: Determine which of the three options is suitable for your business and enter the data into the appropriate orange colored boxes of the Calculator section titled “Refrigeration and AC.” Once the data are entered into the Calculator, the CO2 equivalent emissions are calculated and summarized in the blue colored box.
B19: Option 1: The Detailed Material Balance Method is recommended for companies who maintain their own equipment. This method requires data from inventories, purchase and service records, and the full and proper charges of equipment. It includes emissions from equipment operation, servicing, and disposal.
B20: Option 2: The Simplified Material Balance Method is recommended for companies who have contractors service their HFC/PFC containing equipment. This method tracks emissions from equipment operation, servicing, and disposal. The method requires data on the quantity of refrigerant: (a) used to fill new equipment during installation, (b) used to service equipment, and (c) recovered from retiring equipment, as well as the full and proper charges of new and retiring equipment. If notified in advance of the need for this information, the contractor should be able to provide it.
B21: Option 3: It is recommended that the Screening Method be used only as a screening tool because the emission factors used in the approach are highly uncertain. Emission factors vary between individual pieces of equipment and over time. Even if the amount of refrigerant added to a piece of equipment has been tracked carefully, permitting the previous leak rate of that equipment to be established, that leak rate can change after a leak is repaired or as the equipment ages.
A23: Items to Note
A24: - | B24: If you are one of many tenants in a facility and you cannot quantify the refrigerant emissions specific to your space, you may estimate them based on the percentage of the floor area that your organization occupies.
A25: - | B25: Emissions from refrigerants in an office-based organization are typically less than 2 percent of emissions. Consider this as you decide which Option is most appropriate.
A26: - | B26: If your organization uses a refrigerant that is not listed, the user may need to determine the constituent blend. This website lists common refrigerant compositions:
B27: http://www.epa.gov/ozone/snap/refrigerants/refblend.html
A28: - | B28: R-134a is the predominantly used refrigerant in vehicle AC systems. If you are uncertain of which refrigerant your vehicles use, you can assume R-134a.

Sheet Help - Fire Suppression
A3: Scope 1 Emissions from Fire Suppression Equipment - HELP SHEET
A5: DEFINITION
A6: Fire suppression emission sources can range in scale from a small portable fire extinguisher to a large scale fire suppression system for an office building or warehouse. The emissions are caused by chemicals (e.g., HFCs or CO2) emitted from fire suppression devices during use, maintenance, and disposal.
A8: COLLECT
A9: Choose one of three different calculation methods available in the “Fire Suppression” section of the Calculator. In each method, choose the types of fire suppression gases used and then gather the corresponding emissions data. Data for these sources is often collected from maintenance and inspection records, work orders, or invoices from contractors that service this equipment.
A10: Data Collection Checklist (by equipment and/or facility)
A11: - | B11: Fire suppressant purchase, inventory, and disposal data
A12: - | B12: Inventory of equipment by facility
A13: - | B13: Fire suppressant capacity of equipment
A14: - | B14: Amount of fire suppressant (HFC and PFC) emitted over the inventory reporting period
A16: QUANTIFY
A17: Enter the data into the appropriate orange colored boxes of the Calculator section titled “Fire Suppression.” Once the data are entered into the Calculator, the CO2 equivalent emissions are calculated and summarized in the blue colored box.
A19: Items to Note
A20: - | B20: Contact the manufacturer if you cannot find the list of propellants or chemicals used in the fire extinguisher.

Sheet Help - Purchased Gases
A3: Scope 1 Emissions from Purchased Gases - HELP SHEET
A5: DEFINITION
A6: Industrial gases are sometimes used in processes such as manufacturing, testing, or laboratory uses. For example, CO2 gas is often used in welding operations. These gases are typically released to the atmosphere after use. Any releases of the seven major greenhouse gases (CO2, CH4, N2O, PFCs, HFCs, SF6, and NF3) must be included in the GHG inventory. Ozone depleting substances, such as CFCs and HCFCs, are regulated internationally and are typically excluded from a GHG inventory or reported as a memo item.
A8: COLLECT
A9: Determine if CO2, CH4, N2O, PFCs, HFCs, SF6 or NF3 are used in processes such as those mentioned above. If so, collect the mass of gas purchased. If data are not available in mass units, the user may need to convert from volume to mass using the density of the specific gas.
A11: Data Collection Checklist (for all applicable facilities)
A12: - | B12: Type of gas purchased
A13: - | B13: Amount of gas purchased
A14: - | B14: Purpose for the gas
A16: QUANTIFY
A17: Enter the data into the appropriate orange colored boxes of the Calculator section titled “Gas.” Once the data are entered into the Calculator, the CO2 equivalent emissions are calculated and summarized in the blue colored box.
A19: Items to Note
A20: - | B20: If your business makes bulk purchases and plans on using the gas for several years, you should divide the bulk amount by the years of usage and report that amount.

Sheet Help - Electricity
A3: Scope 2 Emissions from Purchase of Electricity - HELP SHEET
A5: DEFINITION
A6: GHGs are emitted when fossil fuels are combusted to generate electricity. Companies account for their responsibility for these emissions by reporting them as scope 2 indirect emissions. This Calculator quantifies emissions from both the location-based method and the market-based method, and both totals should be reported. The location-based method considers average emission factors for the electricity grids that provide electricity. The market-based method considers contractual arrangements under which the organization procures power from specific sources, such as renewable energy. Market-based emission factors reflect these arrangements. Examples of market-based emission factors are: renewable energy certificates (RECs), power purchase agreements (PPAs), and supplier-specific factors. For detailed information on the location-based method and the market-based method review EPA's Indirect Emissions from Purchased Electricity Guidance (link at the bottom of this sheet).
A8: COLLECT
A9: Collect electricity purchase information in units of kWh for each facility. The best data source is typically its electricity bill or invoice. In the Calculator, there is a map at the bottom of the “Electricity” section which divides the United States into subregions based on the electric grid. Select the subregion(s) in which the organization’s facilities are located to determine the correct CO2, CH4, and N2O emission factors to use, since different parts of the country use different fuels to generate electricity. Multiple facility locations can be entered as separate line items in the Calculator. If a facility is on the border of a subregion, enter the zip code into EPA's Power Profiler (https://oaspub.epa.gov/powpro/ept_pack.charts) to find the correct subregion.
A10: Data Collection Checklist (for all facilities)
A11: - | B11: Amount of electricity purchased
A12: - | B12: Amount of electricity purchased using contractual arrangements
A13: - | B13: Emission factors (CO2, CH4 and N2O) for contractual arrangements
A15: QUANTIFY
A16: There are two methods to quantify emissions from electricity: location-based and market-based. Both must be quantified to be in accordance with the Center for Corporate Climate Leadership Greenhouse Gas Inventory Guidance.
A17: Location-based: Enter the data into the appropriate orange colored boxes (Table 1) of the Calculator section titled "Electricity.” Once the data are entered into the Calculator, the CO2 equivalent emissions are calculated and summarized in the blue colored box for the location based method.
A18: Market-based: Enter applicable market-based emission factors (lb/MWh) for the purchased electricity in the yellow cells (Table 1) of the Calculator section titled "Electricity.” See the market-based method Help sheet for additional guidance. Once the data are entered into the Calculator, the CO2 equivalent emissions are calculated and summarized in the blue colored box for the market-based method.
A21: Items to Note
A22: - | B22: If you are one of many tenants in a facility and you do not have the actual amount of electricity used in your space, you may estimate your usage by multiplying the electricity usage of the entire facility by the percentage of the floor area that your organization occupies.
A23: - | B23: The number off the utility bill to use is the total usage amount (i.e., the difference between the meter reading at the beginning of the month and the end of the month).
A24: - | B24: Companies with home offices can optionally include these spaces in their inventory if the energy use associated with business activities can be reasonably estimated.
A25: - | B25: The Energy Information Administration conducts a Commercial Building Energy Consumption Survey and provides average energy consumption by building type per square foot. Use the numbers below to compare against your data or to estimate if no data are available. For example, if you have a 1,000 sq ft office suite in the Northeast multiply by 17.1 to get an estimation of 17,100 kWh electricity for a year.
B27: Electricity Intensity | C27: kWh electricity / sq ft / year
B28: Principal Building Activity | C28: Northeast | D28: Midwest | E28: South | F28: West
B29: Education | C29: 8.7 | D29: 10.3 | E29: 12.6 | F29: 10
B30: Food sales | C30: 45 | D30: 50.5 | E30: 56.2 | F30: 42.7
B31: Food service | C31: 39.7 | D31: 43.1 | E31: 49.7 | F31: 41.1
B32: Health care | C32: 22 | D32: 25.1 | E32: 29.5 | F32: 24.6
B33: Inpatient | C33: 26.3 | D33: 28.9 | E33: 34.3 | F33: 32.5
B34: Outpatient | C34: 17.6 | D34: 20.1 | E34: 21.7 | F34: 14.3
B35: Lodging | C35: 14 | D35: 15.4 | E35: 16.6 | F35: 14.1
B36: Mercantile | C36: 16.3 | D36: 17.5 | E36: 19.7 | F36: 17.6
B37: Retail (other than mall) | C37: 12.8 | D37: 14.1 | E37: 16.3 | F37: 15.8
B38: Enclosed and strip malls | C38: 19.9 | D38: 21.4 | E38: 22.5 | F38: 19.1
B39: Office | C39: 17.1 | D39: 15.3 | E39: 16 | F39: 14.9
B40: Public assembly | C40: 14.1 | D40: 13.2 | E40: 16.3 | F40: 13.2
B41: Public order and safety | C41: 15.1 | D41: 10.3 | E41: 18.3 | F41: insufficient data
B42: Religious worship | C42: 4.5 | D42: 4.5 | E42: 6.1 | F42: 4.7
B43: Service | C43: 6.6 | D43: 7.3 | E43: 9.8 | F43: 8.8
B44: Warehouse and storage | C44: 4.9 | D44: 6.6 | E44: 8.4 | F44: 4.8
B45: Other | C45: 43.2 | D45: 20.2 | E45: 32 | F45: 20.3
B46: Vacant | C46: insufficient data | D46: 5.3 | E46: 4 | F46: 5.6
B47: Source: Commercial Buildings Energy Consumption Survey (CBECS) 2012, Released May 2016. Table C15: Electricity consumption and conditional energy intensity by Census region
B48: http://www.eia.gov/consumption/commercial/data/2012/index.cfm?view=consumption#c23-c32
A50: Refer to the Greenhouse Gas Inventory Guidance: Indirect Emissions from Purchased Electricity Guidance for more information.
B51: https://www.epa.gov/climateleadership/scope-1-and-scope-2-inventory-guidance

Sheet Help - Market-Based Method
A3: Market-Based Method - HELP SHEET
A5: Market-Based Electricity Emission Factors
A6: The market-based method considers contractual arrangements under which the organization procures electricity from specific sources, such as fossil, renewable, or other generation facilities. Market-based emission factors reflect these arrangements. The following are the types of market-based emission factors available, listed in order of preference based on the precision of the factors. If any of the first four types of emission factors are applicable, enter the factors in the yellow cells marked as "<enter factor>". If not, leave the yellow cells as is, and eGRID subregion factors will be used for market-based emissions.
A7: (1) | B7: Energy Attribute Certificates | D7: If an energy attribute certificate carries with it an emission factor, that factor can be used to quantify emissions in the market-based method. Examples are renewable energy certificates (RECs) or Guarantees of Origin (GOs). The emission factor is based on the specific source that the certificate represents, regardless of the energy resource used. Typically these certificates represent renewable energy and may have an emission factor of zero, but they may in some cases have a non-zero emission factor (e.g., if there is a fossil-fuel or biomass generation component).
A8: (2) | B8: Contracts | D8: An organization may have a contract, such as a power purchase agreement (PPA), to purchase electricity from a specified generating facility, which may be located at the organization's facility, at a nearby location with a direct line connection to the organization, or located remotely. If there are no certificates available, the contract itself carries the emission factor associated with the generation facility, regardless of the energy resource used. If certificates are used, see Energy Attribute Certificates above.
A9: (3) | B9: Supplier-Specific Emission Factor | D9: An electricity supplier, such as a regulated utility or a deregulated supplier, may provide information to its customers on the emission factor associated with its electricity product. To be used in the market-based method, the emission factor must include all the electricity delivered by the supplier, including electricity it generates as well as electricity it purchases from others.
A10: (4) | B10: Residual Mix Factor | D10: A residual mix emission factor represents the emissions and generation that remain after certificates, contracts, and supplier-specific factors have been claimed and removed from the calculation. Residual mix emission factors are currently not widely available. Organizations are encouraged to check for available residual mix factors each year when their GHG inventory is completed, if the options above are not available or relevant.
A11: (5) | B11: Regional Emission Factor | D11: If residual mix factors are not available, organizations can use a regional grid average emission factor as the default. This calculator will use eGRID subregion emission factors in this case.
A12: (6) | B12: National Emission Factor | D12: This should not be applicable for any companies reporting US based emissions, due to the availability of regional emission factors.
A14: Quality Criteria for Contractual Instruments
A15: All contractual instruments used in the market-based method must meet the following criteria:
A16: (1) Convey the direct GHG emission rate attribute associated with the unit of electricity produced.
A17: (2) Be the only instruments that carry the GHG emission rate attribute claim associated with that quantity of electricity generation. See the "Items to Note" section of the Help sheet for suggested estimation approaches.
A18: (3) Be tracked and redeemed, retired, or canceled by or on behalf of the reporting entity. This can be done through a tracking system, an audit of contracts, third-party certification, or other means.
A19: (4) Have a vintage that matches as closely as possible to the date of the reporting period to which the instruments are applied. The vintage of the instrument is based on the date of the energy generation that the instrument represents.
A20: (5) Be sourced from the same market in which the reporting entity’s electricity-consuming operations are located and to which the instrument is applied. A market is defined as a geographical area which has a common system for trading and retiring contractual instruments. For this purpose the U.S. constitutes a single market, despite regional grid boundaries.
A21: The Indirect Emissions from Purchased Electricity Guidance defines EPA best-practice quality recommendations that go beyond these minimum requirements.
A23: Items to Note
A24: - | B24: EPA encourages organizations to use renewable energy as a way to reduce the environmental impacts associated with the electricity they purchase. Organizations can reduce their market-based scope 2 emissions by purchasing renewable energy, or “green power.” They can do this by choosing a differentiated electricity product from their utility or electricity supplier, by contracting directly with a renewable energy generator (if the regulatory rules allow), or by purchasing unbundled renewable energy certificates (RECs). In any case, the RECs must be acquired and retired.
A26: An Example
A27: In a situation where an organization has procured electricity from a specific source that is relevant to report for the market-based method, but the source supplies less than 100% of the kWh consumed by the facility, it is important to enter the data correctly. Consider the following scenario:
B28: - 100,000 kWh total facility consumption
B29: - 25,000 kWh purchased with energy attribute certificates such as renewable energy certificates (RECs).
B30: - Emission factors for RECs are zero.
B31: - No other market-based emission factors are available.
A33: The table below shows how to enter the data for this example site. There are two rows entered for the facility in order to allocate the market-based emissions to the appropriate kWh.
A34: The total Electricity Purchased (kWh) of the two rows adds up to facility's total consumption. Be careful not to double count kWh.
A35: The REC emission factors are entered in the first row. In the second row, there is no need to enter market-based emission factors, because none are available.
F37: Market-Based Use these cells to enter contractual or supplier specific emission factors
A38: Table 1. Total Amount of Electricity Purchased by eGRID Subregion | F38: Emission Factors
A39: Source | B39: Source | C39: Source | D39: eGRID Subregion | E39: Electricity | F39: CO2 | G39: CH4 | H39: N2O
A40: ID | B40: Description | C40: Area (sq ft) | D40: where electricity is consumed | E40: Purchased | F40: Emissions | G40: Emissions | H40: Emissions
E41: (kWh) | F41: (lb/MWh) | G41: (lb/MWh) | H41: (lb/MWh)
A42: Building A | B42: Wind Farm RECs | C42: 6000 | D42: RFCW (RFC West) | E42: 25000 | F42: 0 | G42: 0 | H42: 0
A43: Building A | B43: Local Utility | C43: 6000 | D43: RFCW (RFC West) | E43: =100000-E42 -> 75000 | F43: <enter factor> | G43: <enter factor> | H43: <enter factor>
A46: Refer to the Greenhouse Gas Inventory Guidance: Indirect Emissions from Purchased Electricity Guidance for more information.
B47: https://www.epa.gov/climateleadership/center-corporate-climate-leadership-greenhouse-gas-inventory-guidance

Sheet Help - Steam
A3: Scope 2 Emissions from Purchase of Steam - HELP SHEET
A5: DEFINITION
A6: Similar to electricity production, GHGs are emitted when fossil fuels are combusted to generate heat or steam. If the organization purchases heat or steam, the emissions are accounted for as scope 2 indirect emissions. Also similar to electricity, both the location-based method and the market-based method should be calculated and reported as done in this Calculator. Typically supplier-specific emission factors for steam will apply to both location-based and market-based emissions, and no market-based emission factors need to be entered. If needed, see the market-based method Help Sheet for more information.
A8: COLLECT
A9: Determine the amount of steam purchased, the types of fuel that the steam supplier uses to generate the steam, and either the emission factors provided by the steam supplier or the boiler efficiency. If values for boiler efficiency are unavailable, a default of 80% is provided in the Calculator.
A10: Data Collection Checklist (for all facilities)
A11: - | B11: Amount of steam purchased
A12: - | B12: Fuel type used to generate steam
A13: - | B13: Boiler efficiency or supplier-specific emission factors
A15: QUANTIFY
A16: Enter the data into the appropriate orange colored boxes (Table 1) of the Calculator section titled “Steam.” Once the data are entered into the Calculator, the CO2 equivalent emissions are calculated and summarized in the blue colored box. Enter the market-based emission factors in the yellow cells if applicable.
A18: Items to Note
A19: - | B19: Use the heat content sheet to convert units provided on the invoice into the units the Calculator requires.
A20: - | B20: If you are one of many tenants in a facility and you do not have the actual amount of steam used in your space, you may estimate your usage by multiplying the steam usage of the entire facility by the percentage of the floor area that your organization occupies.

Sheet Help - Business Travel
A3: Scope 3 Emissions from Employee Business Travel - HELP SHEET
A5: DEFINITION
A6: Scope 3 employee business travel emissions differ from the scope 1 mobile source emission reporting in that they account for employee business travel in vehicles not owned or leased by the organization, such as taxis, trains, commercial airplanes, and personal vehicles used for sales.
A8: COLLECT
A9: Collect information about employees’ business travel method. Travel by vehicle-miles is used when the employee is traveling in a personal vehicle. Travel by passenger-mile is used when the employee is traveling in a vehicle shared with many other people (i.e., bus, train or plane). For travelers that use a personal vehicle, choose the vehicle type from the Calculator and collect data for the vehicle miles during the reporting period. For rail, bus, and air travel, the mode of travel should be selected from the Calculator options and an estimate of the passenger mileage data provided for each.
A10: Data Collection Checklist (for all employee travel)
A11: - | B11: Type of transport (personal vehicle, train, bus, plane)
A12: - | B12: Miles traveled for each transport type. For air travel, mileage should ideally be determined considering each flight segment individually. If you use a travel agent, they may have these data in their records.
A14: QUANTIFY
A15: Enter the data into the appropriate orange colored boxes (Tables 1-3) of the Calculator section titled “Business Travel.” Once the data are entered into the Calculator, the CO2 equivalent emissions are calculated and summarized in the green colored box. The emission factors included for air travel do not include radiative forcing.

Sheet Help - Commuting
A3: Scope 3 Emissions from Employee Commuting - HELP SHEET
A5: DEFINITION
A6: Employee commuting emissions differ from the required mobile source emission reporting in that they account for employee travel to and from work in vehicles not owned or leased by the organization, including personal vehicles, buses, and trains.
A8: COLLECT
A9: Collect information about each employee’s commuting method. If not all employees can provide information on their commuting habits, you can calculate an average per employee and multiply by total employees to estimate. For commuters that use a personal vehicle, the appropriate vehicle type should be selected from the Calculator and data collected for the vehicle-miles during the reporting period. For rail, bus, and air travel, the mode of transport should be selected from the Calculator options and an estimate of the passenger mileage data provided for each.
A10: Data Collection Checklist (per Employee)
A11: - | B11: Commuting days per year (consider vacation, sick time and business travel)
A12: - | B12: Mode of transport (this may be multiple modes of transport)
A13: - | B13: Round trip mileage
A15: QUANTIFY
A16: After the data has been collected, enter the data into the appropriate orange colored boxes (Tables 1-2) of the Calculator section titled “Commuting.” Once the data are entered into the Calculator, the CO2 equivalent emissions are calculated and summarized in the green colored box.
A18: Items to Note
A19: - | B19: Commuting by vehicle-miles is used when the employee is traveling in their own vehicle. Travel by passenger-mile is used when the employee is traveling in a vehicle shared with many other people (i.e., bus, train or plane).
A20: - | B20: If employees carpool, only their portion of the mileage should be included in the GHG inventory. For example, if one of your employees drives 10 miles alone to meet two other people (not employees) to carpool and then drives 30 miles to work then the organization should include 20 miles (10 miles + 30 (1/3)) in the corporate inventory.
A21: - | B21: If collecting data from all your employees is not possible due to the size of your organization, you may collect data from as many employees as possible, and use that sample to estimate for the rest of the employees. Make sure the sample size is adequate, and keep in mind this will calculate less accurate results.

Sheet Help - Upstream Trans and Dist
A3: Scope 3 Emissions from Upstream Transportation and Distribution - HELP SHEET
A5: DEFINITION
A6: Scope 3 emissions from upstream transportation and distribution include all product transportation between product/materials origin to end customers by vehicles not owned or leased by the organization. For example, the organization could hire another company to transport product from the manufacturing location to distribution centers or final markets. (Note: If an organization owns or leases the trucks or other transport vehicles, these would be part of its scope 1 mobile source emissions). Another example of product transport is paying a courier to transport documents from one office to another. While this category does include emissions from warehousing of products, there is not currently a place to account for those emissions in this calculator.
A8: COLLECT
A9: Collect information about shipment methods (on-road vehicle, waterborne craft, freight rail, or aircraft). For road shipments the user may enter data based on vehicle mileage or ton-miles of product transported. If the vehicle mileage option is chosen, then the organization should select the type of vehicle and enter the total mileage for that vehicle type. The ton-miles option is only applicable for heavy-duty trucks and the organization need only enter the total ton-miles traveled. For product transport via freight rail, waterborne, or air transport, the organization should enter the total ton-miles data.
A10: Data Collection Checklist
A11: - | B11: All product transport legs (origin and destination) and mileage
A12: - | B12: Mode of transport per leg
A13: - | B13: Weight transported per shipment for ton-mile calculation
A15: QUANTIFY
A16: Enter the data into the appropriate orange colored boxes (Tables 1-2) of the Calculator section titled “Upstream Transpt. and Dist.” Once the data are entered into the Calculator, the CO2 equivalent emissions are calculated and summarized in the green colored box.
A18: Items to Note
A19: - | B19: To calculate ton-miles, multiply the weight transported (short tons) by the distance (miles) for each individual shipment. In Table 2, you can enter data either for individual shipments, or for the sum of ton-miles for multiple shipments.
A20: - | B20: If you do not have shipment-by-shipment data, you may multiply total tons transported by the average miles per shipment. You may also multiply average tons transported per shipment times the total miles transported. Do not multiply total tons by total miles, as this will give an incorrect result.
A21: - | B21: Example: Every week a company ships 10 short tons of product 100 miles. That equates to 52 shipments per year of 1,000 ton-miles each. The sum of the individual shipments is 52,000 ton-miles per year. Multiplying the total tons transported (520 tons) by the average miles per shipment (100 miles) provides the correct result of 52,000 ton-miles. Multiplying the average tons transported per shipment (10 tons) times the total miles (5,200 miles) also gives the correct result. Multiplying total tons (520 tons) by total miles (5,200 miles) gives an incorrect result.

Sheet Help - Waste
A3: Scope 3 Emissions from Waste - HELP SHEET
A5: DEFINITION
A6: Scope 3 emissions from waste include the disposal and treatment of waste generated in the reporting company’s operations in the reporting year in facilities not owned or controlled by the reporting company. These emission factors align with the requirements of the GHG Protocol Scope 3 Standard. The emission factors do not include any avoided emissions impact from any of the disposal methods. All the factors presented include transportation emissions, which are optional in the Scope 3 Calculation Guidance, with an assumed average distance traveled to the processing facility. AR4 GWPs are used to convert all waste emission factors into CO2e.
A8: COLLECT
A9: Collect information on the amount of weight disposed at your facilities, by the type of waste (plastics, paper, etc.) and disposal method (recycling, incineration, etc.). Refer to the Emission Factors tab for a complete list of materials and available disposal methods.
A10: Data Collection Checklist
A11: - | B11: Weight of waste disposed by material type and disposal method
A13: QUANTIFY
A14: Enter the data into the appropriate orange colored boxes (Tables 1) of the Calculator section titled “Waste.” Once the data are entered into the Calculator, the CO2 equivalent emissions are calculated and summarized in the green colored box.

Sheet Help - Offsets
A3: Purchased Offsets - HELP SHEET
A5: DEFINITION
A6: Offsets are project-based emission reductions and/or removals that occur outside the organizational boundary of the reporting organization. Offsets can be purchased by an organization to offset emissions from scope 1, scope 2, and scope 3 sources.
A8: COLLECT
A9: Quantity of offsets purchased in metric tons CO2 equivalent for each offset project.
A11: QUANTIFY
A12: Enter the data into the appropriate orange colored boxes (Table 1) of the Calculator section titled "Offsets.” Once the data are entered into the Calculator, the CO2 equivalent emissions are summarized in the green colored box.
